Service Area,Service Division,Expense Type,Expense Code,Detailed Expense Type,Payment Date,Transaction Number,Amount Exc VAT,Supplier Name
Transformation and Partnerships,Partnerships & Community Engagement Div.,Cap Exp on Grants & Other Financial Assistance (REFCUS),918004,Contributions to other bodies 918004,01/07/2019,3608845-VOUCHER19NB-CHES002,"2,950.00",1507 (CHESTER LE STREET) SQUADRON.
Regeneration and Local Services,Technical Services CM0300,Supplies and Services,304221,Equipment and Materials,01/07/2019,3608864-28343977,"1,199.26",AGGREGATE INDUSTRIES UK LTD.
Regeneration and Local Services,Technical Services CM0300,Supplies and Services,304221,Equipment and Materials,01/07/2019,3608864-28362573,700.88,AGGREGATE INDUSTRIES UK LTD.
Regeneration and Local Services,Technical Services CM0300,Supplies and Services,304221,Equipment and Materials,01/07/2019,3608864-28362574,984.54,AGGREGATE INDUSTRIES UK LTD.
Regeneration and Local Services,Technical Services CM0300,Supplies and Services,304221,Equipment and Materials,01/07/2019,3608864-28362575,"1,126.06",AGGREGATE INDUSTRIES UK LTD.
Regeneration and Local Services,Technical Services CM0300,Supplies and Services,304221,Equipment and Materials,01/07/2019,3608864-28362578,976.00,AGGREGATE INDUSTRIES UK LTD.
Regeneration and Local Services,Technical Services CM0300,Supplies and Services,304221,Equipment and Materials,01/07/2019,3608864-28362579,672.80,AGGREGATE INDUSTRIES UK LTD.
Regeneration and Local Services,Technical Services CM0300,Supplies and Services,304221,Equipment and Materials,01/07/2019,3608864-28362580,974.00,AGGREGATE INDUSTRIES UK LTD.
Regeneration and Local Services,Technical Services CM0300,Supplies and Services,304221,Equipment and Materials,01/07/2019,3608864-28369126,730.40,AGGREGATE INDUSTRIES UK LTD.
Regeneration and Local Services,Technical Services CM0300,Supplies and Services,304221,Equipment and Materials,01/07/2019,3608864-28369127,"1,477.22",AGGREGATE INDUSTRIES UK LTD.
Regeneration and Local Services,Technical Services CM0300,Supplies and Services,304221,Equipment and Materials,01/07/2019,3608864-28369128,"1,235.86",AGGREGATE INDUSTRIES UK LTD.
Regeneration and Local Services,Technical Services CM0300,Supplies and Services,304221,Equipment and Materials,01/07/2019,3608864-28369130,964.00,AGGREGATE INDUSTRIES UK LTD.
Regeneration and Local Services,Technical Services CM0300,Supplies and Services,304221,Equipment and Materials,01/07/2019,3608864-28369131,799.00,AGGREGATE INDUSTRIES UK LTD.
Regeneration and Local Services,Technical Services CM0300,Supplies and Services,304221,Equipment and Materials,01/07/2019,3608864-28369132,803.00,AGGREGATE INDUSTRIES UK LTD.
Regeneration and Local Services,Technical Services CM0300,Supplies and Services,304221,Equipment and Materials,01/07/2019,3608864-28410420,633.18,AGGREGATE INDUSTRIES UK LTD.
Regeneration and Local Services,Technical Services CM0300,Supplies and Services,304221,Equipment and Materials,01/07/2019,3608864-28410422,"1,206.58",AGGREGATE INDUSTRIES UK LTD.
Regeneration and Local Services,Technical Services CM0300,Supplies and Services,304221,Equipment and Materials,01/07/2019,3608864-28410424,537.00,AGGREGATE INDUSTRIES UK LTD.
Regeneration and Local Services,Technical Services CM0300,Supplies and Services,304221,Equipment and Materials,01/07/2019,3608864-28416764,728.80,AGGREGATE INDUSTRIES UK LTD.
Children and Young Peoples Services,Head of Education and Skills,Transport,230006,Contract Hire,01/07/2019,3608873-2-F755,773.50,ANDREW ROBSON`S TAXI.
Children and Young Peoples Services,Head of Education and Skills,Transport,230007,Contract Hire,01/07/2019,3608876-00553760,"1,144.00",ANTHONY HOBSON (TAXI).
Children and Young Peoples Services,Head of Childrens Social Care,Supplies and Services,338066,Services,01/07/2019,3608879-ARC1920-302,800.00,ARC ADOPTION NORTH EAST.
Non-Service Specific,Non Service Specific-Financing,Long Term Debtors,924001,Car loans,01/07/2019,3608881-115640,"1,278.00",ARRIVA NORTHUMBRIA LTD.
Adult and Health Services,Head of Adults,Supplies and Services,384616,Miscellaneous Expenses,01/07/2019,3608892-15/1920/MULB,"1,333.20",BERNICIA GROUP LTD.
Regeneration and Local Services,Culture Sport and Tourism,Supplies and Services,372009,Subscriptions E372,01/07/2019,3608900-8895,"2,994.44",BRAMBLE HUB LTD.
Regeneration and Local Services,Environmental Services,Supplies and Services,304221,Equipment and Materials,01/07/2019,3608901-190431,845.00,BRAMBLEDOWN LANDSCAPE SERVICES LTD.
Regeneration and Local Services,Transport and Contracted Services,Supplies and Services,304245,Equipment and Materials,01/07/2019,3608907-55589,"1,590.00",BUDDI.
Regeneration and Local Services,Transport and Contracted Services,Supplies and Services,304245,Equipment and Materials,01/07/2019,3608907-55613,600.00,BUDDI.
Children and Young Peoples Services,Head of Childrens Social Care,Supplies and Services,338044,Services,01/07/2019,3608911-TI003728,784.47,CARTER BROWN THE EXPERT SERVICE LTD.*
Resources BK0010,Finance & Transactional Services,Supplies and Services,342051,Computers and Communications,01/07/2019,3608925-C/RB180872,"8,890.35",CIVICA UK LTD.
Adult and Health Services,Head of Adults,Transport,230005,Contract Hire,01/07/2019,3608932-WV104/0619,532.00,COLVIN`S CABS.
Resources BK0010,Legal & Democratic Services,Supplies and Services,338025,Services,01/07/2019,3608930-S44995-01702,"1,080.00",CO-OPERATIVE FUNERAL CARE.
Transformation and Partnerships,Partnerships & Community Engagement Div.,Cap Exp on Grants & Other Financial Assistance (REFCUS),918004,Contributions to other bodies 918004,01/07/2019,3608949-VOUCHER18NB-BASH026,"2,998.00",DAISY ARTS.
Adult and Health Services,Head of Adults,Third Party Payments 4THIRD,478151,Purchase of Care,01/07/2019,3608952-INV-0087,"2,688.00",DEACONSTAR LTD.
Adult and Health Services,Head of Adults,Third Party Payments 4THIRD,478151,Purchase of Care,01/07/2019,3608952-INV-0126,"2,016.00",DEACONSTAR LTD.
Transformation and Partnerships,Business Support,Supplies and Services,332029,Printing Stationery and Gen Off Exps,01/07/2019,3608957-28960,649.60,DESIGN X PRESS LTD.
Children and Young Peoples Services,Head of Education and Skills,Transport,230007,Contract Hire,01/07/2019,3608958-05/2019-2067,"1,785.00",DIANE GOOCH T/A COLLINS TAXIS.
Children and Young Peoples Services,Head of Education and Skills,Transport,230007,Contract Hire,01/07/2019,3608958-05/2019-2068,"1,264.00",DIANE GOOCH T/A COLLINS TAXIS.
Children and Young Peoples Services,Head of Education and Skills,Transport,230007,Contract Hire,01/07/2019,3608958-05/2019-4369,"2,173.00",DIANE GOOCH T/A COLLINS TAXIS.
Children and Young Peoples Services,Head of Education and Skills,Transport,230006,Contract Hire,01/07/2019,3608958-05/2019-F664,"1,343.00",DIANE GOOCH T/A COLLINS TAXIS.
Children and Young Peoples Services,Head of Education and Skills,Transport,230008,Contract Hire,01/07/2019,3608958-05/2019-W080,"2,210.00",DIANE GOOCH T/A COLLINS TAXIS.
Regeneration and Local Services,Environmental Services,Supplies and Services,384199,Miscellaneous Expenses,01/07/2019,3608965-330794,"5,000.00",DURHAM UNIVERSITY.
Transformation and Partnerships,Partnerships & Community Engagement Div.,Supplies and Services,384086,Miscellaneous Expenses,01/07/2019,3608968-VOUCHER19NB-EDUR005,"8,800.00",EASINGTON COLLIERY REGENERATION PARTNERSHIP.
Regeneration and Local Services,Environmental Services,Supplies and Services,304221,Equipment and Materials,01/07/2019,3608969-0000033720,800.00,EAST RIDING HORTICULTURE LTD.
Regeneration and Local Services,Environmental Services,Supplies and Services,304221,Equipment and Materials,01/07/2019,3608969-0000033764,736.60,EAST RIDING HORTICULTURE LTD.
Regeneration and Local Services,Corporate Property and Land,Supplies and Services,304245,Equipment and Materials,01/07/2019,3608971-059-245094,"4,646.56",EDMUNDSON ELECTRICAL LTD.
Regeneration and Local Services,Corporate Property and Land,Supplies and Services,304221,Equipment and Materials,01/07/2019,3608971-059-245653,790.00,EDMUNDSON ELECTRICAL LTD.
Regeneration and Local Services,Environmental Services,Supplies and Services,352001,Conference Expenses,01/07/2019,3608980-WEB86,510.00,ENVIRONMENT MEDIA GROUP.*
Dedicated Schools Grant BG0015,DSG High Needs Block,Transfer Payments,510034,School Children,01/07/2019,3608985-LACPP1920 SUMMER,"3,800.00",EXCEL ACADEMY PARTNERSHIP T/A FRAMWELLGATE SCHOOL DURHAM.
Regeneration and Local Services,Corporate Property and Land,Supplies and Services,338027,Services,01/07/2019,3608986-128026/03,575.00,FAIRHURST (CONSULTING ENGINEERS).
Transformation and Partnerships,Partnerships & Community Engagement Div.,Fees,901002,Consultants fees 901002,01/07/2019,3608986-132604/01,"1,125.00",FAIRHURST (CONSULTING ENGINEERS).
Regeneration and Local Services,Corporate Property and Land,Supplies and Services,338027,Services,01/07/2019,3608986-132833/01,575.00,FAIRHURST (CONSULTING ENGINEERS).
Regeneration and Local Services,Environmental Services,Third Party Payments 4THIRD,430120,Rendered by Private Contractors,01/07/2019,3608993-CTIN06574568,"2,788.17",FINNING (UK) LTD.
Regeneration and Local Services,Environmental Services,Third Party Payments 4THIRD,430120,Rendered by Private Contractors,01/07/2019,3608993-CTIN06574569,"6,859.16",FINNING (UK) LTD.
Regeneration and Local Services,Business Durham CL0850,Supplies and Services,344033,Telephones,01/07/2019,3608999-DERW01-0012,856.78,FREEDOM COMMUNICATIONS (UK) LTD.
Adult and Health Services,Head of Adults,Transport,230005,Contract Hire,01/07/2019,3609004-009-WV130,630.00,GAIL MADDISON T/A CENTRAL TAXIS.
Adult and Health Services,Central/Other,Supplies and Services,384899,Miscellaneous Expenses,01/07/2019,3609007-102123648,"8,333.00",GATESHEAD COUNCIL.
Children and Young Peoples Services,Head of Education and Skills,Transport,235005,Public Transport,01/07/2019,3609017-69438,"2,640.00",GO GATESHEAD LTD.
Resources BK0010,Legal & Democratic Services,Supplies and Services,338025,Services,01/07/2019,3609018-F1699,580.00,GORDON FLETCHER & SONS LTD.
Regeneration and Local Services,Corporate Property and Land,Premises,145023,Cleaning and Domestic Supplies,01/07/2019,3609023-06/003898,704.00,GREENHAM TRADING LTD.
Adult and Health Services,Head of Adults,Third Party Payments 4THIRD,478151,Purchase of Care,01/07/2019,3609026-HLC39,"2,420.04",HIGHLEA CARE LTD.
Regeneration and Local Services,Technical Services CM0300,Third Party Payments 4THIRD,430100,Rendered by Private Contractors,01/07/2019,3609027-2959,"5,080.00",HIGHWAY CONSTRUCTION SERVICES LTD.
Adult and Health Services,Head of Adults,Transport,230005,Contract Hire,01/07/2019,3609028-15977,654.50,HODGSONS COACH OPERATORS LTD.
Children and Young Peoples Services,Head of Education and Skills,Transport,230007,Contract Hire,01/07/2019,3609028-15979,"1,386.69",HODGSONS COACH OPERATORS LTD.
Children and Young Peoples Services,Head of Education and Skills,Transport,230007,Contract Hire,01/07/2019,3609028-15980,"2,563.94",HODGSONS COACH OPERATORS LTD.
Children and Young Peoples Services,Head of Education and Skills,Transport,230007,Contract Hire,01/07/2019,3609028-15981,689.01,HODGSONS COACH OPERATORS LTD.
Children and Young Peoples Services,Head of Education and Skills,Transport,230007,Contract Hire,01/07/2019,3609028-15982,"1,037.85",HODGSONS COACH OPERATORS LTD.
Children and Young Peoples Services,Head of Education and Skills,Transport,230007,Contract Hire,01/07/2019,3609028-15983,"1,372.58",HODGSONS COACH OPERATORS LTD.
Children and Young Peoples Services,Head of Education and Skills,Transport,230007,Contract Hire,01/07/2019,3609028-15984,829.43,HODGSONS COACH OPERATORS LTD.
Children and Young Peoples Services,Head of Education and Skills,Transport,230007,Contract Hire,01/07/2019,3609028-15985,"1,386.69",HODGSONS COACH OPERATORS LTD.
Children and Young Peoples Services,Head of Education and Skills,Transport,230007,Contract Hire,01/07/2019,3609028-15986,769.25,HODGSONS COACH OPERATORS LTD.
Children and Young Peoples Services,Head of Education and Skills,Transport,230007,Contract Hire,01/07/2019,3609028-15987,"1,465.06",HODGSONS COACH OPERATORS LTD.
Children and Young Peoples Services,Head of Education and Skills,Transport,230007,Contract Hire,01/07/2019,3609028-15989,"1,648.32",HODGSONS COACH OPERATORS LTD.
Children and Young Peoples Services,Head of Education and Skills,Transport,230007,Contract Hire,01/07/2019,3609028-15990,"2,532.15",HODGSONS COACH OPERATORS LTD.
Children and Young Peoples Services,Head of Education and Skills,Transport,230007,Contract Hire,01/07/2019,3609028-15991,"2,494.24",HODGSONS COACH OPERATORS LTD.
Children and Young Peoples Services,Head of Education and Skills,Transport,230007,Contract Hire,01/07/2019,3609028-15992,"1,918.62",HODGSONS COACH OPERATORS LTD.
Children and Young Peoples Services,Head of Education and Skills,Transport,230007,Contract Hire,01/07/2019,3609028-15993,"1,733.66",HODGSONS COACH OPERATORS LTD.
Adult and Health Services,Head of Adults,Supplies and Services,338365,Services,01/07/2019,3609030-1101011403,"15,210.00",HOME GROUP LTD.
Transformation and Partnerships,Communications Management,Supplies and Services,338094,Services,01/07/2019,3609035-100012850,875.81,HOUSE OF COMMONS CATERING SERVICES.*
Resources BK0010,Digital and Customer Services,Supplies and Services,304303,Equipment and Materials,01/07/2019,3609040-SIN448122,"2,475.00",INFORMATION & DATA NETWORK SUPPLIES LTD (IDN).
Resources BK0010,Digital and Customer Services,Supplies and Services,304303,Equipment and Materials,01/07/2019,3609040-SIN448123,"4,242.00",INFORMATION & DATA NETWORK SUPPLIES LTD (IDN).
Regeneration and Local Services,Culture Sport and Tourism,Supplies and Services,384302,Miscellaneous Expenses,01/07/2019,3609043-IOSINV020808,"1,491.75",INSTITUTE OF SWIMMING.
Regeneration and Local Services,Technical Services CM0300,Construction work A908,908105,Construction work,01/07/2019,3609047-23012,"1,177.98",JACK COUPE & SONS LTD T/A COUPE LINE.
Regeneration and Local Services,Technical Services CM0300,Supplies and Services,338027,Services,01/07/2019,3609048-BL000000-011,"10,000.00",JACOBS UK LTD.
Children and Young Peoples Services,Head of Education and Skills,Transport,230006,Contract Hire,01/07/2019,3609054-F759-JUNE,530.00,JMR TAXIS.
Regeneration and Local Services,Technical Services CM0300,Supplies and Services,304221,Equipment and Materials,01/07/2019,3609059-BII288744,"2,950.00",JT DOVE LTD.
Regeneration and Local Services,Technical Services CM0300,Supplies and Services,304221,Equipment and Materials,01/07/2019,3609059-BII290503,"1,160.20",JT DOVE LTD.
Regeneration and Local Services,Technical Services CM0300,Stock A926,926900,Stock in hand-Inventory system,01/07/2019,3609059-BII290513,938.56,JT DOVE LTD.
Regeneration and Local Services,Technical Services CM0300,Stock A926,926900,Stock in hand-Inventory system,01/07/2019,3609059-GOI1671/D,"1,580.00",JT DOVE LTD.
Regeneration and Local Services,Corporate Property and Land,Supplies and Services,304221,Equipment and Materials,01/07/2019,3609059-PHBI144612,690.16,JT DOVE LTD.
Regeneration and Local Services,Corporate Property and Land,Supplies and Services,304221,Equipment and Materials,01/07/2019,3609059-PHBI144613,"1,953.90",JT DOVE LTD.
Regeneration and Local Services,Corporate Property and Land,Supplies and Services,304221,Equipment and Materials,01/07/2019,3609059-PHBII44582,613.78,JT DOVE LTD.
Regeneration and Local Services,Technical Services CM0300,Supplies and Services,304221,Equipment and Materials,01/07/2019,3609059-STI505053,"1,449.00",JT DOVE LTD.
Regeneration and Local Services,Environmental Services,Supplies and Services,304259,Equipment and Materials,01/07/2019,3609065-SI02-0229775,668.05,KILLGERM CHEMICALS LTD.
Adult and Health Services,Commissioning inc Supporting People,Supplies and Services,338089,Services,01/07/2019,3609078-LATS/19/046,"1,200.00",LOCAL GOVERNMENT OMBUDSMAN.
Children and Young Peoples Services,Head of Education and Skills,Transport,230008,Contract Hire,01/07/2019,3609091-00986-JUNE,"1,640.00",MICHAELS TRAVEL.
Children and Young Peoples Services,Head of Education and Skills,Transport,230008,Contract Hire,01/07/2019,3609091-00986-MAY,"2,780.00",MICHAELS TRAVEL.
Children and Young Peoples Services,Head of Education and Skills,Supplies and Services,338027,Services,01/07/2019,3609092-DCC04,"1,425.00",MIKE REDSHAW EDUCATION CONSULTANT.
Transformation and Partnerships,Communications Management,Supplies and Services,336005,Advertising E336,01/07/2019,3609105-29685026,500.00,NEWSQUEST (YORKSHIRE & NORTH EAST) LTD.
Regeneration and Local Services,Development and Housing,Supplies and Services,336005,Advertising E336,01/07/2019,3609105-29685061,565.11,NEWSQUEST (YORKSHIRE & NORTH EAST) LTD.
Children and Young Peoples Services,Head of Early Help Inclusion & Vulnerable Children.,Third Party Payments 4THIRD,479101,Purchase of Care,01/07/2019,3609106-4010000641,"1,219.50",NHS SYNCHRONICITY CARE LTD.
Regeneration and Local Services,Technical Services CM0300,Fees,901004,Capital - Detailed Design,01/07/2019,3609113-19145,"2,093.00",NORTH EAST TRAFFIC DATA COLLECTION LTD.
Regeneration and Local Services,Environmental Services,Transport,215005,Running Costs of Vehicles,01/07/2019,3609118-431867,"13,953.44",OIL NRG LTD.
Regeneration and Local Services,Environmental Services,Transport,215022,Running Costs of Vehicles,01/07/2019,3609118-431868,"2,148.00",OIL NRG LTD.
Regeneration and Local Services,Technical Services CM0300,Stock A926,926900,Stock in hand-Inventory system,01/07/2019,3609123-XL241158,680.00,PARK ELECTRICAL DISTRIBUTORS LTD.
Regeneration and Local Services,Technical Services CM0300,Stock A926,926900,Stock in hand-Inventory system,01/07/2019,3609123-XL241159,870.00,PARK ELECTRICAL DISTRIBUTORS LTD.
Regeneration and Local Services,Technical Services CM0300,Stock A926,926900,Stock in hand-Inventory system,01/07/2019,3609123-XL241172,"5,616.60",PARK ELECTRICAL DISTRIBUTORS LTD.
Resources BK0010,Legal & Democratic Services,Supplies and Services,338042,Services,01/07/2019,3609124-308079-28/05/2019,500.00,PARKLANE PLOWDEN CHAMBERS (BARRISTERS).
Children and Young Peoples Services,Head of Education and Skills,Transport,230003,Contract Hire,01/07/2019,3609127-INV1018,"1,683.00",PBS TRAVEL LTD.
Adult and Health Services,Head of Adults,Transport,230005,Contract Hire,01/07/2019,3609132-0777,"1,464.00",PETER`S PRIVATE HIRE/PETER BEST.
Regeneration and Local Services,Technical Services CM0300,Supplies and Services,304221,Equipment and Materials,01/07/2019,3609141-18097,980.00,PRM FABRICATIONS LTD.
Regeneration and Local Services,Technical Services CM0300,Supplies and Services,304221,Equipment and Materials,01/07/2019,3609141-18099,980.00,PRM FABRICATIONS LTD.
Regeneration and Local Services,Technical Services CM0300,Third Party Payments 4THIRD,430100,Rendered by Private Contractors,01/07/2019,3609142-121565,550.00,PROTECTOR SECURITY GROUP LTD.
Regeneration and Local Services,Technical Services CM0300,Third Party Payments 4THIRD,430100,Rendered by Private Contractors,01/07/2019,3609142-121566,550.00,PROTECTOR SECURITY GROUP LTD.
Children and Young Peoples Services,Head of Education and Skills,Fees,901002,Consultants fees 901002,01/07/2019,3609157-TEC520294,"11,272.00",RPS CONSULTING SERVICES LTD.
Transformation and Partnerships,Partnerships & Community Engagement Div.,Cap Exp on Grants & Other Financial Assistance (REFCUS),918004,Contributions to other bodies 918004,01/07/2019,3609165-VOUCHER18AB-EDUR004CG11,630.00,SEAHAM YOUTH CENTRE.
Resources BK0010,Digital and Customer Services,Supplies and Services,342051,Computers and Communications,01/07/2019,3609178-INV02256753,"72,284.79",SOFTCAT LTD.
Regeneration and Local Services,Culture Sport and Tourism,Supplies and Services,304259,Equipment and Materials,01/07/2019,3609185-00361127,"1,037.77",STAGE ELECTRICS PARTNERSHIP LTD.
Children and Young Peoples Services,Head of Education and Skills,Transport,230012,Contract Hire,01/07/2019,3609189-089,"1,067.04",STEPHEN BALL T/A ABBIE`S TAXIS..
Children and Young Peoples Services,Head of Education and Skills,Transport,230008,Contract Hire,01/07/2019,3609189-090,"1,360.00",STEPHEN BALL T/A ABBIE`S TAXIS..
Regeneration and Local Services,Technical Services CM0300,Stock A926,926900,Stock in hand-Inventory system,01/07/2019,3609197-9040247571,712.05,TARMAC TRADING LTD.
Regeneration and Local Services,Technical Services CM0300,Supplies and Services,304221,Equipment and Materials,01/07/2019,3609197-9040247572,941.78,TARMAC TRADING LTD.
Resources BK0010,Corporate Finance & Commercial Services,Supplies and Services,328041,Clothing uniforms and laundry E328,01/07/2019,3609212-38405,648.99,THE OUTDOORS CO.
Regeneration and Local Services,Corporate Property and Land,Supplies and Services,304221,Equipment and Materials,01/07/2019,3609220-119667,"2,875.00",TOMMY WARDLE.
Regeneration and Local Services,Corporate Property and Land,Supplies and Services,304221,Equipment and Materials,01/07/2019,3609220-119672,"1,233.96",TOMMY WARDLE.
Regeneration and Local Services,Corporate Property and Land,Supplies and Services,304221,Equipment and Materials,01/07/2019,3609221-32098,"1,495.00",TOTAL PUMP SOLUTIONS LTD.
Transformation and Partnerships,Partnerships & Community Engagement Div.,Cap Exp on Grants & Other Financial Assistance (REFCUS),918004,Contributions to other bodies 918004,01/07/2019,3609223-VOUCHER19NB-3TWN006,"3,000.00",TOW LAW & DISTRICT FANCIERS SOCIETY.
Children and Young Peoples Services,Childrens Services Operational Support CG0080,Supplies and Services,338089,Services,01/07/2019,3609225-1041,"4,520.35",TRACEY HILL TRAINING & CONSULTANCY LTD.
Regeneration and Local Services,Transport and Contracted Services,Supplies and Services,304245,Equipment and Materials,01/07/2019,3609230-3IN/10338703,980.00,TUNSTALL HEALTHCARE (UK) LTD.
Regeneration and Local Services,Corporate Property and Land,Supplies and Services,304221,Equipment and Materials,01/07/2019,3609233-04016397,"2,796.38",UK ELECTRIC LTD.
Children and Young Peoples Services,Head of Education and Skills,Construction work A908,908105,Construction work,01/07/2019,3609237-1498,"10,455.00",UNIVERSAL POOL SERVICES LTD.
Regeneration and Local Services,Corporate Property and Land,Third Party Payments 4THIRD,430105,Rendered by Private Contractors,01/07/2019,3609240-8541174611,"1,269.90",VEOLIA ENVIRONMENTAL SERVICES ES (UK) LTD.
Regeneration and Local Services,Environmental Services,Supplies and Services,304259,Equipment and Materials,01/07/2019,3609243-0005000671,"2,730.00",VISION TECHNIQUES (UK) LTD.
Regeneration and Local Services,Environmental Services,Supplies and Services,304259,Equipment and Materials,01/07/2019,3609243-97802,"2,730.00",VISION TECHNIQUES (UK) LTD.
Resources BK0010,Digital and Customer Services,Supplies and Services,384199,Miscellaneous Expenses,01/07/2019,3609244-NB96163,"2,400.00",VODAFONE CORPORATE LTD.
Children and Young Peoples Services,Head of Education and Skills,Supplies and Services,384199,Miscellaneous Expenses,01/07/2019,3609249-4100658567,525.00,WARREN SMITH.
Regeneration and Local Services,Environmental Services,Third Party Payments 4THIRD,430100,Rendered by Private Contractors,01/07/2019,3609254-48490,"2,469.00",WILLOWCRETE MANUFACTURING COMPANY LTD (MFG).
Resources BK0010,Digital and Customer Services,Vehicles Equipment Furniture and Fittings,912701,Computer equipment,01/07/2019,3609255-KR97710,"2,637.51",XMA LTD.
Regeneration and Local Services,Technical Services CM0300,Supplies and Services,304221,Equipment and Materials,02/07/2019,3610054-28375583,516.06,AGGREGATE INDUSTRIES UK LTD.
Children and Young Peoples Services,Head of Education and Skills,Supplies and Services,384302,Miscellaneous Expenses,02/07/2019,3610061-1129,680.00,ARRON GILBRAITH T/A BYRON TRAVEL.
Regeneration and Local Services,Culture Sport and Tourism,Supplies and Services,312013,Newspapers books and periodicals E312,02/07/2019,3610062-6066310,734.50,ASKEWS & HOLTS LIBRARY SERVICES LTD.
Children and Young Peoples Services,Head of Early Help Inclusion & Vulnerable Children.,Supplies and Services,384302,Miscellaneous Expenses,02/07/2019,3610070-EVNT05422,500.00,BEAMISH HALL LTD.
Adult and Health Services,Head of Adults,Third Party Payments 4THIRD,478101,Purchase of Care,02/07/2019,3610076-11300,"7,975.14",BEST T/A BESPOKE SUPPORTIVE TENANCIES LTD.
Adult and Health Services,Head of Adults,Third Party Payments 4THIRD,478101,Purchase of Care,02/07/2019,3610076-11598,"1,116.52",BEST T/A BESPOKE SUPPORTIVE TENANCIES LTD.
Regeneration and Local Services,Corporate Property and Land,Third Party Payments 4THIRD,430100,Rendered by Private Contractors,02/07/2019,3610089-399,784.67,CEILINGS DIRECT LTD.
Regeneration and Local Services,Development and Housing,Supplies and Services,384437,Miscellaneous Expenses,02/07/2019,3610104-80700,"4,200.00",COMPASS ROYSTON TRAVEL LTD.
Children and Young Peoples Services,Head of Childrens Social Care,Transport,230005,Contract Hire,02/07/2019,3610113-109316,"1,377.99",CROFT BUSINESS SERVICES (UK) LTD T/A CROFT TAXIS.
Children and Young Peoples Services,Head of Childrens Social Care,Supplies and Services,338044,Services,02/07/2019,3610123-18/19-167,610.55,DR STEPHANIE HILL.
Adult and Health Services,Commissioning inc Supporting People,Third Party Payments 4THIRD,479101,Purchase of Care,02/07/2019,3610125-376,"263,250.00",DURHAM COUNTY CARERS SUPPORT.
Regeneration and Local Services,Technical Services CM0300,Premises,120009,Energy Costs,02/07/2019,3610132-000005994809,"351,696.71",EDF ENERGY CUSTOMERS PLC T/A EDF ENERGY.
Regeneration and Local Services,Culture Sport and Tourism,Supplies and Services,338047,Services,02/07/2019,3610140-20194161LB,"7,290.00",ENTERTAINMENT UNLIMITED.
Regeneration and Local Services,Technical Services CM0300,Supplies and Services,304221,Equipment and Materials,02/07/2019,3610143-159069,"1,501.66",ESH CONSTRUCTION LTD FORMERLY LUMSDEN & CARROLL CONSTRUCTION LTD.
Regeneration and Local Services,Culture Sport and Tourism,Supplies and Services,304259,Equipment and Materials,02/07/2019,3610145-7689,700.00,EURO GROUP UK.
Children and Young Peoples Services,Head of Education and Skills,Supplies and Services,338094,Services,02/07/2019,3610146-5102527,623.55,EXCEL ACADEMY PARTNERSHIP T/A FRAMWELLGATE SCHOOL DURHAM.
Children and Young Peoples Services,Head of Education and Skills,Supplies and Services,338094,Services,02/07/2019,3610146-5102536,676.60,EXCEL ACADEMY PARTNERSHIP T/A FRAMWELLGATE SCHOOL DURHAM.
Regeneration and Local Services,Environmental Services,Premises,108099,Service Repairs and Maintenance,02/07/2019,3610150-130251/02,"5,200.00",FAIRHURST (CONSULTING ENGINEERS).
Children and Young Peoples Services,Head of Education and Skills,Transport,235005,Public Transport,02/07/2019,3610169-69719,960.00,GO GATESHEAD LTD.
Regeneration and Local Services,Technical Services CM0300,Construction work A908,908105,Construction work,02/07/2019,3610186-23014,"5,933.50",JACK COUPE & SONS LTD T/A COUPE LINE.
Regeneration and Local Services,Technical Services CM0300,Construction work A908,908105,Construction work,02/07/2019,3610186-23017,"1,688.72",JACK COUPE & SONS LTD T/A COUPE LINE.
Regeneration and Local Services,Environmental Services,Construction work A908,908105,Construction work,02/07/2019,3610194-194,"2,725.00",JN KEARTON.
Regeneration and Local Services,Technical Services CM0300,Supplies and Services,304221,Equipment and Materials,02/07/2019,3610198-BII289836,521.72,JT DOVE LTD.
Regeneration and Local Services,Technical Services CM0300,Supplies and Services,304221,Equipment and Materials,02/07/2019,3610198-BII290351,718.12,JT DOVE LTD.
Regeneration and Local Services,Technical Services CM0300,Supplies and Services,304358,Equipment and Materials,02/07/2019,3610219-MS1669,502.20,M SPENCE SURFACING LTD.
Children and Young Peoples Services,Head of Education and Skills,Transport,230007,Contract Hire,02/07/2019,3610220-5781,816.00,MAKEPEACE MOTORS.
Regeneration and Local Services,Business Durham CL0850,Supplies and Services,304259,Equipment and Materials,02/07/2019,3610234-2019039737,557.95,NEOPOST FINANCE LTD.
Resources BK0010,Digital and Customer Services,Supplies and Services,342051,Computers and Communications,02/07/2019,3610247-1707723,"38,725.51",ORACLE CORPORATION UK LTD.
Regeneration and Local Services,Corporate Property and Land,Third Party Payments 4THIRD,430100,Rendered by Private Contractors,02/07/2019,3610250-2082,660.00,PARAMOUNT CEILINGS & PARTITIONS.
Regeneration and Local Services,Technical Services CM0300,Stock A926,926900,Stock in hand-Inventory system,02/07/2019,3610252-437774695,"5,121.60",PARKER MERCHANTING LTD.
Regeneration and Local Services,Corporate Property and Land,Third Party Payments 4THIRD,430100,Rendered by Private Contractors,02/07/2019,3610258-5530,"1,532.20",PINKNEY BUILDING CONTRACTORS LTD.
Regeneration and Local Services,EnvironmentHealth & Consumer Protection,Third Party Payments 4THIRD,430100,Rendered by Private Contractors,02/07/2019,3610264-IN-19-WP-001379,790.49,PUBLIC ANALYST SCIENTIFIC SERVICES LTD.
Transformation and Partnerships,Communications Management,Supplies and Services,336005,Advertising E336,02/07/2019,3610268-4798241,950.00,REACH PUBLISHING SERVICES LTD.
Regeneration and Local Services,Business Durham CL0850,Supplies and Services,352001,Conference Expenses,02/07/2019,3610268-4800971,"1,028.57",REACH PUBLISHING SERVICES LTD.
Regeneration and Local Services,Technical Services CM0300,Supplies and Services,304358,Equipment and Materials,02/07/2019,3610279-2321,"1,796.50",S & R LANDSCAPES.
Regeneration and Local Services,Technical Services CM0300,Third Party Payments 4THIRD,430127,Rendered by Private Contractors,02/07/2019,3610279-2328,500.00,S & R LANDSCAPES.
Regeneration and Local Services,Corporate Property and Land,Third Party Payments 4THIRD,430100,Rendered by Private Contractors,02/07/2019,3610280-4847,500.00,SAFE STRIP UK LTD.
Children and Young Peoples Services,Head of Education and Skills,Transport,230003,Contract Hire,02/07/2019,3610283-2897-3310,"1,200.00",SCARLET BAND BUS & COACH LTD.
Children and Young Peoples Services,Head of Education and Skills,Transport,230003,Contract Hire,02/07/2019,3610283-2900-3310,"2,040.00",SCARLET BAND BUS & COACH LTD.
Regeneration and Local Services,Technical Services CM0300,Third Party Payments 4THIRD,430100,Rendered by Private Contractors,02/07/2019,3610300-118506,"1,359.92",STONEGRAVE AGGREGATES LTD.
Regeneration and Local Services,Technical Services CM0300,Third Party Payments 4THIRD,430100,Rendered by Private Contractors,02/07/2019,3610300-118552,"2,517.76",STONEGRAVE AGGREGATES LTD.
Children and Young Peoples Services,Head of Childrens Social Care,Third Party Payments 4THIRD,486044,Service level agreements E486,02/07/2019,3610309-4810015904,"4,062.00",TEES ESK & WEAR VALLEYS NHS FOUNDATION TRUST.
Children and Young Peoples Services,Head of Childrens Social Care,Third Party Payments 4THIRD,486044,Service level agreements E486,02/07/2019,3610309-4810016101,"4,062.00",TEES ESK & WEAR VALLEYS NHS FOUNDATION TRUST.
Regeneration and Local Services,Corporate Property and Land,Supplies and Services,372009,Subscriptions E372,02/07/2019,3610320-42763,"3,498.25",UK TELEMATICS LTD.
Regeneration and Local Services,Technical Services CM0300,Third Party Payments 4THIRD,430100,Rendered by Private Contractors,02/07/2019,3610050-001760,"2,310.00",USE (211692) A PARRY MOBILE WELDING & FABRICATION.
Regeneration and Local Services,Technical Services CM0300,Supplies and Services,304221,Equipment and Materials,02/07/2019,3610050-001762,"1,247.40",USE (211692) A PARRY MOBILE WELDING & FABRICATION.
Regeneration and Local Services,Culture Sport and Tourism,Supplies and Services,338047,Services,02/07/2019,3610325-1756141,819.00,WALT DISNEY CO LTD.
Regeneration and Local Services,Transport and Contracted Services,Third Party Payments 4THIRD,430100,Rendered by Private Contractors,03/07/2019,3610337-4667,"8,156.00",(DVCT) DENE VALLEY COMMUNITY TRANSPORT LTD.
Regeneration and Local Services,Technical Services CM0300,Supplies and Services,304221,Equipment and Materials,03/07/2019,3610348-28320381,693.68,AGGREGATE INDUSTRIES UK LTD.
Regeneration and Local Services,Technical Services CM0300,Supplies and Services,304221,Equipment and Materials,03/07/2019,3610348-28327723,"3,442.88",AGGREGATE INDUSTRIES UK LTD.
Regeneration and Local Services,Technical Services CM0300,Supplies and Services,304221,Equipment and Materials,03/07/2019,3610348-28377308,719.28,AGGREGATE INDUSTRIES UK LTD.
Regeneration and Local Services,Technical Services CM0300,Supplies and Services,304221,Equipment and Materials,03/07/2019,3610348-28377309,976.72,AGGREGATE INDUSTRIES UK LTD.
Regeneration and Local Services,Technical Services CM0300,Supplies and Services,304221,Equipment and Materials,03/07/2019,3610348-28377311,"1,118.74",AGGREGATE INDUSTRIES UK LTD.
Regeneration and Local Services,Technical Services CM0300,Supplies and Services,384199,Miscellaneous Expenses,03/07/2019,3610353-SI-204,"2,250.00",ALLAN`S MAGIC EVENTS LTD.
Dedicated Schools Grant BG0015,DSG Early Years Block,Transfer Payments,510030,School Children,03/07/2019,3610358-14488,548.44,ALYSON LONGSTAFF (CHILDMINDER).
Adult and Health Services,Commissioning inc Supporting People,Third Party Payments 4THIRD,442002,Supporting People E442,03/07/2019,3610600-1969292,"3,297.48",ANCHOR HANOVER GROUP.
Dedicated Schools Grant BG0015,DSG Early Years Block,Transfer Payments,510030,School Children,03/07/2019,3610363-14490,"1,362.07",ANGELA CHROSTOWSKI (CHILDMINDER).
Dedicated Schools Grant BG0015,DSG Early Years Block,Transfer Payments,510030,School Children,03/07/2019,3610366-14495,"1,877.62",ANGELA PROCTOR..
Regeneration and Local Services,Culture Sport and Tourism,Supplies and Services,384199,Miscellaneous Expenses,03/07/2019,3610369-2019/16,"2,229.40",ANGELLICA BELL (CELEBRITY CHEF).
Dedicated Schools Grant BG0015,DSG Early Years Block,Transfer Payments,510030,School Children,03/07/2019,3610371-14500,938.44,ANN GRAY (CHILDMINDER).
Dedicated Schools Grant BG0015,DSG Early Years Block,Transfer Payments,510032,School Children,03/07/2019,3610372-14274,994.50,ANN ROBSON.
Dedicated Schools Grant BG0015,DSG Early Years Block,Transfer Payments,510030,School Children,03/07/2019,3610373-14499,"1,313.81",ANN SMITH T/A ANN`S ANGELS.
Dedicated Schools Grant BG0015,DSG Early Years Block,Transfer Payments,510032,School Children,03/07/2019,3610375-14277,573.75,ANNMARIE HURTON.
Regeneration and Local Services,Technical Services CM0300,Third Party Payments 4THIRD,430100,Rendered by Private Contractors,03/07/2019,3610385-19020834,"56,152.17",ATKINS GLOBAL.
Regeneration and Local Services,Technical Services CM0300,Third Party Payments 4THIRD,430100,Rendered by Private Contractors,03/07/2019,3610385-19025246,"36,416.37",ATKINS GLOBAL.
Dedicated Schools Grant BG0015,DSG Early Years Block,Transfer Payments,510030,School Children,03/07/2019,3610387-14503,"2,357.55",AYCLIFFE DAY NURSERY.
Regeneration and Local Services,Corporate Property and Land,Supplies and Services,372009,Subscriptions E372,03/07/2019,3610389-HV006913,"2,723.68",B&ES.
Regeneration and Local Services,Environmental Services,Supplies and Services,384199,Miscellaneous Expenses,03/07/2019,3610390-13039,"44,487.83",BARKER & BLAND LTD.
Adult and Health Services,Public Health CC0450,Third Party Payments 4THIRD,460803,Contract Payments,03/07/2019,3610391-141009144,"17,500.00",BARNARDO SERVICES LTD.
Adult and Health Services,Commissioning inc Supporting People,Third Party Payments 4THIRD,442002,Supporting People E442,03/07/2019,3610396-1969267,"16,448.04",BID SERVICES.
Dedicated Schools Grant BG0015,DSG Early Years Block,Transfer Payments,510032,School Children,03/07/2019,3610399-14280,"2,933.77",BISHOP AUCKLAND COLLEGE NURSERY.
Dedicated Schools Grant BG0015,DSG Early Years Block,Transfer Payments,510030,School Children,03/07/2019,3610399-14505,"7,361.29",BISHOP AUCKLAND COLLEGE NURSERY.
Dedicated Schools Grant BG0015,DSG Early Years Block,Transfer Payments,510030,School Children,03/07/2019,3610400-14506,"3,385.46",BISHOP IAN RAMSEY PRE SCHOOL.
Regeneration and Local Services,Transport and Contracted Services,Supplies and Services,384540,Miscellaneous Expenses,03/07/2019,3610401-09380,"1,920.80",BISSELL DISPLAY.
Dedicated Schools Grant BG0015,DSG Early Years Block,Transfer Payments,510032,School Children,03/07/2019,3610403-14378,"4,016.25",BLUE SKY CHILDCARE.
Dedicated Schools Grant BG0015,DSG Early Years Block,Transfer Payments,510030,School Children,03/07/2019,3610403-14657,"12,866.25",BLUE SKY CHILDCARE.
Dedicated Schools Grant BG0015,DSG Early Years Block,Transfer Payments,510030,School Children,03/07/2019,3610405-14507,"4,676.40",BOW SCHOOL & NURSERY.
Dedicated Schools Grant BG0015,DSG Early Years Block,Transfer Payments,510030,School Children,03/07/2019,3610406-14508,"3,730.35",BOWES PRE SCHOOL.
Dedicated Schools Grant BG0015,DSG Early Years Block,Transfer Payments,510032,School Children,03/07/2019,3610411-14284,"5,967.00",BRIGHT STAR NURSERY.
Dedicated Schools Grant BG0015,DSG Early Years Block,Transfer Payments,510030,School Children,03/07/2019,3610411-14512,"26,291.85",BRIGHT STAR NURSERY.
Regeneration and Local Services,Development and Housing,Premises,145023,Cleaning and Domestic Supplies,03/07/2019,3610415-INV248632,"1,984.00",BROXAP LTD.
Dedicated Schools Grant BG0015,DSG Early Years Block,Transfer Payments,510032,School Children,03/07/2019,3610416-14285,"1,740.37",BUDDIES CHILDCARE CENTRE.
Dedicated Schools Grant BG0015,DSG Early Years Block,Transfer Payments,510030,School Children,03/07/2019,3610416-14513,"7,526.32",BUDDIES CHILDCARE CENTRE.
Dedicated Schools Grant BG0015,DSG Early Years Block,Transfer Payments,510032,School Children,03/07/2019,3610418-14286,"9,696.37",BUSY BEARS LTD.
Dedicated Schools Grant BG0015,DSG Early Years Block,Transfer Payments,510030,School Children,03/07/2019,3610418-14514,"32,388.60",BUSY BEARS LTD.
Dedicated Schools Grant BG0015,DSG Early Years Block,Transfer Payments,510032,School Children,03/07/2019,3610419-14287,"5,729.85",BUSY BEES (DURHAM) LTD.
Dedicated Schools Grant BG0015,DSG Early Years Block,Transfer Payments,510030,School Children,03/07/2019,3610419-14515,"46,581.70",BUSY BEES (DURHAM) LTD.
Dedicated Schools Grant BG0015,DSG Early Years Block,Transfer Payments,510032,School Children,03/07/2019,3610420-14283,994.50,BUSY BODIES CHILDCARE.
Dedicated Schools Grant BG0015,DSG Early Years Block,Transfer Payments,510030,School Children,03/07/2019,3610420-14510,"10,684.80",BUSY BODIES CHILDCARE.
Dedicated Schools Grant BG0015,DSG Early Years Block,Transfer Payments,510030,School Children,03/07/2019,3610421-14516,"1,726.35",BUTTERFLIES DAY CARE.
Dedicated Schools Grant BG0015,DSG Early Years Block,Transfer Payments,510032,School Children,03/07/2019,3610423-14289,"5,068.12",BYERLEY ROAD PRE SCHOOL.
Dedicated Schools Grant BG0015,DSG Early Years Block,Transfer Payments,510030,School Children,03/07/2019,3610423-14517,"7,691.40",BYERLEY ROAD PRE SCHOOL.
Regeneration and Local Services,Culture Sport and Tourism,Premises,145023,Cleaning and Domestic Supplies,03/07/2019,3610425-CN19925980,587.34,CANNON HYGIENE LTD.
Dedicated Schools Grant BG0015,DSG Early Years Block,Transfer Payments,510032,School Children,03/07/2019,3610428-14290,994.50,CAROL WOODHEAD.
Dedicated Schools Grant BG0015,DSG Early Years Block,Transfer Payments,510032,School Children,03/07/2019,3610429-14291,"1,740.37",CAROLINE ORD..
Dedicated Schools Grant BG0015,DSG Early Years Block,Transfer Payments,510032,School Children,03/07/2019,3610435-14292,"6,598.12",CASTLE KINDERGARTEN LTD.
Dedicated Schools Grant BG0015,DSG Early Years Block,Transfer Payments,510030,School Children,03/07/2019,3610435-14523,"11,706.75",CASTLE KINDERGARTEN LTD.
Dedicated Schools Grant BG0015,DSG Early Years Block,Transfer Payments,510032,School Children,03/07/2019,3610436-14293,"2,128.42",CASTLE VIEW PRIVATE DAY NURSERY LTD.
Dedicated Schools Grant BG0015,DSG Early Years Block,Transfer Payments,510030,School Children,03/07/2019,3610436-14524,"34,623.56",CASTLE VIEW PRIVATE DAY NURSERY LTD.
Dedicated Schools Grant BG0015,DSG Early Years Block,Transfer Payments,510030,School Children,03/07/2019,3610445-14528,"15,490.02",CHILTON ACADEMY.
Dedicated Schools Grant BG0015,DSG Early Years Block,Transfer Payments,510030,School Children,03/07/2019,3610447-14729,"4,167.62",CHORISTER SCHOOL.
Dedicated Schools Grant BG0015,DSG Early Years Block,Transfer Payments,510030,School Children,03/07/2019,3610456-14532,513.50,CLARE SWARBRICK (CHILD MINDER).
Dedicated Schools Grant BG0015,DSG Early Years Block,Transfer Payments,510032,School Children,03/07/2019,3610457-14298,"1,281.37",CLARE WOODLAND (CHILDMINDER).
Dedicated Schools Grant BG0015,DSG Early Years Block,Transfer Payments,510030,School Children,03/07/2019,3610457-14533,"1,022.38",CLARE WOODLAND (CHILDMINDER).
Dedicated Schools Grant BG0015,DSG Early Years Block,Transfer Payments,510032,School Children,03/07/2019,3610460-14248,841.50,CLEVER CLOGS DAY NURSERIES LTD.
Dedicated Schools Grant BG0015,DSG Early Years Block,Transfer Payments,510032,School Children,03/07/2019,3610460-14299,"5,718.37",CLEVER CLOGS DAY NURSERIES LTD.
Dedicated Schools Grant BG0015,DSG Early Years Block,Transfer Payments,510030,School Children,03/07/2019,3610461-14534,"14,787.45",CLEVER CLOGS DAY NURSERIES LTD.
Dedicated Schools Grant BG0015,DSG Early Years Block,Transfer Payments,510032,School Children,03/07/2019,3610462-14300,"1,989.00",CLEVER CLOGS DAY NURSERY (DURHAM) LTD.
Dedicated Schools Grant BG0015,DSG Early Years Block,Transfer Payments,510030,School Children,03/07/2019,3610462-14535,"20,450.79",CLEVER CLOGS DAY NURSERY (DURHAM) LTD.
Dedicated Schools Grant BG0015,DSG Early Years Block,Transfer Payments,510030,School Children,03/07/2019,3610463-14536,"30,543.75",CLEVES CROSS ACADEMY.
Dedicated Schools Grant BG0015,DSG Early Years Block,Transfer Payments,510030,School Children,03/07/2019,3610470-14537,"3,319.00",CONKERS LIFE LTD (NURSERY SCHOOL).
Dedicated Schools Grant BG0015,DSG Early Years Block,Transfer Payments,510032,School Children,03/07/2019,3610474-14337,"3,614.62",CORE CARE EVENWOOD LTD.
Dedicated Schools Grant BG0015,DSG Early Years Block,Transfer Payments,510030,School Children,03/07/2019,3610474-14591,"1,643.36",CORE CARE EVENWOOD LTD.
Dedicated Schools Grant BG0015,DSG Early Years Block,Transfer Payments,510032,School Children,03/07/2019,3610475-14338,"1,989.00",CORECARE FISHBURN LTD.
Dedicated Schools Grant BG0015,DSG Early Years Block,Transfer Payments,510030,School Children,03/07/2019,3610475-14592,"4,050.41",CORECARE FISHBURN LTD.
Dedicated Schools Grant BG0015,DSG Early Years Block,Transfer Payments,510032,School Children,03/07/2019,3610476-14340,"13,234.50",CORECARE NA LTD.
Dedicated Schools Grant BG0015,DSG Early Years Block,Transfer Payments,510030,School Children,03/07/2019,3610476-14594,"13,441.12",CORECARE NA LTD.
Dedicated Schools Grant BG0015,DSG Early Years Block,Transfer Payments,510030,School Children,03/07/2019,3610481-14539,"1,536.02",COTHERSTONE PRE SCHOOL PLAYGROUP.
Dedicated Schools Grant BG0015,DSG Early Years Block,Transfer Payments,510032,School Children,03/07/2019,3610482-14303,"1,160.25",COUNDON & LEEHOLME EARLY YEARS CENTRE LTD.
Dedicated Schools Grant BG0015,DSG Early Years Block,Transfer Payments,510030,School Children,03/07/2019,3610482-14540,"9,045.40",COUNDON & LEEHOLME EARLY YEARS CENTRE LTD.
Dedicated Schools Grant BG0015,DSG Early Years Block,Transfer Payments,510032,School Children,03/07/2019,3610485-14304,"2,008.12",CRAGHEAD CHILDCARE CENTRE.
Dedicated Schools Grant BG0015,DSG Early Years Block,Transfer Payments,510032,School Children,03/07/2019,3610485-14305,"3,813.52",CRAGHEAD CHILDCARE CENTRE.
Dedicated Schools Grant BG0015,DSG Early Years Block,Transfer Payments,510030,School Children,03/07/2019,3610485-14541,"2,109.90",CRAGHEAD CHILDCARE CENTRE.
Dedicated Schools Grant BG0015,DSG Early Years Block,Transfer Payments,510030,School Children,03/07/2019,3610485-14542,"13,851.00",CRAGHEAD CHILDCARE CENTRE.
Adult and Health Services,Commissioning inc Supporting People,Third Party Payments 4THIRD,442002,Supporting People E442,03/07/2019,3610488-1969247,"19,868.48",CREATIVE SUPPORT LTD.
Dedicated Schools Grant BG0015,DSG Early Years Block,Transfer Payments,510032,School Children,03/07/2019,3610495-14306,"1,491.75",DAWN TILL DUSK CHILDCARE.
Dedicated Schools Grant BG0015,DSG Early Years Block,Transfer Payments,510032,School Children,03/07/2019,3610498-14436,"6,108.30",DAYPARK LTD T/A YELLOW WELLIES.
Dedicated Schools Grant BG0015,DSG Early Years Block,Transfer Payments,510030,School Children,03/07/2019,3610498-14754,"26,572.12",DAYPARK LTD T/A YELLOW WELLIES.
Dedicated Schools Grant BG0015,DSG Early Years Block,Transfer Payments,510032,School Children,03/07/2019,3610499-14435,"18,211.34",DAYPARK LTD T/A YELLOW WELLIES.
Dedicated Schools Grant BG0015,DSG Early Years Block,Transfer Payments,510030,School Children,03/07/2019,3610499-14753,"22,093.57",DAYPARK LTD T/A YELLOW WELLIES.
Dedicated Schools Grant BG0015,DSG Early Years Block,Transfer Payments,510030,School Children,03/07/2019,3610500-14548,832.50,DEBORAH HOUGHTON.
Regeneration and Local Services,Environmental Services,Transport,210057,Repair and Maintenance of Vehicles,03/07/2019,3610505-96374144,"2,625.68",DENNIS EAGLE LTD T/A TERBERG MATEC (UK) LTD.
Regeneration and Local Services,Environmental Services,Transport,210057,Repair and Maintenance of Vehicles,03/07/2019,3610505-96374393,"1,857.79",DENNIS EAGLE LTD T/A TERBERG MATEC (UK) LTD.
Dedicated Schools Grant BG0015,DSG Early Years Block,Transfer Payments,510030,School Children,03/07/2019,3610511-14554,790.87,DIANE WATSON (CHILDMINDER).
Dedicated Schools Grant BG0015,DSG Early Years Block,Transfer Payments,510030,School Children,03/07/2019,3610513-14555,"18,018.40",DO RE MI DAY NURSERY.
Resources BK0010,Legal & Democratic Services,Supplies and Services,338101,Services,03/07/2019,3610515-MAY2019,"1,200.00",DR DCA SENADHIRA.
Adult and Health Services,Commissioning inc Supporting People,Third Party Payments 4THIRD,441001,Supporting People E441,03/07/2019,3610517-1969295,"20,819.76",DURHAM ACTION ON SINGLE HOUSING LTD.
Adult and Health Services,Commissioning inc Supporting People,Third Party Payments 4THIRD,443001,Supporting People E443,03/07/2019,3610517-1969298,"4,427.76",DURHAM ACTION ON SINGLE HOUSING LTD.
Regeneration and Local Services,Culture Sport and Tourism,Supplies and Services,384199,Miscellaneous Expenses,03/07/2019,3610522-SI-316,"4,500.00",DURHAM SCENIC WORKSHOPS LTD.
Dedicated Schools Grant BG0015,DSG Early Years Block,Transfer Payments,510032,School Children,03/07/2019,3610525-14313,"2,409.75",EARLY LEARNERS PRIVATE DAY NURSERY.
Dedicated Schools Grant BG0015,DSG Early Years Block,Transfer Payments,510030,School Children,03/07/2019,3610525-14558,671.30,EARLY LEARNERS PRIVATE DAY NURSERY.
Dedicated Schools Grant BG0015,DSG Early Years Block,Transfer Payments,510032,School Children,03/07/2019,3610526-14392,"1,319.62",EAST DURHAM COLLEGE.
Dedicated Schools Grant BG0015,DSG Early Years Block,Transfer Payments,510030,School Children,03/07/2019,3610526-14684,"7,493.10",EAST DURHAM COLLEGE.
Adult and Health Services,Commissioning inc Supporting People,Third Party Payments 4THIRD,441001,Supporting People E441,03/07/2019,3610527-1969265,"5,483.40",EAST DURHAM COMMUNITY INITIATIVES LTD.
Regeneration and Local Services,Corporate Property and Land,Third Party Payments 4THIRD,430100,Rendered by Private Contractors,03/07/2019,3610530-1804,"8,792.96",ECO FACILITIES SOLUTIONS LTD.
Dedicated Schools Grant BG0015,DSG Early Years Block,Transfer Payments,510032,School Children,03/07/2019,3610531-14314,"1,243.12",EDEN GARDEN NURSERY.
Dedicated Schools Grant BG0015,DSG Early Years Block,Transfer Payments,510030,School Children,03/07/2019,3610531-14559,"11,114.35",EDEN GARDEN NURSERY.
Dedicated Schools Grant BG0015,DSG Early Years Block,Transfer Payments,510032,School Children,03/07/2019,3610544-14317,745.51,EMERALDS LITTLE GEMS DAYCARE LTD.
Dedicated Schools Grant BG0015,DSG Early Years Block,Transfer Payments,510032,School Children,03/07/2019,3610544-14318,"13,332.57",EMERALDS LITTLE GEMS DAYCARE LTD.
Dedicated Schools Grant BG0015,DSG Early Years Block,Transfer Payments,510030,School Children,03/07/2019,3610544-14564,"14,531.36",EMERALDS LITTLE GEMS DAYCARE LTD.
Dedicated Schools Grant BG0015,DSG Early Years Block,Transfer Payments,510030,School Children,03/07/2019,3610544-14565,"43,538.74",EMERALDS LITTLE GEMS DAYCARE LTD.
Regeneration and Local Services,Environmental Services,Transport,230005,Contract Hire,03/07/2019,3610547-8152581,"1,305.00",ENTERPRISE FLEX-E-RENT T/A BURNT TREE GROUP LTD.
Regeneration and Local Services,Environmental Services,Transport,230005,Contract Hire,03/07/2019,3610547-8152585,"1,097.65",ENTERPRISE FLEX-E-RENT T/A BURNT TREE GROUP LTD.
Regeneration and Local Services,Environmental Services,Transport,230005,Contract Hire,03/07/2019,3610547-8152604,908.40,ENTERPRISE FLEX-E-RENT T/A BURNT TREE GROUP LTD.
Regeneration and Local Services,Technical Services CM0300,Third Party Payments 4THIRD,430100,Rendered by Private Contractors,03/07/2019,3610548-SI-334,"1,000.00",ENVIROROD LTD.
Regeneration and Local Services,Technical Services CM0300,Supplies and Services,304221,Equipment and Materials,03/07/2019,3610549-1904\308,632.76,EPPLETON QUARRY PRODUCTS LTD.
Regeneration and Local Services,Technical Services CM0300,Supplies and Services,304221,Equipment and Materials,03/07/2019,3610549-1906\091,"1,577.92",EPPLETON QUARRY PRODUCTS LTD.
Dedicated Schools Grant BG0015,DSG Early Years Block,Transfer Payments,510032,School Children,03/07/2019,3610552-14319,"3,978.00",EXPLORERS DAY CARE.
Dedicated Schools Grant BG0015,DSG Early Years Block,Transfer Payments,510030,School Children,03/07/2019,3610552-14567,"25,863.45",EXPLORERS DAY CARE.
Regeneration and Local Services,Corporate Property and Land,Supplies and Services,338027,Services,03/07/2019,3610554-132417/01,"1,245.00",FAIRHURST (CONSULTING ENGINEERS).
Adult and Health Services,Head of Adults,Supplies and Services,384616,Miscellaneous Expenses,03/07/2019,3610555-001248,"3,101.85",FALCON HOUSING ASSOCIATION CIC.
Dedicated Schools Grant BG0015,DSG Early Years Block,Transfer Payments,510030,School Children,03/07/2019,3610561-14568,"2,102.10",FIRST FOUR KIDZ CHILDCARE.
Dedicated Schools Grant BG0015,DSG Early Years Block,Transfer Payments,510030,School Children,03/07/2019,3610562-14569,"8,215.35",FIRST STEPS NURSERY.
Children and Young Peoples Services,Head of Childrens Social Care,Supplies and Services,338044,Services,03/07/2019,3610564-40447,517.00,FORENSIC TESTING SERVICE LTD.
Adult and Health Services,Commissioning inc Supporting People,Third Party Payments 4THIRD,442002,Supporting People E442,03/07/2019,3610565-1969294,"19,776.44",FOUNDATION.
Adult and Health Services,Commissioning inc Supporting People,Third Party Payments 4THIRD,442002,Supporting People E442,03/07/2019,3610565-1969318,"3,567.12",FOUNDATION.
Dedicated Schools Grant BG0015,DSG Early Years Block,Transfer Payments,510030,School Children,03/07/2019,3610579-14574,"5,418.07",GIANT STEPS LTD.
Dedicated Schools Grant BG0015,DSG Early Years Block,Transfer Payments,510032,School Children,03/07/2019,3610580-14324,"3,821.17",GIANT STEPS LTD.
Dedicated Schools Grant BG0015,DSG Early Years Block,Transfer Payments,510030,School Children,03/07/2019,3610580-14573,"8,674.76",GIANT STEPS LTD.
Dedicated Schools Grant BG0015,DSG Early Years Block,Transfer Payments,510032,School Children,03/07/2019,3610581-14323,"1,453.50",GIANT STEPS LTD.
Dedicated Schools Grant BG0015,DSG Early Years Block,Transfer Payments,510030,School Children,03/07/2019,3610581-14572,"8,448.54",GIANT STEPS LTD.
Dedicated Schools Grant BG0015,DSG Early Years Block,Transfer Payments,510032,School Children,03/07/2019,3610582-14322,"4,226.62",GIANT STEPS LTD.
Dedicated Schools Grant BG0015,DSG Early Years Block,Transfer Payments,510030,School Children,03/07/2019,3610582-14571,"10,937.82",GIANT STEPS LTD.
Dedicated Schools Grant BG0015,DSG Early Years Block,Transfer Payments,510032,School Children,03/07/2019,3610590-14326,"1,602.67",GREEN LANE NURSERY & CHILDCARE CENTRE.
Dedicated Schools Grant BG0015,DSG Early Years Block,Transfer Payments,510030,School Children,03/07/2019,3610590-14578,"15,573.15",GREEN LANE NURSERY & CHILDCARE CENTRE.
Dedicated Schools Grant BG0015,DSG Early Years Block,Transfer Payments,510032,School Children,03/07/2019,3610601-14327,"2,734.87",HAPPY TIMES DAYCARE LTD.
Dedicated Schools Grant BG0015,DSG Early Years Block,Transfer Payments,510032,School Children,03/07/2019,3610602-14282,"1,262.25",HAPPYTIMES DAYCARE.
Adult and Health Services,Public Health CC0450,Third Party Payments 4THIRD,460803,Contract Payments,03/07/2019,105-DCC001-07/05/19,"484,801.00",HARBOUR SUPPORT SERVICES.
Adult and Health Services,Commissioning inc Supporting People,Third Party Payments 4THIRD,441001,Supporting People E441,03/07/2019,3610603-1969248,"18,082.80",HARBOUR SUPPORT SERVICES.
Dedicated Schools Grant BG0015,DSG Early Years Block,Transfer Payments,510032,School Children,03/07/2019,3610607-14328,"5,144.62",HARTSIDE PRIMARY ACADEMY.
Dedicated Schools Grant BG0015,DSG Early Years Block,Transfer Payments,510030,School Children,03/07/2019,3610607-14579,"8,171.32",HARTSIDE PRIMARY ACADEMY.
Dedicated Schools Grant BG0015,DSG Early Years Block,Transfer Payments,510030,School Children,03/07/2019,3610608-14877,"1,309.62",HAYLEY KEELTY (CHILDMINDER).
Dedicated Schools Grant BG0015,DSG Early Years Block,Transfer Payments,510030,School Children,03/07/2019,3610609-14581,638.14,HAYLEY PENEYCAD.
Dedicated Schools Grant BG0015,DSG Early Years Block,Transfer Payments,510032,School Children,03/07/2019,3610611-14330,"3,805.87",HAYSTACKS NURSERY..
Dedicated Schools Grant BG0015,DSG Early Years Block,Transfer Payments,510030,School Children,03/07/2019,3610611-14582,"8,778.35",HAYSTACKS NURSERY..
Dedicated Schools Grant BG0015,DSG Early Years Block,Transfer Payments,510032,School Children,03/07/2019,3610612-14331,"1,319.62",HAZEL DENE CHILDCARE LTD.
Dedicated Schools Grant BG0015,DSG Early Years Block,Transfer Payments,510030,School Children,03/07/2019,3610612-14583,"4,541.06",HAZEL DENE CHILDCARE LTD.
Dedicated Schools Grant BG0015,DSG Early Years Block,Transfer Payments,510030,School Children,03/07/2019,3610617-14585,750.75,HELEN MUIRHEAD (CHILDMINDER).
Dedicated Schools Grant BG0015,DSG Early Years Block,Transfer Payments,510030,School Children,03/07/2019,3610618-14586,902.85,HELEN PROW.
Regeneration and Local Services,Environmental Services,Supplies and Services,304221,Equipment and Materials,03/07/2019,3610621-1519002901.,"4,820.00",HIAB LTD.
Dedicated Schools Grant BG0015,DSG Early Years Block,Transfer Payments,510032,School Children,03/07/2019,3610623-14334,"3,193.87",HIPPITOTS LTD.
Dedicated Schools Grant BG0015,DSG Early Years Block,Transfer Payments,510030,School Children,03/07/2019,3610623-14588,"11,393.40",HIPPITOTS LTD.
Adult and Health Services,Commissioning inc Supporting People,Third Party Payments 4THIRD,442002,Supporting People E442,03/07/2019,3610627-1969245,"113,942.68",HOME GROUP LTD FORMERLY STONHAM HOUSING ASSOCIATION LTD.
Adult and Health Services,Commissioning inc Supporting People,Third Party Payments 4THIRD,443001,Supporting People E443,03/07/2019,3610627-1969269,836.16,HOME GROUP LTD FORMERLY STONHAM HOUSING ASSOCIATION LTD.
Adult and Health Services,Commissioning inc Supporting People,Third Party Payments 4THIRD,442002,Supporting People E442,03/07/2019,3610627-1969309,"27,962.72",HOME GROUP LTD FORMERLY STONHAM HOUSING ASSOCIATION LTD.
Adult and Health Services,Commissioning inc Supporting People,Third Party Payments 4THIRD,441001,Supporting People E441,03/07/2019,3610627-1969310,"15,342.48",HOME GROUP LTD FORMERLY STONHAM HOUSING ASSOCIATION LTD.
Adult and Health Services,Commissioning inc Supporting People,Third Party Payments 4THIRD,441001,Supporting People E441,03/07/2019,3610627-1969312,"54,465.72",HOME GROUP LTD FORMERLY STONHAM HOUSING ASSOCIATION LTD.
Adult and Health Services,Commissioning inc Supporting People,Third Party Payments 4THIRD,443001,Supporting People E443,03/07/2019,3610627-1969314,"11,506.84",HOME GROUP LTD FORMERLY STONHAM HOUSING ASSOCIATION LTD.
Dedicated Schools Grant BG0015,DSG Early Years Block,Transfer Payments,510032,School Children,03/07/2019,3610630-14336,"2,180.25",HORDEN YOUTH & COMMUNITY CENTRE NURSERY.
Dedicated Schools Grant BG0015,DSG Early Years Block,Transfer Payments,510030,School Children,03/07/2019,3610630-14589,"13,588.05",HORDEN YOUTH & COMMUNITY CENTRE NURSERY.
Dedicated Schools Grant BG0015,DSG Early Years Block,Transfer Payments,510030,School Children,03/07/2019,3610631-14590,"29,846.70",HOUSE OF EDEN LTD.
Dedicated Schools Grant BG0015,DSG Early Years Block,Transfer Payments,510032,School Children,03/07/2019,3610632-14339,"6,579.00",HOUSE OF EDEN LTD.
Dedicated Schools Grant BG0015,DSG Early Years Block,Transfer Payments,510030,School Children,03/07/2019,3610632-14593,"12,899.92",HOUSE OF EDEN LTD.
Dedicated Schools Grant BG0015,DSG Early Years Block,Transfer Payments,510032,School Children,03/07/2019,3610634-14341,994.50,HOWDEN LE WEAR PRE SCHOOL LTD.
Dedicated Schools Grant BG0015,DSG Early Years Block,Transfer Payments,510030,School Children,03/07/2019,3610634-14595,"5,292.70",HOWDEN LE WEAR PRE SCHOOL LTD.
Dedicated Schools Grant BG0015,DSG Early Years Block,Transfer Payments,510030,School Children,03/07/2019,3610635-14596,"6,148.35",HOWLETCH & SHOTTON CHILDCARE LTD.
Dedicated Schools Grant BG0015,DSG Early Years Block,Transfer Payments,510032,School Children,03/07/2019,3610636-14342,"3,619.72",HOWLETCH & SHOTTON CHILDCARE LTD.
Dedicated Schools Grant BG0015,DSG Early Years Block,Transfer Payments,510030,School Children,03/07/2019,3610636-14597,"3,553.87",HOWLETCH & SHOTTON CHILDCARE LTD.
Adult and Health Services,Commissioning inc Supporting People,Third Party Payments 4THIRD,442002,Supporting People E442,03/07/2019,3610637-1969246,"5,668.48",HUMANKIND CHARITY.
Adult and Health Services,Commissioning inc Supporting People,Third Party Payments 4THIRD,442002,Supporting People E442,03/07/2019,3610637-1969291,"27,885.68",HUMANKIND CHARITY.
Regeneration and Local Services,Technical Services CM0300,Third Party Payments 4THIRD,460109,Contract Payments,03/07/2019,3610644-INS1750,"2,360.00",INSPECTORATE LTD T/A ROCH NDT SERVICES.
Regeneration and Local Services,Technical Services CM0300,Stock A926,926900,Stock in hand-Inventory system,03/07/2019,3610645-687328,"2,212.00",INSTARMAC GROUP PLC.
Regeneration and Local Services,Technical Services CM0300,Construction work A908,908105,Construction work,03/07/2019,3610652-23016,"1,186.37",JACK COUPE & SONS LTD T/A COUPE LINE.
Dedicated Schools Grant BG0015,DSG Early Years Block,Transfer Payments,510032,School Children,03/07/2019,3610654-14345,994.50,JACQUELINE ELLIOTT (CHILDMINDER).
Dedicated Schools Grant BG0015,DSG Early Years Block,Transfer Payments,510030,School Children,03/07/2019,3610656-14601,785.06,JACQUELINE KNOX.
Dedicated Schools Grant BG0015,DSG Early Years Block,Transfer Payments,510030,School Children,03/07/2019,3610657-14602,513.00,JAN AITCHISON.
Dedicated Schools Grant BG0015,DSG Early Years Block,Transfer Payments,510030,School Children,03/07/2019,3610659-14605,670.31,JANICE CROUCH.
Dedicated Schools Grant BG0015,DSG Early Years Block,Transfer Payments,510030,School Children,03/07/2019,3610661-14606,555.75,JAYNE EALES.
Dedicated Schools Grant BG0015,DSG Early Years Block,Transfer Payments,510032,School Children,03/07/2019,3610669-14307,"2,237.62",JOANNE HARDY T/A DAYBREAK NURSERY.
Dedicated Schools Grant BG0015,DSG Early Years Block,Transfer Payments,510030,School Children,03/07/2019,3610669-14544,"10,332.00",JOANNE HARDY T/A DAYBREAK NURSERY.
Dedicated Schools Grant BG0015,DSG Early Years Block,Transfer Payments,510032,School Children,03/07/2019,3610670-14349,612.00,JOANNE MULLANEY (CHILDMINDER).
Regeneration and Local Services,Technical Services CM0300,Supplies and Services,304358,Equipment and Materials,03/07/2019,3610671-29602,"1,184.00",JOHN R BUTTERFIELD LTD.
Regeneration and Local Services,Technical Services CM0300,Supplies and Services,304358,Equipment and Materials,03/07/2019,3610671-29618,826.00,JOHN R BUTTERFIELD LTD.
Regeneration and Local Services,Technical Services CM0300,Supplies and Services,304358,Equipment and Materials,03/07/2019,3610671-29619,744.00,JOHN R BUTTERFIELD LTD.
Regeneration and Local Services,Technical Services CM0300,Supplies and Services,304358,Equipment and Materials,03/07/2019,3610671-29620,678.50,JOHN R BUTTERFIELD LTD.
Regeneration and Local Services,Technical Services CM0300,Supplies and Services,304358,Equipment and Materials,03/07/2019,3610671-29622,992.00,JOHN R BUTTERFIELD LTD.
Regeneration and Local Services,Technical Services CM0300,Supplies and Services,304358,Equipment and Materials,03/07/2019,3610671-29624,928.00,JOHN R BUTTERFIELD LTD.
Regeneration and Local Services,Technical Services CM0300,Supplies and Services,304358,Equipment and Materials,03/07/2019,3610671-29638,"1,036.00",JOHN R BUTTERFIELD LTD.
Regeneration and Local Services,Technical Services CM0300,Supplies and Services,304358,Equipment and Materials,03/07/2019,3610671-29640,936.00,JOHN R BUTTERFIELD LTD.
Regeneration and Local Services,Technical Services CM0300,Supplies and Services,304358,Equipment and Materials,03/07/2019,3610671-29641,851.00,JOHN R BUTTERFIELD LTD.
Regeneration and Local Services,Technical Services CM0300,Supplies and Services,304358,Equipment and Materials,03/07/2019,3610671-29647,936.00,JOHN R BUTTERFIELD LTD.
Regeneration and Local Services,Technical Services CM0300,Supplies and Services,304358,Equipment and Materials,03/07/2019,3610671-29670,936.00,JOHN R BUTTERFIELD LTD.
Regeneration and Local Services,Technical Services CM0300,Supplies and Services,304358,Equipment and Materials,03/07/2019,3610671-29686,744.00,JOHN R BUTTERFIELD LTD.
Regeneration and Local Services,Technical Services CM0300,Supplies and Services,304358,Equipment and Materials,03/07/2019,3610671-29687,918.50,JOHN R BUTTERFIELD LTD.
Regeneration and Local Services,Technical Services CM0300,Supplies and Services,304358,Equipment and Materials,03/07/2019,3610671-29689,855.00,JOHN R BUTTERFIELD LTD.
Regeneration and Local Services,Technical Services CM0300,Supplies and Services,304358,Equipment and Materials,03/07/2019,3610671-29690,"1,196.00",JOHN R BUTTERFIELD LTD.
Regeneration and Local Services,Technical Services CM0300,Supplies and Services,304358,Equipment and Materials,03/07/2019,3610671-29691,768.00,JOHN R BUTTERFIELD LTD.
Regeneration and Local Services,Technical Services CM0300,Supplies and Services,304358,Equipment and Materials,03/07/2019,3610671-29706,936.00,JOHN R BUTTERFIELD LTD.
Regeneration and Local Services,Technical Services CM0300,Supplies and Services,304358,Equipment and Materials,03/07/2019,3610671-29707,"1,387.00",JOHN R BUTTERFIELD LTD.
Regeneration and Local Services,Technical Services CM0300,Supplies and Services,304358,Equipment and Materials,03/07/2019,3610671-29710,"1,020.00",JOHN R BUTTERFIELD LTD.
Regeneration and Local Services,Technical Services CM0300,Supplies and Services,304358,Equipment and Materials,03/07/2019,3610671-29711,593.00,JOHN R BUTTERFIELD LTD.
Regeneration and Local Services,Technical Services CM0300,Supplies and Services,304358,Equipment and Materials,03/07/2019,3610671-29713,699.00,JOHN R BUTTERFIELD LTD.
Regeneration and Local Services,Technical Services CM0300,Supplies and Services,304358,Equipment and Materials,03/07/2019,3610671-29714,"1,240.00",JOHN R BUTTERFIELD LTD.
Regeneration and Local Services,Technical Services CM0300,Supplies and Services,304358,Equipment and Materials,03/07/2019,3610671-29731,788.00,JOHN R BUTTERFIELD LTD.
Regeneration and Local Services,Technical Services CM0300,Supplies and Services,304358,Equipment and Materials,03/07/2019,3610671-29735,"1,311.00",JOHN R BUTTERFIELD LTD.
Regeneration and Local Services,Environmental Services,Transport,210057,Repair and Maintenance of Vehicles,03/07/2019,3610673-61747100,865.82,JOHNSTON SWEEPERS LTD.
Regeneration and Local Services,Environmental Services,Transport,210057,Repair and Maintenance of Vehicles,03/07/2019,3610673-61747101,"2,722.09",JOHNSTON SWEEPERS LTD.
Regeneration and Local Services,Culture Sport and Tourism,Supplies and Services,304259,Equipment and Materials,03/07/2019,3610674-939140,763.40,JP LENNARD LTD.
Regeneration and Local Services,Corporate Property and Land,Supplies and Services,304245,Equipment and Materials,03/07/2019,3610677-BII290664,"2,656.00",JT DOVE LTD.
Regeneration and Local Services,Corporate Property and Land,Supplies and Services,304221,Equipment and Materials,03/07/2019,3610677-GOI1673/D,"4,812.10",JT DOVE LTD.
Dedicated Schools Grant BG0015,DSG Early Years Block,Transfer Payments,510030,School Children,03/07/2019,3610680-14617,"1,099.80",JULIE MARIE GLASS.
Dedicated Schools Grant BG0015,DSG Early Years Block,Transfer Payments,510030,School Children,03/07/2019,3610682-14621,"1,155.37",KAREN DEAVILLE (CHILDMINDER).
Dedicated Schools Grant BG0015,DSG Early Years Block,Transfer Payments,510030,School Children,03/07/2019,3610683-14623,"1,540.50",KATHERINE ELIZABETH EDEN (CHILDMINDER).
Dedicated Schools Grant BG0015,DSG Early Years Block,Transfer Payments,510030,School Children,03/07/2019,3610686-14624,"1,980.22",KEELIE GREEN.
Dedicated Schools Grant BG0015,DSG Early Years Block,Transfer Payments,510032,School Children,03/07/2019,3610688-14354,"3,339.22",KELLOE PHOENIX CENTRE (CHILDCARE).
Dedicated Schools Grant BG0015,DSG Early Years Block,Transfer Payments,510030,School Children,03/07/2019,3610688-14625,"1,460.47",KELLOE PHOENIX CENTRE (CHILDCARE).
Regeneration and Local Services,Environmental Services,Supplies and Services,304221,Equipment and Materials,03/07/2019,3610693-112423,"2,355.13",KERNOCK PARK PLANTS LTD.
Dedicated Schools Grant BG0015,DSG Early Years Block,Transfer Payments,510030,School Children,03/07/2019,3610694-14627,"1,273.35",KERRY DODGSON.
Regeneration and Local Services,Technical Services CM0300,Supplies and Services,304358,Equipment and Materials,03/07/2019,3610696-2815,"1,292.25",KEVIN SNOWDON GROUNDWORKS LTD.
Regeneration and Local Services,Technical Services CM0300,Supplies and Services,304358,Equipment and Materials,03/07/2019,3610696-2826,897.00,KEVIN SNOWDON GROUNDWORKS LTD.
Regeneration and Local Services,Technical Services CM0300,Supplies and Services,304358,Equipment and Materials,03/07/2019,3610696-2828,874.00,KEVIN SNOWDON GROUNDWORKS LTD.
Regeneration and Local Services,Technical Services CM0300,Supplies and Services,304358,Equipment and Materials,03/07/2019,3610696-2829,666.00,KEVIN SNOWDON GROUNDWORKS LTD.
Regeneration and Local Services,Technical Services CM0300,Supplies and Services,304358,Equipment and Materials,03/07/2019,3610696-2830,897.00,KEVIN SNOWDON GROUNDWORKS LTD.
Regeneration and Local Services,Technical Services CM0300,Supplies and Services,304358,Equipment and Materials,03/07/2019,3610696-2831,"1,338.00",KEVIN SNOWDON GROUNDWORKS LTD.
Regeneration and Local Services,Technical Services CM0300,Supplies and Services,304358,Equipment and Materials,03/07/2019,3610696-2833,"1,099.00",KEVIN SNOWDON GROUNDWORKS LTD.
Regeneration and Local Services,Technical Services CM0300,Supplies and Services,304358,Equipment and Materials,03/07/2019,3610696-2834,"1,179.00",KEVIN SNOWDON GROUNDWORKS LTD.
Dedicated Schools Grant BG0015,DSG Early Years Block,Transfer Payments,510032,School Children,03/07/2019,3610697-14357,"1,836.00",KIDS 1ST NURSERIES DURHAM.
Dedicated Schools Grant BG0015,DSG Early Years Block,Transfer Payments,510030,School Children,03/07/2019,3610697-14628,"19,773.97",KIDS 1ST NURSERIES DURHAM.
Dedicated Schools Grant BG0015,DSG Early Years Block,Transfer Payments,510032,School Children,03/07/2019,3610699-14358,"5,775.75",KIDZ VILLAGE LTD.
Dedicated Schools Grant BG0015,DSG Early Years Block,Transfer Payments,510030,School Children,03/07/2019,3610699-14629,"6,253.80",KIDZ VILLAGE LTD.
Dedicated Schools Grant BG0015,DSG Early Years Block,Transfer Payments,510032,School Children,03/07/2019,3610700-14359,"6,789.37",KIDZONE.
Dedicated Schools Grant BG0015,DSG Early Years Block,Transfer Payments,510030,School Children,03/07/2019,3610700-14630,"16,093.35",KIDZONE.
Dedicated Schools Grant BG0015,DSG Early Years Block,Transfer Payments,510030,School Children,03/07/2019,3610702-14631,"5,385.90",KIRK MERRINGTON PRE SCHOOL.
Dedicated Schools Grant BG0015,DSG Early Years Block,Transfer Payments,510030,School Children,03/07/2019,3610703-14632,"6,494.47",KIRKLANDS DAY NURSERY.
Dedicated Schools Grant BG0015,DSG Early Years Block,Transfer Payments,510030,School Children,03/07/2019,3610705-14634,"1,702.35",KIRSTY LONGWORTH.
Regeneration and Local Services,Technical Services CM0300,Stock A926,926900,Stock in hand-Inventory system,03/07/2019,3610713-9500065766,"4,048.00",LC PACKAGING UK LTD.
Dedicated Schools Grant BG0015,DSG Early Years Block,Transfer Payments,510032,School Children,03/07/2019,3610715-14364,"6,215.62",LEADGATE CHILD CENTRE LTD.
Dedicated Schools Grant BG0015,DSG Early Years Block,Transfer Payments,510030,School Children,03/07/2019,3610715-14638,"5,303.15",LEADGATE CHILD CENTRE LTD.
Regeneration and Local Services,Environmental Services,Transport,230005,Contract Hire,03/07/2019,3610716-4483009,"1,900.00",LEEDS COMMERCIAL LTD.
Dedicated Schools Grant BG0015,DSG Early Years Block,Transfer Payments,510030,School Children,03/07/2019,3610719-14639,630.45,LESLEY ANNE SEDGWICK (CHILDMINDER).
Dedicated Schools Grant BG0015,DSG Early Years Block,Transfer Payments,510030,School Children,03/07/2019,3610723-14643,529.10,LISA WILLIAMS (CHILDMINDER).
Dedicated Schools Grant BG0015,DSG Early Years Block,Transfer Payments,510032,School Children,03/07/2019,3610724-14365,"12,354.75",LITTLE ACORNS NORTH EAST LTD.
Dedicated Schools Grant BG0015,DSG Early Years Block,Transfer Payments,510030,School Children,03/07/2019,3610724-14644,"12,551.17",LITTLE ACORNS NORTH EAST LTD.
Dedicated Schools Grant BG0015,DSG Early Years Block,Transfer Payments,510032,School Children,03/07/2019,3610725-14366,"1,989.00",LITTLE CUBS DAY NURSERY.
Dedicated Schools Grant BG0015,DSG Early Years Block,Transfer Payments,510030,School Children,03/07/2019,3610725-14645,"12,891.45",LITTLE CUBS DAY NURSERY.
Dedicated Schools Grant BG0015,DSG Early Years Block,Transfer Payments,510030,School Children,03/07/2019,3610726-14646,"3,461.70",LITTLE DUCKLINGS NURSERY.
Dedicated Schools Grant BG0015,DSG Early Years Block,Transfer Payments,510032,School Children,03/07/2019,3610727-14367,"7,199.92",LITTLE STARS EARLY YEARS.
Dedicated Schools Grant BG0015,DSG Early Years Block,Transfer Payments,510030,School Children,03/07/2019,3610727-14648,"5,953.05",LITTLE STARS EARLY YEARS.
Dedicated Schools Grant BG0015,DSG Early Years Block,Transfer Payments,510032,School Children,03/07/2019,3610728-14370,"7,841.25",LITTLE WAVES DAY NURSERY LTD.
Dedicated Schools Grant BG0015,DSG Early Years Block,Transfer Payments,510030,School Children,03/07/2019,3610728-14651,"11,641.12",LITTLE WAVES DAY NURSERY LTD.
Dedicated Schools Grant BG0015,DSG Early Years Block,Transfer Payments,510030,School Children,03/07/2019,3610733-14652,"1,053.97",LORNA MARIE MOORE.
Dedicated Schools Grant BG0015,DSG Early Years Block,Transfer Payments,510032,School Children,03/07/2019,3610734-14372,"1,243.12",LORRAINE FORSTER.
Dedicated Schools Grant BG0015,DSG Early Years Block,Transfer Payments,510030,School Children,03/07/2019,3610734-14653,938.44,LORRAINE FORSTER.
Dedicated Schools Grant BG0015,DSG Early Years Block,Transfer Payments,510030,School Children,03/07/2019,3610737-14655,"1,027.65",LYNDA GILBERT.
Dedicated Schools Grant BG0015,DSG Early Years Block,Transfer Payments,510030,School Children,03/07/2019,3610739-14656,815.12,LYNNE MCGUIGAN.
Dedicated Schools Grant BG0015,DSG Early Years Block,Transfer Payments,510030,School Children,03/07/2019,3610749-14662,850.50,MARIE BUSTON.
Dedicated Schools Grant BG0015,DSG Early Years Block,Transfer Payments,510030,School Children,03/07/2019,3610751-14664,"1,186.50",MARY ELAND (CHILDMINDER)
Adult and Health Services,Commissioning inc Supporting People,Supplies and Services,338370,Services,03/07/2019,3610760-44337,"24,102.00",MEDEQUIP ASSISTIVE TECHNOLOGY LTD.
Dedicated Schools Grant BG0015,DSG Early Years Block,Transfer Payments,510030,School Children,03/07/2019,3610761-14667,720.00,MELANIE PARKIN (CHILDMINDER).
Adult and Health Services,Commissioning inc Supporting People,Third Party Payments 4THIRD,442002,Supporting People E442,03/07/2019,3610762-1969249,"5,469.72",MENTAL HEALTH MATTERS.
Regeneration and Local Services,Development and Housing,Third Party Payments 4THIRD,440999,Other third party payments E440,03/07/2019,3610766-4833,"1,818.52",MICROCOPY SYSTEMS LTD.
Dedicated Schools Grant BG0015,DSG Early Years Block,Transfer Payments,510030,School Children,03/07/2019,3610768-14619,825.82,MISS JA MYERS T/A CHATTERBOX CHILDCARE.
Adult and Health Services,Commissioning inc Supporting People,Third Party Payments 4THIRD,442002,Supporting People E442,03/07/2019,3610772-1969304,"2,620.48",MOVING ON HOUSING.
Dedicated Schools Grant BG0015,DSG Early Years Block,Transfer Payments,510032,School Children,03/07/2019,3610775-14369,"1,526.17",MR D YOUNG T/A LITTLE TOTS ACADEMY.
Dedicated Schools Grant BG0015,DSG Early Years Block,Transfer Payments,510030,School Children,03/07/2019,3610775-14650,"4,001.64",MR D YOUNG T/A LITTLE TOTS ACADEMY.
Children and Young Peoples Services,Head of Childrens Social Care,Supplies and Services,338044,Services,03/07/2019,3610776-G941,"1,650.00",MR DANNY MORRISON.
Regeneration and Local Services,Corporate Property and Land,Third Party Payments 4THIRD,430100,Rendered by Private Contractors,03/07/2019,3610780-DCC090,"1,500.00",MR WILLIAM MAGUIRE T/A VALLUM LIFTS.
Dedicated Schools Grant BG0015,DSG Early Years Block,Transfer Payments,510030,School Children,03/07/2019,3610781-14494,681.04,REDACTED - PAYMENT TO INDIVIDUAL
Dedicated Schools Grant BG0015,DSG Early Years Block,Transfer Payments,510030,School Children,03/07/2019,3610785-14530,815.10,REDACTED - PAYMENT TO INDIVIDUAL
Dedicated Schools Grant BG0015,DSG Early Years Block,Transfer Payments,510030,School Children,03/07/2019,3610788-14551,582.07,REDACTED - PAYMENT TO INDIVIDUAL
Dedicated Schools Grant BG0015,DSG Early Years Block,Transfer Payments,510030,School Children,03/07/2019,3610791-14566,760.50,MRS EMMA HECKLES T/A CONSETT KIDS.
Dedicated Schools Grant BG0015,DSG Early Years Block,Transfer Payments,510030,School Children,03/07/2019,3610797-14615,577.69,REDACTED - PAYMENT TO INDIVIDUAL
Dedicated Schools Grant BG0015,DSG Early Years Block,Transfer Payments,510030,School Children,03/07/2019,3610802-14660,"1,876.87",REDACTED - PAYMENT TO INDIVIDUAL
Dedicated Schools Grant BG0015,DSG Early Years Block,Transfer Payments,510030,School Children,03/07/2019,3610808-14705,570.37,REDACTED - PAYMENT TO INDIVIDUAL
Dedicated Schools Grant BG0015,DSG Early Years Block,Transfer Payments,510032,School Children,03/07/2019,3610811-14416,"1,989.00",MS SUSAN MARIE HUNTER.
Dedicated Schools Grant BG0015,DSG Early Years Block,Transfer Payments,510030,School Children,03/07/2019,3610811-14726,"3,053.05",MS SUSAN MARIE HUNTER.
Dedicated Schools Grant BG0015,DSG Early Years Block,Transfer Payments,510032,School Children,03/07/2019,3610815-14384,"2,237.62",NATALIE WILE.
Dedicated Schools Grant BG0015,DSG Early Years Block,Transfer Payments,510030,School Children,03/07/2019,3610815-14671,"2,248.98",NATALIE WILE.
Regeneration and Local Services,Technical Services CM0300,Supplies and Services,304358,Equipment and Materials,03/07/2019,3610823-NC/079/BW,"2,035.00",NEDCO CONTRACTS (NE) LTD.
Regeneration and Local Services,Technical Services CM0300,Supplies and Services,304358,Equipment and Materials,03/07/2019,3610823-NC/080/BW,"1,650.00",NEDCO CONTRACTS (NE) LTD.
Regeneration and Local Services,Technical Services CM0300,Supplies and Services,304358,Equipment and Materials,03/07/2019,3610823-NC/081/BW,"2,062.50",NEDCO CONTRACTS (NE) LTD.
Regeneration and Local Services,Technical Services CM0300,Supplies and Services,304358,Equipment and Materials,03/07/2019,3610823-NC/082/BW,"2,062.50",NEDCO CONTRACTS (NE) LTD.
Regeneration and Local Services,Technical Services CM0300,Supplies and Services,304358,Equipment and Materials,03/07/2019,3610823-NC/083/BW,"2,337.50",NEDCO CONTRACTS (NE) LTD.
Dedicated Schools Grant BG0015,DSG Early Years Block,Transfer Payments,510032,School Children,03/07/2019,3610824-14385,"6,311.25",NELLIE`S DAY NURSERY LTD.
Dedicated Schools Grant BG0015,DSG Early Years Block,Transfer Payments,510030,School Children,03/07/2019,3610824-14672,"2,535.49",NELLIE`S DAY NURSERY LTD.
Dedicated Schools Grant BG0015,DSG Early Years Block,Transfer Payments,510032,School Children,03/07/2019,3610826-14386,"3,480.75",NEW BEGINNINGS (MOORSIDE) CO LTD.
Dedicated Schools Grant BG0015,DSG Early Years Block,Transfer Payments,510030,School Children,03/07/2019,3610826-14673,"7,421.85",NEW BEGINNINGS (MOORSIDE) CO LTD.
Regeneration and Local Services,Development and Housing,Supplies and Services,336005,Advertising E336,03/07/2019,3610828-29503721,885.07,NEWSQUEST (YORKSHIRE & NORTH EAST) LTD.
Dedicated Schools Grant BG0015,DSG Early Years Block,Transfer Payments,510032,School Children,03/07/2019,3610837-14389,745.87,NORTHERN SAINTS CATHOLIC EDUCATION TRUST (NSCET).
Dedicated Schools Grant BG0015,DSG Early Years Block,Transfer Payments,510030,School Children,03/07/2019,3610837-14678,"6,600.36",NORTHERN SAINTS CATHOLIC EDUCATION TRUST (NSCET).
Regeneration and Local Services,Environmental Services,Transport,230005,Contract Hire,03/07/2019,3610838-SL05652419INV,626.40,NORTHGATE VEHICLE HIRE LTD.
Dedicated Schools Grant BG0015,DSG Early Years Block,Transfer Payments,510032,School Children,03/07/2019,3610839-14390,"1,013.62",NORTHUMBRIAN TRUST DAY NURSERIES LTD.
Dedicated Schools Grant BG0015,DSG Early Years Block,Transfer Payments,510030,School Children,03/07/2019,3610839-14682,"6,440.93",NORTHUMBRIAN TRUST DAY NURSERIES LTD.
Resources BK0010,Digital and Customer Services,Supplies and Services,342051,Computers and Communications,03/07/2019,3610841-19187,"4,000.00",NTA MONITOR LTD.
Dedicated Schools Grant BG0015,DSG Early Years Block,Transfer Payments,510032,School Children,03/07/2019,3610842-14388,"4,475.25",NURSERY TIME.
Dedicated Schools Grant BG0015,DSG Early Years Block,Transfer Payments,510030,School Children,03/07/2019,3610842-14676,"17,533.42",NURSERY TIME.
Dedicated Schools Grant BG0015,DSG Early Years Block,Transfer Payments,510030,School Children,03/07/2019,3610844-14677,"2,015.00",OLD BRIDGE NURSERY.
Dedicated Schools Grant BG0015,DSG Early Years Block,Transfer Payments,510030,School Children,03/07/2019,3610849-14679,"5,148.60",OUSTON PRIMARY SCHOOL (PART OF JIGSAW LEARNING TRUST).
Regeneration and Local Services,Development and Housing,Supplies and Services,384437,Miscellaneous Expenses,03/07/2019,3610853-F66590314/1,891.00,P & O FERRIES HOLDINGS LTD.
Regeneration and Local Services,Development and Housing,Supplies and Services,384437,Miscellaneous Expenses,03/07/2019,3610853-F66590338/1,891.00,P & O FERRIES HOLDINGS LTD.
Regeneration and Local Services,Culture Sport and Tourism,Supplies and Services,338047,Services,03/07/2019,3610854-R2209052,"1,265.63",PARAMOUNT PICTURES UK.
Regeneration and Local Services,Technical Services CM0300,Stock A926,926900,Stock in hand-Inventory system,03/07/2019,3610856-XL241209,916.59,PARK ELECTRICAL DISTRIBUTORS LTD.
Regeneration and Local Services,Technical Services CM0300,Stock A926,926900,Stock in hand-Inventory system,03/07/2019,3610856-XL241211,"2,680.00",PARK ELECTRICAL DISTRIBUTORS LTD.
Dedicated Schools Grant BG0015,DSG Early Years Block,Transfer Payments,510030,School Children,03/07/2019,3610859-14680,789.75,PAULA PARK.
Regeneration and Local Services,Environmental Services,Supplies and Services,384199,Miscellaneous Expenses,03/07/2019,3610861-4100659511,"1,000.00",PETER CARLIN-PAGE T/A LITTLE HAVEN BOOKS.
Children and Young Peoples Services,Head of Education and Skills,Supplies and Services,312009,Newspapers books and periodicals E312,03/07/2019,3610863-1751504,520.20,PETERS LTD.
Dedicated Schools Grant BG0015,DSG Early Years Block,Transfer Payments,510032,School Children,03/07/2019,3610870-14391,"3,480.75",PLAYDAY NURSERY.
Dedicated Schools Grant BG0015,DSG Early Years Block,Transfer Payments,510030,School Children,03/07/2019,3610870-14683,"23,972.36",PLAYDAY NURSERY.
Regeneration and Local Services,Culture Sport and Tourism,Supplies and Services,384956,Miscellaneous Expenses,03/07/2019,3610874-SIN865803,"1,112.19",PPL PRS LTD.
Regeneration and Local Services,Technical Services CM0300,Third Party Payments 4THIRD,430100,Rendered by Private Contractors,03/07/2019,3610875-159389,"20,367.80",PREMIER TRAFFIC MANAGEMENT LTD.
Regeneration and Local Services,Technical Services CM0300,Third Party Payments 4THIRD,430100,Rendered by Private Contractors,03/07/2019,3610875-159483,"30,310.04",PREMIER TRAFFIC MANAGEMENT LTD.
Regeneration and Local Services,Development and Housing,Supplies and Services,338035,Services,03/07/2019,3610880-365519,"1,281.00",QUALSAFE.COM.
Dedicated Schools Grant BG0015,DSG High Needs Block,Third Party Payments 4THIRD,440080,Other third party payments E440,03/07/2019,3610881-1780,"7,850.00",QUEEN ELIZABETH 6TH FORM COLLEGE.
Dedicated Schools Grant BG0015,DSG Early Years Block,Transfer Payments,510030,School Children,03/07/2019,3610885-14685,577.69,RACHAEL RUSSELL (CHILDMINDER).
Dedicated Schools Grant BG0015,DSG Early Years Block,Transfer Payments,510032,School Children,03/07/2019,3610886-14393,994.50,RACHEL GRAY.
Dedicated Schools Grant BG0015,DSG Early Years Block,Transfer Payments,510030,School Children,03/07/2019,3610886-14686,"2,652.65",RACHEL GRAY.
Dedicated Schools Grant BG0015,DSG Early Years Block,Transfer Payments,510030,School Children,03/07/2019,3610888-14687,"16,260.00",RAINBOW NURSERY DURHAM HIGH SCHOOL.
Dedicated Schools Grant BG0015,DSG Early Years Block,Transfer Payments,510032,School Children,03/07/2019,3610889-14394,"7,210.12",RAINBOW NURSERY LTD (MIDDLESTONE MOOR).
Dedicated Schools Grant BG0015,DSG Early Years Block,Transfer Payments,510030,School Children,03/07/2019,3610889-14688,"21,888.07",RAINBOW NURSERY LTD (MIDDLESTONE MOOR).
Dedicated Schools Grant BG0015,DSG Early Years Block,Transfer Payments,510030,School Children,03/07/2019,3610893-14689,780.00,REBECCA DUNN (CHILDMINDER).
Dedicated Schools Grant BG0015,DSG Early Years Block,Transfer Payments,510030,School Children,03/07/2019,3610894-14690,752.37,REBECCA HENDERSON (CHILDMINDER).
Dedicated Schools Grant BG0015,DSG Early Years Block,Transfer Payments,510030,School Children,03/07/2019,3610904-14692,"17,863.95",RIBBON ACADEMY TRUST.
Dedicated Schools Grant BG0015,DSG Early Years Block,Transfer Payments,510032,School Children,03/07/2019,3610905-14396,"8,556.52",RIBBON DAYCARE.
Dedicated Schools Grant BG0015,DSG Early Years Block,Transfer Payments,510030,School Children,03/07/2019,3610905-14693,"18,974.08",RIBBON DAYCARE.
Adult and Health Services,Commissioning inc Supporting People,Third Party Payments 4THIRD,442002,Supporting People E442,03/07/2019,3610906-1969251,"7,356.72",RICHMOND FELLOWSHIP.
Adult and Health Services,Commissioning inc Supporting People,Third Party Payments 4THIRD,444002,Supporting People E444,03/07/2019,3610906-1969252,"4,438.08",RICHMOND FELLOWSHIP.
Adult and Health Services,Commissioning inc Supporting People,Third Party Payments 4THIRD,441001,Supporting People E441,03/07/2019,3610906-1969264,"9,423.88",RICHMOND FELLOWSHIP.
Regeneration and Local Services,Environmental Services,Transport,210057,Repair and Maintenance of Vehicles,03/07/2019,3610907-125728,"2,000.00",RICKERBY LTD.
Regeneration and Local Services,Environmental Services,Supplies and Services,304221,Equipment and Materials,03/07/2019,3610908-RSIN0304029,"1,590.00",RIGBY TAYLOR LTD.
Regeneration and Local Services,Corporate Property and Land,Supplies and Services,304221,Equipment and Materials,03/07/2019,3610909-0000052459,"4,946.30",RINNAI UK LTD.
Dedicated Schools Grant BG0015,DSG Early Years Block,Transfer Payments,510030,School Children,03/07/2019,3610913-14694,"5,184.37",ROOFTOPS NURSERY SCHOOL LTD.
Transformation and Partnerships,Business Support,Supplies and Services,340001,Postages E340,03/07/2019,3610916-9058932943,"1,182.31",ROYAL MAIL GROUP PLC.
Dedicated Schools Grant BG0015,DSG Early Years Block,Transfer Payments,510030,School Children,03/07/2019,3610921-14695,"4,553.55",SACRISTON ACADEMY - EARLY YEARS T/A PRIVATE NURSERY.
Dedicated Schools Grant BG0015,DSG Early Years Block,Transfer Payments,510030,School Children,03/07/2019,3610923-14696,"1,090.54",SAMANTHA CHARLTON.
Dedicated Schools Grant BG0015,DSG Early Years Block,Transfer Payments,510030,School Children,03/07/2019,3610926-14698,"1,134.95",SAPLINGS NATURE KINDERGARTEN & FOREST SCHOOL.
Resources BK0010,Digital and Customer Services,Supplies and Services,352001,Conference Expenses,03/07/2019,3610933-16841,520.00,SCHOOLS NORTHEAST TRADING LTD.
Regeneration and Local Services,Culture Sport and Tourism,Supplies and Services,336005,Advertising E336,03/07/2019,3610935-759,815.81,SEAHAM HARBOUR CIC.
Dedicated Schools Grant BG0015,DSG Early Years Block,Transfer Payments,510032,School Children,03/07/2019,3610936-14402,"6,464.25",SEAHAM HOUSE DAY NURSERY.
Dedicated Schools Grant BG0015,DSG Early Years Block,Transfer Payments,510030,School Children,03/07/2019,3610936-14701,"16,987.42",SEAHAM HOUSE DAY NURSERY.
Dedicated Schools Grant BG0015,DSG Early Years Block,Transfer Payments,510032,School Children,03/07/2019,3610937-14403,"3,251.25",SEASIDE LANE NURSERY.
Dedicated Schools Grant BG0015,DSG Early Years Block,Transfer Payments,510030,School Children,03/07/2019,3610937-14702,"7,460.06",SEASIDE LANE NURSERY.
Dedicated Schools Grant BG0015,DSG Early Years Block,Transfer Payments,510030,School Children,03/07/2019,3610938-14703,"1,489.00",SEDGEFIELD OUT OF SCHOOL FUN CLUB.
Dedicated Schools Grant BG0015,DSG Early Years Block,Transfer Payments,510030,School Children,03/07/2019,3610942-14704,962.81,SHARON CLARKE.
Dedicated Schools Grant BG0015,DSG Early Years Block,Transfer Payments,510032,School Children,03/07/2019,3610944-14405,745.87,SHARON LYNCH (CHILDMINDER).
Dedicated Schools Grant BG0015,DSG Early Years Block,Transfer Payments,510030,School Children,03/07/2019,3610944-14706,582.07,SHARON LYNCH (CHILDMINDER).
Regeneration and Local Services,Environmental Services,Transport,230005,Contract Hire,03/07/2019,3610945-11110654,"1,178.00",SHB HIRE LTD.
Dedicated Schools Grant BG0015,DSG Early Years Block,Transfer Payments,510030,School Children,03/07/2019,3610946-14707,"11,044.35",SHIELD ROW ACADEMY.
Regeneration and Local Services,Corporate Property and Land,Supplies and Services,304221,Equipment and Materials,03/07/2019,3610948-0000094059,731.00,SHORTS INDUSTRIES LTD T/A SHORTS LIFTS.
Dedicated Schools Grant BG0015,DSG Early Years Block,Transfer Payments,510032,School Children,03/07/2019,3610949-14406,"1,740.37",SHOTLEY BRIDGE NURSERY SCHOOL LTD.
Dedicated Schools Grant BG0015,DSG Early Years Block,Transfer Payments,510030,School Children,03/07/2019,3610949-14708,"18,508.35",SHOTLEY BRIDGE NURSERY SCHOOL LTD.
Children and Young Peoples Services,Head of Education and Skills,Vehicles Equipment Furniture and Fittings,912529,Purchase-equipment,03/07/2019,3610951-8952,"1,406.00",SIGMA CATERING EQUIPMENT LTD.
Adult and Health Services,Commissioning inc Supporting People,Third Party Payments 4THIRD,442002,Supporting People E442,03/07/2019,3610954-1969305,"6,331.08",SINGLE HOMELESS ACTION INITIATIVE IN DURHAM LTD (SHAID).
Dedicated Schools Grant BG0015,DSG Early Years Block,Transfer Payments,510032,School Children,03/07/2019,3610955-14407,"1,989.00",SMALL WORLD DAY NURSERY.
Dedicated Schools Grant BG0015,DSG Early Years Block,Transfer Payments,510030,School Children,03/07/2019,3610955-14709,"7,547.47",SMALL WORLD DAY NURSERY.
Regeneration and Local Services,Corporate Property and Land,Third Party Payments 4THIRD,430100,Rendered by Private Contractors,03/07/2019,3610957-798,750.00,SON GAS SOLUTIONS LTD.
Regeneration and Local Services,Environmental Services,Transport,210057,Repair and Maintenance of Vehicles,03/07/2019,3610959-SI-2446218,"1,014.00",SPALDINGS (UK) LTD.
Dedicated Schools Grant BG0015,DSG Early Years Block,Transfer Payments,510032,School Children,03/07/2019,3610966-14368,994.50,ST BEDES PLAYGROUP.
Dedicated Schools Grant BG0015,DSG Early Years Block,Transfer Payments,510030,School Children,03/07/2019,3610966-14649,"4,374.82",ST BEDES PLAYGROUP.
Dedicated Schools Grant BG0015,DSG Early Years Block,Transfer Payments,510032,School Children,03/07/2019,3610969-14411,"4,375.80",ST OSWALD`S PRE SCHOOL LEARNING CENTRE.
Dedicated Schools Grant BG0015,DSG Early Years Block,Transfer Payments,510030,School Children,03/07/2019,3610969-14715,"18,285.84",ST OSWALD`S PRE SCHOOL LEARNING CENTRE.
Dedicated Schools Grant BG0015,DSG Early Years Block,Transfer Payments,510030,School Children,03/07/2019,3610970-14716,"29,634.15",ST OSWALD`S SUNSHINE CLUB.
Regeneration and Local Services,Culture Sport and Tourism,Third Party Payments 4THIRD,430100,Rendered by Private Contractors,03/07/2019,3610971-CAS-07-2019-032,"7,500.00",STANLEY INDOOR BOWLS CENTRE.
Dedicated Schools Grant BG0015,DSG Early Years Block,Transfer Payments,510030,School Children,03/07/2019,3610972-14713,"6,670.95",STANLEY LEARNING PARTNERSHIP.
Dedicated Schools Grant BG0015,DSG Early Years Block,Transfer Payments,510030,School Children,03/07/2019,3610975-14718,"9,738.30",STEPHENSON WAY ACADEMY & NURSERY SCHOOL.
Dedicated Schools Grant BG0015,DSG Early Years Block,Transfer Payments,510030,School Children,03/07/2019,3610976-14719,"11,073.56",STEPPING STONES COOP NURSERY LTD.
Dedicated Schools Grant BG0015,DSG Early Years Block,Transfer Payments,510030,School Children,03/07/2019,3610977-14720,"6,648.85",STEPPING STONES DAY NURSERY (DURHAM).
Children and Young Peoples Services,Childrens Services Operational Support CG0080,Supplies and Services,384199,Miscellaneous Expenses,03/07/2019,3610978-01008000869537,"8,160.00",STHREE PARTNERSHIP LLP T/A PROGRESSIVE.
Regeneration and Local Services,Technical Services CM0300,Third Party Payments 4THIRD,430100,Rendered by Private Contractors,03/07/2019,3610979-118197,"1,282.84",STONEGRAVE AGGREGATES LTD.
Regeneration and Local Services,Technical Services CM0300,Third Party Payments 4THIRD,430100,Rendered by Private Contractors,03/07/2019,3610979-118298,"3,126.68",STONEGRAVE AGGREGATES LTD.
Dedicated Schools Grant BG0015,DSG Early Years Block,Transfer Payments,510030,School Children,03/07/2019,3610980-14721,"1,030.84",STUART FORSTER.
Dedicated Schools Grant BG0015,DSG Early Years Block,Transfer Payments,510032,School Children,03/07/2019,3610984-14415,"4,188.37",SUNSHINE DAY NURSERY LTD.
Dedicated Schools Grant BG0015,DSG Early Years Block,Transfer Payments,510030,School Children,03/07/2019,3610984-14724,"10,357.57",SUNSHINE DAY NURSERY LTD.
Dedicated Schools Grant BG0015,DSG Early Years Block,Transfer Payments,510032,School Children,03/07/2019,3610985-14413,"6,644.02",SUNSHINE DAY NURSERY LTD.
Dedicated Schools Grant BG0015,DSG Early Years Block,Transfer Payments,510030,School Children,03/07/2019,3610985-14722,"18,778.75",SUNSHINE DAY NURSERY LTD.
Dedicated Schools Grant BG0015,DSG Early Years Block,Transfer Payments,510032,School Children,03/07/2019,3610986-14414,"5,332.05",SUNSHINE DAY NURSERY LTD.
Dedicated Schools Grant BG0015,DSG Early Years Block,Transfer Payments,510030,School Children,03/07/2019,3610986-14723,"10,711.50",SUNSHINE DAY NURSERY LTD.
Adult and Health Services,Commissioning inc Supporting People,Third Party Payments 4THIRD,441001,Supporting People E441,03/07/2019,3611006-1969244,"19,231.20",THE CYRENIANS LTD T/A CHANGING LIVES.
Dedicated Schools Grant BG0015,DSG Early Years Block,Transfer Payments,510032,School Children,03/07/2019,3611009-14419,"5,488.87",THE LAURELS CHILD CARE COMPANY LTD.
Dedicated Schools Grant BG0015,DSG Early Years Block,Transfer Payments,510030,School Children,03/07/2019,3611009-14730,"5,818.57",THE LAURELS CHILD CARE COMPANY LTD.
Dedicated Schools Grant BG0015,DSG Early Years Block,Transfer Payments,510032,School Children,03/07/2019,3611011-14420,"10,354.27",THE NURSERY.
Dedicated Schools Grant BG0015,DSG Early Years Block,Transfer Payments,510030,School Children,03/07/2019,3611011-14731,"25,662.41",THE NURSERY.
Dedicated Schools Grant BG0015,DSG Early Years Block,Transfer Payments,510030,School Children,03/07/2019,3611012-14714,"5,629.80",THE ROMERO CATHOLIC EDUCATION TRUST.
Adult and Health Services,Commissioning inc Supporting People,Third Party Payments 4THIRD,442002,Supporting People E442,03/07/2019,3611015-1969282,"5,088.84",THIRTEEN HOUSING GROUP LTD.
Adult and Health Services,Commissioning inc Supporting People,Third Party Payments 4THIRD,441001,Supporting People E441,03/07/2019,3611015-1969283,"7,776.68",THIRTEEN HOUSING GROUP LTD.
Adult and Health Services,Commissioning inc Supporting People,Third Party Payments 4THIRD,441001,Supporting People E441,03/07/2019,3611015-1969284,"22,933.96",THIRTEEN HOUSING GROUP LTD.
Regeneration and Local Services,Technical Services CM0300,Stock A926,926900,Stock in hand-Inventory system,03/07/2019,3611016-NSIN00014455,"1,434.70",THOMAS OWEN & SONS (NEWCASTLE) LTD.
Regeneration and Local Services,Technical Services CM0300,Stock A926,926900,Stock in hand-Inventory system,03/07/2019,3611016-NSIN00014457,"2,348.46",THOMAS OWEN & SONS (NEWCASTLE) LTD.
Dedicated Schools Grant BG0015,DSG Early Years Block,Transfer Payments,510032,School Children,03/07/2019,3611019-14421,"6,751.12",TILLY MINTS CHERUBS DAY NURSERY LTD.
Dedicated Schools Grant BG0015,DSG Early Years Block,Transfer Payments,510030,School Children,03/07/2019,3611019-14733,"18,392.40",TILLY MINTS CHERUBS DAY NURSERY LTD.
Dedicated Schools Grant BG0015,DSG Early Years Block,Transfer Payments,510032,School Children,03/07/2019,3611021-14343,"5,825.47",TM NURSERY ENTERPRISES LTD T/A JACK IN THE BOX DAYCARE.
Dedicated Schools Grant BG0015,DSG Early Years Block,Transfer Payments,510030,School Children,03/07/2019,3611021-14598,"9,815.20",TM NURSERY ENTERPRISES LTD T/A JACK IN THE BOX DAYCARE.
Dedicated Schools Grant BG0015,DSG Early Years Block,Transfer Payments,510032,School Children,03/07/2019,3611024-14422,"2,757.82",TOTS `R` US.
Dedicated Schools Grant BG0015,DSG Early Years Block,Transfer Payments,510030,School Children,03/07/2019,3611024-14735,"5,941.76",TOTS `R` US.
Dedicated Schools Grant BG0015,DSG Early Years Block,Transfer Payments,510032,School Children,03/07/2019,3611027-14423,"1,606.50",TRIMDON`S LITTLE TYKES LTD.
Dedicated Schools Grant BG0015,DSG Early Years Block,Transfer Payments,510030,School Children,03/07/2019,3611027-14738,615.00,TRIMDON`S LITTLE TYKES LTD.
Adult and Health Services,Head of Adults,Supplies and Services,304259,Equipment and Materials,03/07/2019,3611029-HALL/KITCHENHIRE1/5-31/5/19,"1,000.00",TUDHOE COMMUNITY CENTRE.
Dedicated Schools Grant BG0015,DSG Early Years Block,Transfer Payments,510032,School Children,03/07/2019,3611030-14409,"3,136.50",TUDHOE LEARNING TRUST T/A SOUTH HETTON PRIMARY SCHOOL.
Dedicated Schools Grant BG0015,DSG Early Years Block,Transfer Payments,510030,School Children,03/07/2019,3611030-14712,"6,856.12",TUDHOE LEARNING TRUST T/A SOUTH HETTON PRIMARY SCHOOL.
Regeneration and Local Services,Environmental Services,Supplies and Services,338066,Services,03/07/2019,3611031-4042,"1,400.00",TULLY`S ELECTRICAL ENGINEERS & COMPLETE BUILDING SERVICES LTD.
Regeneration and Local Services,Transport and Contracted Services,Supplies and Services,304245,Equipment and Materials,03/07/2019,3611032-3IN/10338770,"2,230.90",TUNSTALL HEALTHCARE (UK) LTD.
Regeneration and Local Services,Culture Sport and Tourism,Supplies and Services,304259,Equipment and Materials,03/07/2019,3611041-US2578,"3,900.00",ULTIMATE SUPPLIES (NORTH) LTD.
Regeneration and Local Services,Culture Sport and Tourism,Supplies and Services,304259,Equipment and Materials,03/07/2019,3611041-US2579,"3,900.00",ULTIMATE SUPPLIES (NORTH) LTD.
Regeneration and Local Services,Culture Sport and Tourism,Supplies and Services,338047,Services,03/07/2019,3611042-327,"1,000.00",UNFOLDING THEATRE.
Dedicated Schools Grant BG0015,DSG Early Years Block,Transfer Payments,510032,School Children,03/07/2019,3611044-14312,745.87,UNIVERSITY OF DURHAM DAY NURSERY.
Dedicated Schools Grant BG0015,DSG Early Years Block,Transfer Payments,510030,School Children,03/07/2019,3611044-14557,"9,632.72",UNIVERSITY OF DURHAM DAY NURSERY.
Dedicated Schools Grant BG0015,DSG Early Years Block,Transfer Payments,510032,School Children,03/07/2019,3611045-14425,"4,972.50",USHAW MOOR DAYCARE.
Dedicated Schools Grant BG0015,DSG Early Years Block,Transfer Payments,510030,School Children,03/07/2019,3611046-14740,"10,045.72",USHAW MOOR PRE SCHOOL.
Dedicated Schools Grant BG0015,DSG Early Years Block,Transfer Payments,510030,School Children,03/07/2019,3611051-14742,"1,828.80",VICTORIA ANNE DONNELLY.
Dedicated Schools Grant BG0015,DSG Early Years Block,Transfer Payments,510030,School Children,03/07/2019,3611053-14744,"9,099.67",VICTORIA LANE ACADEMY.
Regeneration and Local Services,Culture Sport and Tourism,Supplies and Services,338099,Services,03/07/2019,3611057-883,"1,286.85",VINOVIUM ASSOCIATES LTD.
Resources BK0010,Digital and Customer Services,Supplies and Services,332001,Printing Stationery and Gen Off Exps,03/07/2019,3611057-884,"1,063.05",VINOVIUM ASSOCIATES LTD.
Adult and Health Services,Commissioning inc Supporting People,Third Party Payments 4THIRD,441001,Supporting People E441,03/07/2019,3611061-1969266,"2,367.20",WADDINGTON STREET CENTRE LTD.
Adult and Health Services,Commissioning inc Supporting People,Third Party Payments 4THIRD,444002,Supporting People E444,03/07/2019,3611061-1969286,567.36,WADDINGTON STREET CENTRE LTD.
Adult and Health Services,Commissioning inc Supporting People,Third Party Payments 4THIRD,473111,Purchase of Care,03/07/2019,3611061-7,"46,054.00",WADDINGTON STREET CENTRE LTD.
Regeneration and Local Services,Culture Sport and Tourism,Supplies and Services,338047,Services,03/07/2019,3611062-22787237,"1,024.38",WARNER BROS ENTERTAINMENT UK LTD.
Dedicated Schools Grant BG0015,DSG Early Years Block,Transfer Payments,510032,School Children,03/07/2019,3611063-14296,"2,467.12",WAYMAN DEVELOPMENTS LTD T/A CHILDSPLAY PRIVATE NURSERY.
Dedicated Schools Grant BG0015,DSG Early Years Block,Transfer Payments,510030,School Children,03/07/2019,3611063-14527,"16,210.35",WAYMAN DEVELOPMENTS LTD T/A CHILDSPLAY PRIVATE NURSERY.
Dedicated Schools Grant BG0015,DSG Early Years Block,Transfer Payments,510032,School Children,03/07/2019,3611064-14295,"5,469.75",WAYMAN DEVELOPMENTS LTD T/A CHILDSPLAY PRIVATE NURSERY.
Dedicated Schools Grant BG0015,DSG Early Years Block,Transfer Payments,510030,School Children,03/07/2019,3611064-14526,"7,712.25",WAYMAN DEVELOPMENTS LTD T/A CHILDSPLAY PRIVATE NURSERY.
Dedicated Schools Grant BG0015,DSG Early Years Block,Transfer Payments,510032,School Children,03/07/2019,3611065-14294,"4,131.00",WAYMAN DEVELOPMENTS LTD T/A CHILDSPLAY PRIVATE NURSERY.
Dedicated Schools Grant BG0015,DSG Early Years Block,Transfer Payments,510030,School Children,03/07/2019,3611065-14525,"8,611.69",WAYMAN DEVELOPMENTS LTD T/A CHILDSPLAY PRIVATE NURSERY.
Adult and Health Services,Commissioning inc Supporting People,Third Party Payments 4THIRD,441001,Supporting People E441,03/07/2019,3611066-1969250,"7,607.00",WEAR VALLEY WOMENS AID LTD.
Dedicated Schools Grant BG0015,DSG Early Years Block,Transfer Payments,510032,School Children,03/07/2019,3611067-14430,"5,412.73",WEARDALE AM/PM SCAMPS LTD.
Dedicated Schools Grant BG0015,DSG Early Years Block,Transfer Payments,510030,School Children,03/07/2019,3611067-14746,"2,477.47",WEARDALE AM/PM SCAMPS LTD.
Regeneration and Local Services,Transport and Contracted Services,Third Party Payments 4THIRD,430100,Rendered by Private Contractors,03/07/2019,3611068-14788,"11,684.00",WEARDALE COMMUNITY TRANSPORT LTD.
Regeneration and Local Services,Development and Housing,Supplies and Services,384437,Miscellaneous Expenses,03/07/2019,3611072-UOTR4537190,"12,025.56",WESTERN UNION BUSINESS SOLUTIONS.
Dedicated Schools Grant BG0015,DSG Early Years Block,Transfer Payments,510032,School Children,03/07/2019,3611073-14431,"3,729.37",WESTFIELD HOUSE NURSERY.
Dedicated Schools Grant BG0015,DSG Early Years Block,Transfer Payments,510030,School Children,03/07/2019,3611073-14748,"9,449.70",WESTFIELD HOUSE NURSERY.
Dedicated Schools Grant BG0015,DSG Early Years Block,Transfer Payments,510032,School Children,03/07/2019,3611074-14432,"1,836.00",WHEATLEY HILL COMMUNITY NURSERY LTD.
Dedicated Schools Grant BG0015,DSG Early Years Block,Transfer Payments,510030,School Children,03/07/2019,3611074-14749,"9,879.15",WHEATLEY HILL COMMUNITY NURSERY LTD.
Dedicated Schools Grant BG0015,DSG Early Years Block,Transfer Payments,510032,School Children,03/07/2019,3611076-14433,"8,701.87",WINGATE COMMUNITY CHILDCARE LTD.
Dedicated Schools Grant BG0015,DSG Early Years Block,Transfer Payments,510030,School Children,03/07/2019,3611076-14750,"4,270.01",WINGATE COMMUNITY CHILDCARE LTD.
Dedicated Schools Grant BG0015,DSG Early Years Block,Transfer Payments,510030,School Children,03/07/2019,3611077-14751,"7,393.75",WITTON GILBERT PRE SCHOOL.
Dedicated Schools Grant BG0015,DSG Early Years Block,Transfer Payments,510032,School Children,03/07/2019,3611078-14434,"3,443.77",WOODLANDS DAY NURSERY.
Dedicated Schools Grant BG0015,DSG Early Years Block,Transfer Payments,510030,School Children,03/07/2019,3611078-14752,"4,160.34",WOODLANDS DAY NURSERY.
Dedicated Schools Grant BG0015,DSG Early Years Block,Transfer Payments,510032,School Children,03/07/2019,3611083-14437,"2,180.25",YORK HOUSE NURSERY.
Dedicated Schools Grant BG0015,DSG Early Years Block,Transfer Payments,510030,School Children,03/07/2019,3611083-14755,"14,349.12",YORK HOUSE NURSERY.
Resources BK0010,People & Talent Management,Supplies and Services,352001,Conference Expenses,04/07/2019,3611092-14/8269,860.00,ACAS.
Regeneration and Local Services,Technical Services CM0300,Supplies and Services,304221,Equipment and Materials,04/07/2019,3611096-28383665,"1,083.60",AGGREGATE INDUSTRIES UK LTD.
Regeneration and Local Services,Technical Services CM0300,Supplies and Services,304221,Equipment and Materials,04/07/2019,3611096-28383667,"1,217.56",AGGREGATE INDUSTRIES UK LTD.
Regeneration and Local Services,Environmental Services,Transport,230005,Contract Hire,04/07/2019,3611108-HI2558613,731.64,ARNOLD CLARK CAR & VAN RENTAL.
Regeneration and Local Services,Technical Services CM0300,Supplies and Services,338027,Services,04/07/2019,3611112-19023239,"15,500.00",ATKINS GLOBAL.
Adult and Health Services,Head of Adults,Third Party Payments 4THIRD,478151,Purchase of Care,04/07/2019,3611114-D720002334,"3,949.00",AUTISM CARE UK (4) LTD.
Resources BK0010,Finance & Transactional Services,Supplies and Services,344033,Telephones,04/07/2019,3611145-C/RB181091,"1,600.00",CIVICA UK LTD.
Regeneration and Local Services,Technical Services CM0300,Third Party Payments 4THIRD,430100,Rendered by Private Contractors,04/07/2019,3611148-FTI0014330,"4,997.49",CLEAR CHANNEL UK LTD.
Regeneration and Local Services,Technical Services CM0300,Stock A926,926004,Stock,04/07/2019,3611149-400018334,"10,381.14",CLEVELAND POTASH LTD T/A ICL FERTILIZERS.
Regeneration and Local Services,Technical Services CM0300,Stock A926,926004,Stock,04/07/2019,3611149-400018335,"8,486.28",CLEVELAND POTASH LTD T/A ICL FERTILIZERS.
Regeneration and Local Services,Technical Services CM0300,Stock A926,926900,Stock in hand-Inventory system,04/07/2019,3611151-533972,"5,400.00",CMT EQUIPMENT LTD.
Adult and Health Services,Public Health CC0450,Third Party Payments 4THIRD,460803,Contract Payments,04/07/2019,3611153-3980034022,800.00,CO DURHAM & DARLINGTON NHS FOUNDATION TRUST.
Regeneration and Local Services,Technical Services CM0300,Supplies and Services,304221,Equipment and Materials,04/07/2019,3611163-6417,"2,750.00",CTS BRIDGES LTD.
Regeneration and Local Services,Environmental Services,Transport,230005,Contract Hire,04/07/2019,3611169-061602,"2,455.60",DAWSONGROUP SWEEPERS.
Regeneration and Local Services,Environmental Services,Third Party Payments 4THIRD,430101,Rendered by Private Contractors,04/07/2019,3611173-IV1137839,"2,858.93",DIRECT TYRE MANAGEMENT LTD (DTM).
Regeneration and Local Services,Environmental Services,Third Party Payments 4THIRD,430101,Rendered by Private Contractors,04/07/2019,3611173-IV1141048,"1,449.24",DIRECT TYRE MANAGEMENT LTD (DTM).
Children and Young Peoples Services,Childrens Services Operational Support CG0080,Supplies and Services,338099,Services,04/07/2019,3611179-330984,899.36,DURHAM UNIVERSITY.
Regeneration and Local Services,Business Durham CL0850,Premises,120009,Energy Costs,04/07/2019,3611183-000005988343,"2,515.26",EDF ENERGY CUSTOMERS PLC T/A EDF ENERGY.
Regeneration and Local Services,Business Durham CL0850,Premises,120009,Energy Costs,04/07/2019,3611183-000005988810,"2,680.95",EDF ENERGY CUSTOMERS PLC T/A EDF ENERGY.
Regeneration and Local Services,Business Durham CL0850,Premises,120009,Energy Costs,04/07/2019,3611184-000005987587,"6,341.57",EDF ENERGY CUSTOMERS PLC T/A EDF ENERGY.
Regeneration and Local Services,Business Durham CL0850,Premises,120009,Energy Costs,04/07/2019,3611184-000005987816,"2,487.93",EDF ENERGY CUSTOMERS PLC T/A EDF ENERGY.
Regeneration and Local Services,Business Durham CL0850,Premises,120009,Energy Costs,04/07/2019,3611184-000005988224,"2,591.09",EDF ENERGY CUSTOMERS PLC T/A EDF ENERGY.
Regeneration and Local Services,Business Durham CL0850,Premises,120009,Energy Costs,04/07/2019,3611184-000005988458,"2,292.53",EDF ENERGY CUSTOMERS PLC T/A EDF ENERGY.
Regeneration and Local Services,Business Durham CL0850,Premises,120009,Energy Costs,04/07/2019,3611184-000005988708,"2,209.32",EDF ENERGY CUSTOMERS PLC T/A EDF ENERGY.
Regeneration and Local Services,Business Durham CL0850,Premises,120009,Energy Costs,04/07/2019,3611184-000005988900,"2,141.53",EDF ENERGY CUSTOMERS PLC T/A EDF ENERGY.
Regeneration and Local Services,Business Durham CL0850,Premises,120009,Energy Costs,04/07/2019,3611184-000005989063,"6,400.29",EDF ENERGY CUSTOMERS PLC T/A EDF ENERGY.
Regeneration and Local Services,Corporate Property and Land,Supplies and Services,304221,Equipment and Materials,04/07/2019,3611185-059-245841,"1,633.40",EDMUNDSON ELECTRICAL LTD.
Regeneration and Local Services,Corporate Property and Land,Supplies and Services,304221,Equipment and Materials,04/07/2019,3611185-059-245874,"1,214.81",EDMUNDSON ELECTRICAL LTD.
Regeneration and Local Services,Environmental Services,Transport,230005,Contract Hire,04/07/2019,3611193-8151431,807.00,ENTERPRISE FLEX-E-RENT T/A BURNT TREE GROUP LTD.
Adult and Health Services,Commissioning inc Supporting People,Third Party Payments 4THIRD,479101,Purchase of Care,04/07/2019,3611211-OUS110619,"52,255.76",GAINFORD CARE HOMES LTD.
Children and Young Peoples Services,Head of Childrens Social Care,Employees,080025,Agency Staff,04/07/2019,3611213-2430253,"111,406.77",GEOMETRIC RESULTS INTERNATIONAL.
Regeneration and Local Services,Technical Services CM0300,Stock A926,926900,Stock in hand-Inventory system,04/07/2019,3611219-06/004429,512.64,GREENHAM TRADING LTD.
Regeneration and Local Services,Technical Services CM0300,Stock A926,926900,Stock in hand-Inventory system,04/07/2019,3611224-7750,584.25,HALT HIRE LTD.
Regeneration and Local Services,Corporate Property and Land,Supplies and Services,304245,Equipment and Materials,04/07/2019,3611228-4636480,511.87,HEADLAM (FLOORCOVERING DISTRIBUTORS) LTD.
Adult and Health Services,Head of Adults,Third Party Payments 4THIRD,478151,Purchase of Care,04/07/2019,3611231-HLC65/2019,"1,488.56",HIGHLEA CARE LTD.
Adult and Health Services,Head of Adults,Third Party Payments 4THIRD,478151,Purchase of Care,04/07/2019,3611232-HCL67/2019,"1,721.70",HIGHLEA CARE LTD.
Adult and Health Services,Head of Adults,Third Party Payments 4THIRD,478151,Purchase of Care,04/07/2019,3611232-HLC66/2019,"3,331.20",HIGHLEA CARE LTD.
Regeneration and Local Services,Corporate Property and Land,Third Party Payments 4THIRD,430100,Rendered by Private Contractors,04/07/2019,3611244-7602,"6,213.20",INGLEFORD SCAFFOLDING LTD.
Regeneration and Local Services,Corporate Property and Land,Third Party Payments 4THIRD,430100,Rendered by Private Contractors,04/07/2019,3611244-7725,"2,128.00",INGLEFORD SCAFFOLDING LTD.
Regeneration and Local Services,Corporate Property and Land,Third Party Payments 4THIRD,430100,Rendered by Private Contractors,04/07/2019,3611244-7870,"1,562.00",INGLEFORD SCAFFOLDING LTD.
Resources BK0010,Digital and Customer Services,Stock A926,926900,Stock in hand-Inventory system,04/07/2019,3611247-4407541,760.00,INSIGHT DIRECT (UK) LTD.
Resources BK0010,Digital and Customer Services,Supplies and Services,304303,Equipment and Materials,04/07/2019,3611247-4408416,"2,413.00",INSIGHT DIRECT (UK) LTD.
Regeneration and Local Services,Culture Sport and Tourism,Supplies and Services,384199,Miscellaneous Expenses,04/07/2019,3611251-35058,548.10,JAMES FLETCHER LTD T/A JAMES FLETCHER MARQUEES.
Regeneration and Local Services,Corporate Property and Land,Supplies and Services,304221,Equipment and Materials,04/07/2019,3611262-BII290785,"2,577.36",JT DOVE LTD.
Regeneration and Local Services,Corporate Property and Land,Supplies and Services,304221,Equipment and Materials,04/07/2019,3611262-NOI184717,744.77,JT DOVE LTD.
Resources BK0010,Digital and Customer Services,Supplies and Services,342051,Computers and Communications,04/07/2019,3611279-IN20001142339,849.00,LOGMEIN TECHNOLOGIES UK LTD.
Regeneration and Local Services,Environmental Services,Supplies and Services,338066,Services,04/07/2019,3611283-1215,539.00,MARCUS BYRON (GRAPHIC DESIGNER).
Adult and Health Services,Head of Adults,Third Party Payments 4THIRD,472101,Purchase of Care,04/07/2019,3611312-0000039668,"2,798.46",NORTH EAST AUTISM SOCIETY.
Adult and Health Services,Head of Adults,Third Party Payments 4THIRD,472101,Purchase of Care,04/07/2019,3611312-0000039958,682.00,NORTH EAST AUTISM SOCIETY.
Regeneration and Local Services,Environmental Services,Transport,215005,Running Costs of Vehicles,04/07/2019,3611322-433807,"18,098.63",OIL NRG LTD.
Regeneration and Local Services,Technical Services CM0300,Third Party Payments 4THIRD,430100,Rendered by Private Contractors,04/07/2019,3611323-21481,560.00,OLIVERS TREE SERVICES LTD.
Regeneration and Local Services,Development and Housing,Supplies and Services,384437,Miscellaneous Expenses,04/07/2019,3611328-F66590151/1,770.00,P & O FERRIES HOLDINGS LTD.
Regeneration and Local Services,Technical Services CM0300,Stock A926,926900,Stock in hand-Inventory system,04/07/2019,3611330-XL241287,520.00,PARK ELECTRICAL DISTRIBUTORS LTD.
Adult and Health Services,Head of Adults,Third Party Payments 4THIRD,478151,Purchase of Care,04/07/2019,3611340-124000363,865.92,POTENSIAL LTD.
Regeneration and Local Services,Culture Sport and Tourism,Supplies and Services,338047,Services,04/07/2019,3611342-SIN1095002,"1,882.72",PPL PRS LTD.
Regeneration and Local Services,Transport and Contracted Services,Supplies and Services,304221,Equipment and Materials,04/07/2019,3611358-71242,632.50,RICHARD CHING & SON LTD.
Resources BK0010,Finance & Transactional Services,Supplies and Services,340001,Postages E340,04/07/2019,3611365-9058934343,"14,528.46",ROYAL MAIL GROUP PLC.
Adult and Health Services,Head of Adults,Third Party Payments 4THIRD,478151,Purchase of Care,04/07/2019,3611381-28619,"1,160.24",SOVEREIGN CARE NORTH EAST LTD.
Regeneration and Local Services,Technical Services CM0300,Third Party Payments 4THIRD,430100,Rendered by Private Contractors,04/07/2019,3611391-118654,"1,323.40",STONEGRAVE AGGREGATES LTD.
Regeneration and Local Services,Technical Services CM0300,Third Party Payments 4THIRD,430100,Rendered by Private Contractors,04/07/2019,3611391-118859,"1,056.16",STONEGRAVE AGGREGATES LTD.
Regeneration and Local Services,Technical Services CM0300,Third Party Payments 4THIRD,430100,Rendered by Private Contractors,04/07/2019,3611391-119126,"1,177.00",STONEGRAVE AGGREGATES LTD.
Resources BK0010,Digital and Customer Services,Supplies and Services,342225,Computers and Communications,04/07/2019,3611395-130397,"4,132.00",SWITCHSHOP LTD.
Regeneration and Local Services,Corporate Property and Land,Supplies and Services,304221,Equipment and Materials,04/07/2019,3611396-180955,632.28,T CROSSLING & CO LTD.
Regeneration and Local Services,Corporate Property and Land,Supplies and Services,304221,Equipment and Materials,04/07/2019,3611396-182795,"2,392.00",T CROSSLING & CO LTD.
Regeneration and Local Services,Corporate Property and Land,Supplies and Services,304221,Equipment and Materials,04/07/2019,3611396-183402,651.04,T CROSSLING & CO LTD.
Regeneration and Local Services,Corporate Property and Land,Supplies and Services,304221,Equipment and Materials,04/07/2019,3611396-184512,773.99,T CROSSLING & CO LTD.
Resources BK0010,Legal & Democratic Services,Supplies and Services,338042,Services,04/07/2019,3611417-261801/INVPG162,"2,000.00",TRINITY CHAMBERS.
Adult and Health Services,Head of Adults,Supplies and Services,304259,Equipment and Materials,04/07/2019,3611419-HALL/KITCHENHIRE1/4-30/4/19,"1,000.00",TUDHOE COMMUNITY CENTRE.
Regeneration and Local Services,Technical Services CM0300,Supplies and Services,304221,Equipment and Materials,04/07/2019,3611422-199946,625.20,TYNEDALE ROADSTONE LTD.
Regeneration and Local Services,Technical Services CM0300,Supplies and Services,304221,Equipment and Materials,04/07/2019,3611422-200324,769.60,TYNEDALE ROADSTONE LTD.
Regeneration and Local Services,Technical Services CM0300,Supplies and Services,304221,Equipment and Materials,04/07/2019,3611422-200325,592.80,TYNEDALE ROADSTONE LTD.
Regeneration and Local Services,Technical Services CM0300,Supplies and Services,304221,Equipment and Materials,04/07/2019,3611422-200327,763.68,TYNEDALE ROADSTONE LTD.
Regeneration and Local Services,Culture Sport and Tourism,Supplies and Services,304259,Equipment and Materials,04/07/2019,3611424-US2602,865.00,ULTIMATE SUPPLIES (NORTH) LTD.
Regeneration and Local Services,Corporate Property and Land,Supplies and Services,304221,Equipment and Materials,04/07/2019,3611438-61096327,"4,994.55",WOLSELEY UK LTD.
Regeneration and Local Services,Corporate Property and Land,Supplies and Services,304221,Equipment and Materials,04/07/2019,3611438-61096342,643.06,WOLSELEY UK LTD.
Regeneration and Local Services,Environmental Services,Supplies and Services,304259,Equipment and Materials,04/07/2019,3611439-966,660.00,WOODCRAFT (UK) LTD.
Regeneration and Local Services,Environmental Services,Supplies and Services,304259,Equipment and Materials,04/07/2019,3611439-974,660.00,WOODCRAFT (UK) LTD.
Regeneration and Local Services,Culture Sport and Tourism,Supplies and Services,304259,Equipment and Materials,05/07/2019,3611448-90135837,"2,282.22",ABACUS LIGHTING LTD.
Regeneration and Local Services,Corporate Property and Land,Third Party Payments 4THIRD,430100,Rendered by Private Contractors,05/07/2019,3611451-41475363-61,"6,913.20",ADT FIRE & SECURITY PLC.
Regeneration and Local Services,Development and Housing,Supplies and Services,384871,Miscellaneous Expenses,05/07/2019,3611452-0000054500,562.00,ADVANCED INDUSTRIAL SOLUTIONS LTD.
Regeneration and Local Services,Technical Services CM0300,Supplies and Services,304221,Equipment and Materials,05/07/2019,3611454-28389650,"1,347.62",AGGREGATE INDUSTRIES UK LTD.
Regeneration and Local Services,Technical Services CM0300,Supplies and Services,304221,Equipment and Materials,05/07/2019,3611454-28389652,"1,217.56",AGGREGATE INDUSTRIES UK LTD.
Resources BK0010,Legal & Democratic Services,Supplies and Services,338102,Services,05/07/2019,3611456-0000033496,965.00,ALERE FORENSICS.
Regeneration and Local Services,Environmental Services,Third Party Payments 4THIRD,430100,Rendered by Private Contractors,05/07/2019,3611463-INV-3149,724.00,ANNFIELD AUTO SERVICES.
Regeneration and Local Services,Environmental Services,Third Party Payments 4THIRD,430100,Rendered by Private Contractors,05/07/2019,3611468-CI0089506,871.38,ARNOLD CLARK CAR & VAN RENTAL.
Regeneration and Local Services,Environmental Services,Supplies and Services,384199,Miscellaneous Expenses,05/07/2019,3611475-00037,"3,500.00",BANYAN ARTS.
Regeneration and Local Services,Corporate Property and Land,Supplies and Services,304359,Equipment and Materials,05/07/2019,3611488-BMPR/266/SKIPS,743.05,BISHOP MIDDLEHAM PLANT & RECYCLING LTD.
Regeneration and Local Services,Transport and Contracted Services,Supplies and Services,338066,Services,05/07/2019,3611491-SIN007987,"103,129.53",BLOOM PROCUREMENT SERVICES LTD (FORMERLY NEPRO LTD).
Adult and Health Services,Head of Adults,Supplies and Services,338367,Services,05/07/2019,3611503-59271,"3,030.00",CARE ABILITY HEALTHCARE LTD.
Adult and Health Services,Head of Adults,Supplies and Services,338366,Services,05/07/2019,3611503-59671,"2,088.13",CARE ABILITY HEALTHCARE LTD.
Regeneration and Local Services,Corporate Property and Land,Third Party Payments 4THIRD,430100,Rendered by Private Contractors,05/07/2019,3611505-5807,"3,681.57",CATHEDRAL LOCK & SAFE SERVICES LTD.
Children and Young Peoples Services,Head of Early Help Inclusion & Vulnerable Children.,Premises,108099,Service Repairs and Maintenance,05/07/2019,3611505-6004,"3,826.44",CATHEDRAL LOCK & SAFE SERVICES LTD.
Regeneration and Local Services,Culture Sport and Tourism,Premises,106080,Centrally Controlled Rep and Maint,05/07/2019,3611508-19502123,754.93,CENTRICA BUSINESS SOLUTIONS UK LTD.
Regeneration and Local Services,Culture Sport and Tourism,Premises,106080,Centrally Controlled Rep and Maint,05/07/2019,3611508-19502128,936.52,CENTRICA BUSINESS SOLUTIONS UK LTD.
Children and Young Peoples Services,Head of Early Help Inclusion & Vulnerable Children.,Employees,080025,Agency Staff,05/07/2019,3611510-04053788,945.00,CER (A DIVISION OF MONARCH EDUCATION LTD).
Regeneration and Local Services,Technical Services CM0300,Stock A926,926004,Stock,05/07/2019,3611520-400018336,"9,145.62",CLEVELAND POTASH LTD T/A ICL FERTILIZERS.
Regeneration and Local Services,Business Durham CL0850,Premises,120021,Energy Costs,05/07/2019,3611526-14133096,667.72,CORONA ENERGY RETAIL 2 LTD.
Regeneration and Local Services,Business Durham CL0850,Premises,120021,Energy Costs,05/07/2019,3611526-14133318,695.81,CORONA ENERGY RETAIL 2 LTD.
Regeneration and Local Services,Business Durham CL0850,Premises,120021,Energy Costs,05/07/2019,3611526-14133809,"1,148.86",CORONA ENERGY RETAIL 2 LTD.
Regeneration and Local Services,Environmental Services,Third Party Payments 4THIRD,430101,Rendered by Private Contractors,05/07/2019,3611541-IV1134898,"3,497.90",DIRECT TYRE MANAGEMENT LTD (DTM).
Regeneration and Local Services,Environmental Services,Third Party Payments 4THIRD,430101,Rendered by Private Contractors,05/07/2019,3611541-IV1141041,"4,005.26",DIRECT TYRE MANAGEMENT LTD (DTM).
Resources BK0010,Legal & Democratic Services,Supplies and Services,338101,Services,05/07/2019,3611545-MAY-19U,580.80,DR SREE MUSSUNOOR.
Resources BK0010,Legal & Democratic Services,Supplies and Services,338101,Services,05/07/2019,3611546-MAY-19D,"1,800.00",DR SREE MUSSUNOOR.
Regeneration and Local Services,Environmental Services,Supplies and Services,304221,Equipment and Materials,05/07/2019,3611556-0000033285,"3,415.60",EAST RIDING HORTICULTURE LTD.
Regeneration and Local Services,Environmental Services,Transport,210057,Repair and Maintenance of Vehicles,05/07/2019,3611557-S202580,797.21,ECON ENGINEERING LTD.
Regeneration and Local Services,Business Durham CL0850,Premises,120009,Energy Costs,05/07/2019,3611558-000005987775,"2,248.76",EDF ENERGY CUSTOMERS PLC T/A EDF ENERGY.
Regeneration and Local Services,Business Durham CL0850,Premises,120009,Energy Costs,05/07/2019,3611558-000005988275,"12,393.12",EDF ENERGY CUSTOMERS PLC T/A EDF ENERGY.
Regeneration and Local Services,Business Durham CL0850,Premises,120009,Energy Costs,05/07/2019,3611558-000005989242,"13,528.01",EDF ENERGY CUSTOMERS PLC T/A EDF ENERGY.
Regeneration and Local Services,Corporate Property and Land,Supplies and Services,304221,Equipment and Materials,05/07/2019,3611560-059-245191,648.00,EDMUNDSON ELECTRICAL LTD.
Regeneration and Local Services,Corporate Property and Land,Supplies and Services,304221,Equipment and Materials,05/07/2019,3611560-059-245880,819.21,EDMUNDSON ELECTRICAL LTD.
Regeneration and Local Services,Environmental Services,Transport,230005,Contract Hire,05/07/2019,3611568-8151921,576.00,ENTERPRISE FLEX-E-RENT T/A BURNT TREE GROUP LTD.
Regeneration and Local Services,Environmental Services,Transport,230005,Contract Hire,05/07/2019,3611568-8151928,"1,076.00",ENTERPRISE FLEX-E-RENT T/A BURNT TREE GROUP LTD.
Regeneration and Local Services,Environmental Services,Transport,230005,Contract Hire,05/07/2019,3611568-8151940,"1,076.00",ENTERPRISE FLEX-E-RENT T/A BURNT TREE GROUP LTD.
Regeneration and Local Services,Environmental Services,Transport,230005,Contract Hire,05/07/2019,3611568-8151946,"1,076.00",ENTERPRISE FLEX-E-RENT T/A BURNT TREE GROUP LTD.
Regeneration and Local Services,Environmental Services,Transport,230005,Contract Hire,05/07/2019,3611568-8151960,730.14,ENTERPRISE FLEX-E-RENT T/A BURNT TREE GROUP LTD.
Regeneration and Local Services,Environmental Services,Transport,230005,Contract Hire,05/07/2019,3611568-8151961,807.00,ENTERPRISE FLEX-E-RENT T/A BURNT TREE GROUP LTD.
Regeneration and Local Services,Environmental Services,Transport,230005,Contract Hire,05/07/2019,3611568-8151962,538.00,ENTERPRISE FLEX-E-RENT T/A BURNT TREE GROUP LTD.
Regeneration and Local Services,Transport and Contracted Services,Supplies and Services,304245,Equipment and Materials,05/07/2019,3611573-DHP0055,"2,443.75",FOUR HOUSING GROUP LTD.
Regeneration and Local Services,Corporate Property and Land,Third Party Payments 4THIRD,430100,Rendered by Private Contractors,05/07/2019,3611576-11016,"23,900.00",FROSTREE LTD.
Regeneration and Local Services,Corporate Property and Land,Third Party Payments 4THIRD,430100,Rendered by Private Contractors,05/07/2019,3611576-11021,932.00,FROSTREE LTD.
Regeneration and Local Services,Technical Services CM0300,Supplies and Services,384199,Miscellaneous Expenses,05/07/2019,3611579-107769375,"5,250.75",GATESHEAD COUNCIL.
Children and Young Peoples Services,Head of Education and Skills,Transport,230008,Contract Hire,05/07/2019,3611580-BW009,"1,575.00",GAVIN ELLIOTT T/A LOCATION TAXIS.
Adult and Health Services,Public Health CC0450,Third Party Payments 4THIRD,460803,Contract Payments,05/07/2019,3611593-DCC005-MAY19,"161,600.00",HARBOUR SUPPORT SERVICES.
Adult and Health Services,Public Health CC0450,Third Party Payments 4THIRD,460803,Contract Payments,05/07/2019,3611594-2510028915,944.97,HARROGATE & DISTRICT NHS FOUNDATION TRUST.
Resources BK0010,Corporate Finance & Commercial Services,Supplies and Services,338221,Services,05/07/2019,3611597-SF-035648,"1,019.34",HEALTH ASSURED LTD.
Regeneration and Local Services,Environmental Services,Supplies and Services,304999,Equipment and Materials,05/07/2019,3611613-RED-06-2019-153,"9,999.60",JA JEWITT (MEAT) LTD.
Regeneration and Local Services,Technical Services CM0300,Third Party Payments 4THIRD,430100,Rendered by Private Contractors,05/07/2019,3611614-23025,"4,735.20",JACK COUPE & SONS LTD T/A COUPE LINE.
Regeneration and Local Services,Technical Services CM0300,Stock A926,926900,Stock in hand-Inventory system,05/07/2019,3611617-9286,722.50,JG UNIFORMS.
Regeneration and Local Services,Corporate Property and Land,Supplies and Services,304221,Equipment and Materials,05/07/2019,3611622-GOI1681/D,"11,840.36",JT DOVE LTD.
Regeneration and Local Services,Corporate Property and Land,Supplies and Services,304221,Equipment and Materials,05/07/2019,3611622-PHBII44708,"1,685.60",JT DOVE LTD.
Regeneration and Local Services,Corporate Property and Land,Supplies and Services,304221,Equipment and Materials,05/07/2019,3611622-PHBII44709,951.48,JT DOVE LTD.
Regeneration and Local Services,Technical Services CM0300,Supplies and Services,342051,Computers and Communications,05/07/2019,3611625-2020188,"2,670.00",KEYSOFT SOLUTIONS LTD.
Resources BK0010,Legal & Democratic Services,Supplies and Services,372009,Subscriptions E372,05/07/2019,3611633-2874,"1,200.00",LAWYERS IN LOCAL GOVERNMENT (LLG).
Children and Young Peoples Services,Head of Education and Skills,Supplies and Services,384199,Miscellaneous Expenses,05/07/2019,3611636-7028,530.00,LEE`S COACHES LTD.
Regeneration and Local Services,Culture Sport and Tourism,Supplies and Services,324001,Provisions E324,05/07/2019,3611660-905280093,918.33,MOLSON COORS BREWING COMPANY (UK) LTD.
Regeneration and Local Services,Environmental Services,Supplies and Services,338066,Services,05/07/2019,3611661-1335,"3,062.50",MOSEDALE GILLATT ARCHITECTS LTD.
Resources BK0010,Legal & Democratic Services,Supplies and Services,338105,Services,05/07/2019,3611662-QEM/062019,"1,710.00",MR DAVID PJ KIRBY (CONSULTANT).
Children and Young Peoples Services,Head of Education and Skills,Supplies and Services,384302,Miscellaneous Expenses,05/07/2019,3611668-HN00225,"3,800.00",REDACTED - PAYMENT TO INDIVIDUAL
Regeneration and Local Services,Environmental Services,Third Party Payments 4THIRD,430100,Rendered by Private Contractors,05/07/2019,3611674-10783,785.60,N1 JETTING SYSTEMS LTD.
Regeneration and Local Services,Culture Sport and Tourism,Supplies and Services,384199,Miscellaneous Expenses,05/07/2019,3611682-GTSS0030,"1,200.00",NICOLA MORRIS.
Adult and Health Services,Head of Adults,Third Party Payments 4THIRD,472101,Purchase of Care,05/07/2019,3611684-0000040383,"3,064.98",NORTH EAST AUTISM SOCIETY.
Regeneration and Local Services,Culture Sport and Tourism,Supplies and Services,338047,Services,05/07/2019,3611713-SIN1095001,950.11,PPL PRS LTD.
Regeneration and Local Services,Transport and Contracted Services,Third Party Payments 4THIRD,430100,Rendered by Private Contractors,05/07/2019,3611719-119616,"1,504.80",QW SECURITY LTD.
Children and Young Peoples Services,Head of Education and Skills,Supplies and Services,308013,Furniture,05/07/2019,3611725-65341,583.33,REGENCY BLINDS.
Adult and Health Services,Commissioning inc Supporting People,Third Party Payments 4THIRD,479102,Purchase of Care,05/07/2019,3611729-20085,"32,437.48",RETHINK MENTAL ILLNESS LTD.
Regeneration and Local Services,Environmental Services,Third Party Payments 4THIRD,430100,Rendered by Private Contractors,05/07/2019,3611731-721586,534.40,RICKERBY LTD.
Regeneration and Local Services,Environmental Services,Third Party Payments 4THIRD,430100,Rendered by Private Contractors,05/07/2019,3611731-721588,630.54,RICKERBY LTD.
Regeneration and Local Services,Environmental Services,Transport,210057,Repair and Maintenance of Vehicles,05/07/2019,3611744-2019.1000012162,531.57,SCARAB SWEEPERS LTD.
Adult and Health Services,Public Health CC0450,Third Party Payments 4THIRD,460803,Contract Payments,05/07/2019,3611753-D0028941A,"91,666.67",SOUTH TEES HOSPITALS NHS FOUNDATION TRUST.
Regeneration and Local Services,Culture Sport and Tourism,Supplies and Services,342053,Computers and Communications,05/07/2019,3611754-000077,"2,499.50",SPRYTAR LTD.
Adult and Health Services,Commissioning inc Supporting People,Third Party Payments 4THIRD,479101,Purchase of Care,05/07/2019,3611762-BARTIMETOHEAL050619,"13,652.40",TAMARIS HEALTHCARE (ENGLAND) LTD.
Children and Young Peoples Services,Head of Early Help Inclusion & Vulnerable Children.,Employees,080025,Agency Staff,05/07/2019,3611764-2301064,"1,061.40",TEACHING PERSONNEL LTD.
Regeneration and Local Services,Environmental Services,Supplies and Services,304221,Equipment and Materials,05/07/2019,3611776-NSIN00014709,786.24,THOMAS OWEN & SONS (NEWCASTLE) LTD.
Regeneration and Local Services,Technical Services CM0300,Supplies and Services,304221,Equipment and Materials,05/07/2019,3611785-200106,625.20,TYNEDALE ROADSTONE LTD.
Regeneration and Local Services,Technical Services CM0300,Supplies and Services,304221,Equipment and Materials,05/07/2019,3611785-200323,628.80,TYNEDALE ROADSTONE LTD.
Regeneration and Local Services,Development and Housing,Supplies and Services,344014,Telephones,05/07/2019,3611798-NC24054,"1,520.00",VODAFONE LTD.
Regeneration and Local Services,Technical Services CM0300,Supplies and Services,304221,Equipment and Materials,05/07/2019,3611800-PSI-781115,"1,044.00",WATCO UK LTD.
Regeneration and Local Services,Corporate Property and Land,Premises,150015,Apportioned Exps of Operational Blds,05/07/2019,3611803-901249,600.60,WERNICK HIRE LTD.
Regeneration and Local Services,Corporate Property and Land,Premises,150015,Apportioned Exps of Operational Blds,05/07/2019,3611803-901255,600.60,WERNICK HIRE LTD.
Regeneration and Local Services,Corporate Property and Land,Premises,150015,Apportioned Exps of Operational Blds,05/07/2019,3611803-901257,569.80,WERNICK HIRE LTD.
Regeneration and Local Services,Corporate Property and Land,Premises,150015,Apportioned Exps of Operational Blds,05/07/2019,3611803-901258,600.60,WERNICK HIRE LTD.
Regeneration and Local Services,Corporate Property and Land,Premises,150015,Apportioned Exps of Operational Blds,05/07/2019,3611803-901259,600.60,WERNICK HIRE LTD.
Regeneration and Local Services,Business Durham CL0850,Supplies and Services,338094,Services,05/07/2019,3611811-908,"2,520.00",XCEL CONFERENCE & EVENTS (INNOVATE COUNTY DURHAM) LTD.
Resources BK0010,Digital and Customer Services,Supplies and Services,332029,Printing Stationery and Gen Off Exps,05/07/2019,3611812-900186961,"8,986.84",XEROX FINANCE LTD.
Regeneration and Local Services,Culture Sport and Tourism,Supplies and Services,304259,Equipment and Materials,05/07/2019,3611817-I-0598746,516.35,ZOGGS INTERNATIONAL LTD.
Regeneration and Local Services,Culture Sport and Tourism,Supplies and Services,304259,Equipment and Materials,05/07/2019,3611817-I-0598754,726.85,ZOGGS INTERNATIONAL LTD.
Regeneration and Local Services,Culture Sport and Tourism,Supplies and Services,304259,Equipment and Materials,05/07/2019,3611817-I-0598756,"1,023.10",ZOGGS INTERNATIONAL LTD.
Regeneration and Local Services,Technical Services CM0300,Supplies and Services,304221,Equipment and Materials,08/07/2019,3611825-009140,550.00,A HILL & SONS LTD.
Children and Young Peoples Services,Head of Education and Skills,Transport,230008,Contract Hire,08/07/2019,3611826-60,"1,060.00",A HJ JOBLING T/A CASTLE TAXIS.
Regeneration and Local Services,Environmental Services,Third Party Payments 4THIRD,430115,Rendered by Private Contractors,08/07/2019,3611827-0075,"17,084.76",A WILLEY T/A GREENTECH RECYCLING.
Regeneration and Local Services,Environmental Services,Third Party Payments 4THIRD,430115,Rendered by Private Contractors,08/07/2019,3611827-DCCPG002,"1,406.24",A WILLEY T/A GREENTECH RECYCLING.
Children and Young Peoples Services,Head of Education and Skills,Transport,230012,Contract Hire,08/07/2019,3611828-1/06/19,"1,364.58",ABA TAXIS.
Regeneration and Local Services,Culture Sport and Tourism,Supplies and Services,304259,Equipment and Materials,08/07/2019,3611829-116352031,"1,251.18",AC ENTERTAINMENT TECHNOLOGIES.
Children and Young Peoples Services,Head of Education and Skills,Transport,230006,Contract Hire,08/07/2019,3611830-824-F785,"1,424.00",AC TAXIS.
Regeneration and Local Services,Technical Services CM0300,Fees,901002,Consultants fees 901002,08/07/2019,3611832-28391475,"4,000.00",AECOM LTD.
Regeneration and Local Services,Technical Services CM0300,Supplies and Services,304221,Equipment and Materials,08/07/2019,3611834-28327722,533.88,AGGREGATE INDUSTRIES UK LTD.
Regeneration and Local Services,Technical Services CM0300,Supplies and Services,304221,Equipment and Materials,08/07/2019,3611834-28396511,743.76,AGGREGATE INDUSTRIES UK LTD.
Regeneration and Local Services,Technical Services CM0300,Supplies and Services,304221,Equipment and Materials,08/07/2019,3611834-28402798,968.68,AGGREGATE INDUSTRIES UK LTD.
Regeneration and Local Services,Technical Services CM0300,Supplies and Services,304221,Equipment and Materials,08/07/2019,3611834-28402801,675.60,AGGREGATE INDUSTRIES UK LTD.
Regeneration and Local Services,Technical Services CM0300,Supplies and Services,304221,Equipment and Materials,08/07/2019,3611834-28402802,969.00,AGGREGATE INDUSTRIES UK LTD.
Regeneration and Local Services,Culture Sport and Tourism,Supplies and Services,304259,Equipment and Materials,08/07/2019,3611836-165941,760.00,ALBANY OFFICE EQUIPMENT (WHOLESALE) LTD.
Children and Young Peoples Services,Head of Education and Skills,Transport,230008,Contract Hire,08/07/2019,3611843-0075,"1,800.00",ANDREW SIMPSON T/A ANDY`S CABS.
Regeneration and Local Services,Corporate Property and Land,Supplies and Services,304259,Equipment and Materials,08/07/2019,3611844-5029404,"1,060.75",ANGEL SPRINGS LTD T/A WATERLOGIC.*
Children and Young Peoples Services,Head of Education and Skills,Transport,230008,Contract Hire,08/07/2019,3611850-JUNE2019-03,"1,374.80",ARMSTRONG`S TAXIS.
Children and Young Peoples Services,Head of Education and Skills,Transport,230012,Contract Hire,08/07/2019,3611850-JUNE2019-04,784.00,ARMSTRONG`S TAXIS.
Children and Young Peoples Services,Head of Education and Skills,Supplies and Services,312009,Newspapers books and periodicals E312,08/07/2019,3611852-6061738,918.72,ASKEWS & HOLTS LIBRARY SERVICES LTD.
Children and Young Peoples Services,Head of Education and Skills,Supplies and Services,312009,Newspapers books and periodicals E312,08/07/2019,3611852-6061813,832.50,ASKEWS & HOLTS LIBRARY SERVICES LTD.
Children and Young Peoples Services,Head of Education and Skills,Transport,230008,Contract Hire,08/07/2019,3611853-711,"2,221.40",AT TAXIS LTD.
Children and Young Peoples Services,Head of Education and Skills,Transport,230008,Contract Hire,08/07/2019,3611853-712,"2,560.00",AT TAXIS LTD.
Adult and Health Services,Head of Adults,Transport,230005,Contract Hire,08/07/2019,3611853-713,"2,380.00",AT TAXIS LTD.
Children and Young Peoples Services,Head of Education and Skills,Transport,230007,Contract Hire,08/07/2019,3611853-714,"2,180.00",AT TAXIS LTD.
Children and Young Peoples Services,Head of Education and Skills,Transport,230009,Contract Hire,08/07/2019,3611853-715,"1,380.00",AT TAXIS LTD.
Regeneration and Local Services,Technical Services CM0300,Supplies and Services,338027,Services,08/07/2019,3611854-19024751,"13,401.00",ATKINS GLOBAL.
Children and Young Peoples Services,Head of Education and Skills,Transport,230007,Contract Hire,08/07/2019,3611855-03979,560.00,ATLAS TAXIS CONSETT.
Children and Young Peoples Services,Head of Education and Skills,Transport,230007,Contract Hire,08/07/2019,3611855-03981,759.20,ATLAS TAXIS CONSETT.
Children and Young Peoples Services,Head of Education and Skills,Transport,230007,Contract Hire,08/07/2019,3611855-03982,784.00,ATLAS TAXIS CONSETT.
Adult and Health Services,Head of Adults,Transport,230005,Contract Hire,08/07/2019,3611855-03983,612.00,ATLAS TAXIS CONSETT.
Children and Young Peoples Services,Head of Education and Skills,Transport,230007,Contract Hire,08/07/2019,3611855-03984,"1,110.40",ATLAS TAXIS CONSETT.
Children and Young Peoples Services,Head of Education and Skills,Transport,230009,Contract Hire,08/07/2019,3611855-03985,640.00,ATLAS TAXIS CONSETT.
Children and Young Peoples Services,Head of Education and Skills,Transport,230007,Contract Hire,08/07/2019,3611855-03986,633.60,ATLAS TAXIS CONSETT.
Children and Young Peoples Services,Head of Education and Skills,Transport,230008,Contract Hire,08/07/2019,3611857-280619,"1,600.00",AVALON TAXIS.
Regeneration and Local Services,Environmental Services,Supplies and Services,304221,Equipment and Materials,08/07/2019,3611859-INV131237,"1,190.00",AZTEC CHEMICALS LTD.
Adult and Health Services,Head of Adults,Third Party Payments 4THIRD,479111,Purchase of Care,08/07/2019,3611877-201908,573.50,BLUE SKY TRUST.
Children and Young Peoples Services,Head of Education and Skills,Transport,230007,Contract Hire,08/07/2019,3611878-20811,"2,788.00",BLUELINE TAXIS.
Children and Young Peoples Services,Head of Education and Skills,Transport,230007,Contract Hire,08/07/2019,3611878-21061,"2,610.00",BLUELINE TAXIS.
Children and Young Peoples Services,Head of Education and Skills,Transport,230008,Contract Hire,08/07/2019,3611880-81,"1,400.00",BOBS TAXIS.
Regeneration and Local Services,Culture Sport and Tourism,Supplies and Services,312013,Newspapers books and periodicals E312,08/07/2019,3611882-17300,"4,674.39",BOLINDA DIGITAL LTD.
Children and Young Peoples Services,Head of Education and Skills,Transport,230008,Contract Hire,08/07/2019,3611883-DC10,"2,160.00",BOWES TRAVEL.
Adult and Health Services,Head of Adults,Transport,230005,Contract Hire,08/07/2019,3611886-BZ00312,574.60,BREZ`S TAXIS.
Children and Young Peoples Services,Head of Education and Skills,Transport,230008,Contract Hire,08/07/2019,3611886-BZ00313,"1,110.60",BREZ`S TAXIS.
Children and Young Peoples Services,Head of Education and Skills,Transport,230008,Contract Hire,08/07/2019,3611886-BZ00314,"1,005.40",BREZ`S TAXIS.
Adult and Health Services,Head of Adults,Transport,230005,Contract Hire,08/07/2019,3611886-BZ00315,912.00,BREZ`S TAXIS.
Children and Young Peoples Services,Head of Education and Skills,Transport,230012,Contract Hire,08/07/2019,3611887-10-E070,"1,500.00",BRIAN PURVIS T/A BJ`S TAXIS.
Adult and Health Services,Head of Adults,Transport,230005,Contract Hire,08/07/2019,3611887-6-SLD017,780.00,BRIAN PURVIS T/A BJ`S TAXIS.
Regeneration and Local Services,Technical Services CM0300,Supplies and Services,336007,Advertising E336,08/07/2019,3611888-71600,700.00,BRINNO UK LTD.
Regeneration and Local Services,Environmental Services,Transport,210057,Repair and Maintenance of Vehicles,08/07/2019,3611891-PSI0099097,"1,010.00",BRITISH STEEL LTD.
Children and Young Peoples Services,Head of Education and Skills,Third Party Payments 4THIRD,440999,Other third party payments E440,08/07/2019,3611894-DCCALS/BI/002,"5,004.24",BUSINESS IMPROVEMENT LTD T/A SKILLS ACADEMY GROUP.
Children and Young Peoples Services,Head of Education and Skills,Transport,230008,Contract Hire,08/07/2019,3611895-A028021,"1,267.11",C & R TAXIS.
Children and Young Peoples Services,Head of Education and Skills,Transport,230008,Contract Hire,08/07/2019,3611895-W04008,"2,000.00",C & R TAXIS.
Children and Young Peoples Services,Head of Education and Skills,Transport,230008,Contract Hire,08/07/2019,3611895-W078021,"2,462.40",C & R TAXIS.
Children and Young Peoples Services,Head of Education and Skills,Transport,230008,Contract Hire,08/07/2019,3611895-W11201,810.00,C & R TAXIS.
Children and Young Peoples Services,Head of Education and Skills,Transport,230008,Contract Hire,08/07/2019,3611896-BIL0163,"1,026.00",CA MUSGROVE.
Regeneration and Local Services,Corporate Property and Land,Third Party Payments 4THIRD,430100,Rendered by Private Contractors,08/07/2019,3611902-6020,790.00,CATHEDRAL LOCK & SAFE SERVICES LTD.
Children and Young Peoples Services,Head of Childrens Social Care,Supplies and Services,384302,Miscellaneous Expenses,08/07/2019,3611906-1050,"1,445.00",CHANGE WORKING LTD T/A TRAIN OF THOUGHT.
Children and Young Peoples Services,Head of Childrens Social Care,Supplies and Services,384302,Miscellaneous Expenses,08/07/2019,3611906-1051,"3,980.00",CHANGE WORKING LTD T/A TRAIN OF THOUGHT.
Children and Young Peoples Services,Head of Education and Skills,Transport,230007,Contract Hire,08/07/2019,3611915-5254/05,"1,100.00",CHRISTOPHER MADDISON (TAXI).
Children and Young Peoples Services,Head of Education and Skills,Transport,230006,Contract Hire,08/07/2019,3611915-F763/10,"1,280.00",CHRISTOPHER MADDISON (TAXI).
Dedicated Schools Grant BG0015,DSG High Needs Block,Third Party Payments 4THIRD,440080,Other third party payments E440,08/07/2019,3611917-I0025203,"21,746.99",CITY OF SUNDERLAND COLLEGE.
Transformation and Partnerships,Communications Management,Supplies and Services,336005,Advertising E336,08/07/2019,3611919-0103001935,750.00,CLEAR CHANNEL UK LTD.
Regeneration and Local Services,Technical Services CM0300,Stock A926,926004,Stock,08/07/2019,3611921-400018364,"10,351.44",CLEVELAND POTASH LTD T/A ICL FERTILIZERS.
Regeneration and Local Services,Technical Services CM0300,Stock A926,926004,Stock,08/07/2019,3611921-400018365,"4,746.06",CLEVELAND POTASH LTD T/A ICL FERTILIZERS.
Regeneration and Local Services,Technical Services CM0300,Stock A926,926900,Stock in hand-Inventory system,08/07/2019,3611922-538667,602.00,CMT EQUIPMENT LTD.
Children and Young Peoples Services,Head of Childrens Social Care,Third Party Payments 4THIRD,486044,Service level agreements E486,08/07/2019,3611923-3980033911,"7,470.84",CO DURHAM & DARLINGTON NHS FOUNDATION TRUST.
Regeneration and Local Services,Culture Sport and Tourism,Third Party Payments 4THIRD,430100,Rendered by Private Contractors,08/07/2019,3611924-INV04043,761.15,COMPETITION LINE UK LTD T/A LIFESTYLE FITNESS.
Regeneration and Local Services,Culture Sport and Tourism,Third Party Payments 4THIRD,430100,Rendered by Private Contractors,08/07/2019,3611924-INV04044,867.10,COMPETITION LINE UK LTD T/A LIFESTYLE FITNESS.
Children and Young Peoples Services,Head of Education and Skills,Transport,230008,Contract Hire,08/07/2019,3611925-1539,"2,011.00",CONNORS MINI BUSES.*
Children and Young Peoples Services,Head of Education and Skills,Transport,230008,Contract Hire,08/07/2019,3611925-1540,"1,928.80",CONNORS MINI BUSES.*
Children and Young Peoples Services,Head of Education and Skills,Transport,230008,Contract Hire,08/07/2019,3611925-1541,"2,462.40",CONNORS MINI BUSES.*
Children and Young Peoples Services,Head of Education and Skills,Supplies and Services,384199,Miscellaneous Expenses,08/07/2019,3611931-19/20044,"1,330.00",CORNFORTH PARTNERSHIP.
Children and Young Peoples Services,Head of Education and Skills,Transport,230007,Contract Hire,08/07/2019,3611934-DCC/4003/JUNE19,"1,867.40",COUNTY COACHES.
Children and Young Peoples Services,Head of Education and Skills,Transport,230003,Contract Hire,08/07/2019,3611934-DCC/4016/JUNE19,"2,200.00",COUNTY COACHES.
Children and Young Peoples Services,Head of Education and Skills,Transport,230003,Contract Hire,08/07/2019,3611934-DCC/4021/JUNE19,"2,480.00",COUNTY COACHES.
Children and Young Peoples Services,Head of Education and Skills,Transport,230003,Contract Hire,08/07/2019,3611934-DCC/4025/JUNE19,"2,160.00",COUNTY COACHES.
Children and Young Peoples Services,Head of Education and Skills,Transport,230007,Contract Hire,08/07/2019,3611934-DCC/4118/JUNE19,"4,842.80",COUNTY COACHES.
Children and Young Peoples Services,Head of Education and Skills,Transport,230008,Contract Hire,08/07/2019,3611938-48,"1,518.40",CUTHBERT CABS.
Children and Young Peoples Services,Head of Education and Skills,Transport,230008,Contract Hire,08/07/2019,3611944-HOW0619,"1,466.00",D IRVING T/A BJ TAXIS.
Adult and Health Services,Head of Adults,Transport,230005,Contract Hire,08/07/2019,3611944-THOR0619,"1,051.36",D IRVING T/A BJ TAXIS.
Children and Young Peoples Services,Head of Education and Skills,Transport,230008,Contract Hire,08/07/2019,3611946-351,"1,208.59",DA TRAVEL.
Children and Young Peoples Services,Head of Education and Skills,Transport,230008,Contract Hire,08/07/2019,3611950-C010,"1,200.00",DAVID BRIDDICK T/A COUNDONS TAXIS.
Children and Young Peoples Services,Head of Education and Skills,Transport,230008,Contract Hire,08/07/2019,3611952-A107,"1,333.80",DAVID FOREMAN T/A DAVES TAXIS.
Children and Young Peoples Services,Head of Education and Skills,Transport,230009,Contract Hire,08/07/2019,3611952-A108,"1,200.00",DAVID FOREMAN T/A DAVES TAXIS.
Resources BK0010,Digital and Customer Services,Vehicles Equipment Furniture and Fittings,912701,Computer equipment,08/07/2019,3611958-7402535882,"3,608.68",DELL COMPUTER CORPORATION LTD.
Resources BK0010,Digital and Customer Services,Vehicles Equipment Furniture and Fittings,912701,Computer equipment,08/07/2019,3611958-7402536074,856.60,DELL COMPUTER CORPORATION LTD.
Regeneration and Local Services,Environmental Services,Transport,210057,Repair and Maintenance of Vehicles,08/07/2019,3611959-354678,"1,755.00",DENNIS EAGLE LTD.
Regeneration and Local Services,Culture Sport and Tourism,Supplies and Services,304259,Equipment and Materials,08/07/2019,3611961-0000926557,"1,324.35",DIRECT365 ONLINE LTD.
Children and Young Peoples Services,Head of Education and Skills,Transport,230003,Contract Hire,08/07/2019,3611966-7617-4015,"2,710.00",DURHAM CITY COACHES.
Children and Young Peoples Services,Head of Education and Skills,Transport,230003,Contract Hire,08/07/2019,3611966-7617-4019,"3,210.00",DURHAM CITY COACHES.
Children and Young Peoples Services,Head of Education and Skills,Transport,230003,Contract Hire,08/07/2019,3611966-7617-4023,"2,590.00",DURHAM CITY COACHES.
Regeneration and Local Services,Culture Sport and Tourism,Supplies and Services,338047,Services,08/07/2019,3611968-3/19,"1,788.75",DURHAM DRAMATIC SOCIETY.
Regeneration and Local Services,Corporate Property and Land,Supplies and Services,304221,Equipment and Materials,08/07/2019,3611975-059-245684,545.52,EDMUNDSON ELECTRICAL LTD.
Regeneration and Local Services,Corporate Property and Land,Supplies and Services,304221,Equipment and Materials,08/07/2019,3611975-059-245972,"1,815.02",EDMUNDSON ELECTRICAL LTD.
Regeneration and Local Services,Technical Services CM0300,Stock A926,926900,Stock in hand-Inventory system,08/07/2019,3611975-059-246017,627.00,EDMUNDSON ELECTRICAL LTD.
Regeneration and Local Services,Corporate Property and Land,Supplies and Services,304221,Equipment and Materials,08/07/2019,3611975-059-246022,795.48,EDMUNDSON ELECTRICAL LTD.
Dedicated Schools Grant BG0015,DSG High Needs Block,Supplies and Services,384199,Miscellaneous Expenses,08/07/2019,3611978-83,"2,082.50",EMILY BACKES T/A TALKINDALES.
Regeneration and Local Services,Corporate Property and Land,Supplies and Services,304221,Equipment and Materials,08/07/2019,3611979-SIN017683,634.48,ENERGY CONSERVATION SOLUTIONS LTD T/A ENERGYS.
Regeneration and Local Services,Environmental Services,Supplies and Services,384956,Miscellaneous Expenses,08/07/2019,3611980-Y00002508T,"5,504.30",ENVIRONMENT AGENCY.
Regeneration and Local Services,Environmental Services,Supplies and Services,384956,Miscellaneous Expenses,08/07/2019,3611980-Y00003260T,"5,504.30",ENVIRONMENT AGENCY.
Regeneration and Local Services,Corporate Property and Land,Supplies and Services,338027,Services,08/07/2019,3611985-132416/01,725.00,FAIRHURST (CONSULTING ENGINEERS).
Regeneration and Local Services,Corporate Property and Land,Supplies and Services,338027,Services,08/07/2019,3611985-132881/01,625.00,FAIRHURST (CONSULTING ENGINEERS).
Regeneration and Local Services,Business Durham CL0850,Supplies and Services,384199,Miscellaneous Expenses,08/07/2019,3611985-133140/01,750.00,FAIRHURST (CONSULTING ENGINEERS).
Regeneration and Local Services,Environmental Services,Supplies and Services,338099,Services,08/07/2019,3611988-4100659751,735.00,FIONA GREEN GARDEN HISTORIAN.
Children and Young Peoples Services,Head of Education and Skills,Transport,230008,Contract Hire,08/07/2019,3611989-0466,"1,658.40",FMR SILVA PITA.
Children and Young Peoples Services,Head of Education and Skills,Transport,230007,Contract Hire,08/07/2019,3611989-0467,718.20,FMR SILVA PITA.
Children and Young Peoples Services,Head of Education and Skills,Transport,230007,Contract Hire,08/07/2019,3611989-0468,712.60,FMR SILVA PITA.
Regeneration and Local Services,Corporate Property and Land,Third Party Payments 4THIRD,430100,Rendered by Private Contractors,08/07/2019,3611993-10992,"52,923.00",FROSTREE LTD.
Regeneration and Local Services,Corporate Property and Land,Third Party Payments 4THIRD,430100,Rendered by Private Contractors,08/07/2019,3611994-14867,"4,985.00",FT LEISURE LTD.
Children and Young Peoples Services,Head of Education and Skills,Transport,230007,Contract Hire,08/07/2019,3611996-3-3314,"1,700.00",G ANGHEL T/A A TAXI.
Children and Young Peoples Services,Head of Education and Skills,Transport,230008,Contract Hire,08/07/2019,3611996-4-A154,960.00,G ANGHEL T/A A TAXI.
Regeneration and Local Services,Environmental Services,Supplies and Services,304259,Equipment and Materials,08/07/2019,3612000-3198,"3,154.25",GB SPORT & LEISURE UK LTD.
Regeneration and Local Services,Culture Sport and Tourism,Supplies and Services,384956,Miscellaneous Expenses,08/07/2019,3612007-SUP0006886,"4,728.45",GLADSTONE MRM LTD.
Regeneration and Local Services,Transport and Contracted Services,Third Party Payments 4THIRD,430106,Rendered by Private Contractors,08/07/2019,3612008-69973,"81,988.65",GO GATESHEAD LTD.
Regeneration and Local Services,Corporate Property and Land,Premises,145023,Cleaning and Domestic Supplies,08/07/2019,3612009-06/005173,"1,468.00",GREENHAM TRADING LTD.
Regeneration and Local Services,Environmental Services,Transport,210057,Repair and Maintenance of Vehicles,08/07/2019,3612011-153646,587.40,GREENLAY (GRASS MACHINERY) LTD.
Regeneration and Local Services,Corporate Property and Land,Supplies and Services,304245,Equipment and Materials,08/07/2019,3612016-J6978,817.00,GROVE REED.
Resources BK0010,Digital and Customer Services,Supplies and Services,304303,Equipment and Materials,08/07/2019,3612017-INV0175369,650.00,GV MULTIMEDIA LTD.
Resources BK0010,Digital and Customer Services,Supplies and Services,304303,Equipment and Materials,08/07/2019,3612017-INV0175371,"2,080.61",GV MULTIMEDIA LTD.
Children and Young Peoples Services,Head of Education and Skills,Transport,230009,Contract Hire,08/07/2019,3612021-09,"1,011.20",HARDIP SINGH MAHIL T/A AMBER CARS.
Children and Young Peoples Services,Head of Education and Skills,Transport,230008,Contract Hire,08/07/2019,3612023-HT395,"1,693.80",HARRY`S TAXI`S.
Children and Young Peoples Services,Head of Education and Skills,Transfer Payments,510027,School Children,08/07/2019,3612025-SPRING/SUMMERTERM19,"1,503.00",HAYSTACKS NURSERY..
Regeneration and Local Services,Corporate Property and Land,Supplies and Services,304221,Equipment and Materials,08/07/2019,3612026-4635101,"2,011.08",HEADLAM (FLOORCOVERING DISTRIBUTORS) LTD.
Resources BK0010,Digital and Customer Services,Supplies and Services,304303,Equipment and Materials,08/07/2019,3612037-4415201,733.17,INSIGHT DIRECT (UK) LTD.
Regeneration and Local Services,Technical Services CM0300,Third Party Payments 4THIRD,460109,Contract Payments,08/07/2019,3612038-INS1756,520.00,INSPECTORATE LTD T/A ROCH NDT SERVICES.
Regeneration and Local Services,Environmental Services,Transport,210057,Repair and Maintenance of Vehicles,08/07/2019,3612040-339346,589.75,IWS GAFFNEY (INDUSTRIAL & WELDING SUPPLIES).
Regeneration and Local Services,Technical Services CM0300,Third Party Payments 4THIRD,430100,Rendered by Private Contractors,08/07/2019,3612043-23031,"2,351.85",JACK COUPE & SONS LTD T/A COUPE LINE.
Children and Young Peoples Services,Head of Education and Skills,Third Party Payments 4THIRD,440999,Other third party payments E440,08/07/2019,3612044-JDA/DCC/1768,"4,648.98",JACK DRUM ARTS LTD.
Children and Young Peoples Services,Head of Education and Skills,Transport,230008,Contract Hire,08/07/2019,3612048-2898,"1,732.20",JEFF ANDERSON COACHES LTD.
Children and Young Peoples Services,Head of Education and Skills,Transport,230008,Contract Hire,08/07/2019,3612048-2899,"1,650.00",JEFF ANDERSON COACHES LTD.
Children and Young Peoples Services,Head of Education and Skills,Transport,230007,Contract Hire,08/07/2019,3612048-2900,"2,770.00",JEFF ANDERSON COACHES LTD.
Children and Young Peoples Services,Head of Education and Skills,Transport,230007,Contract Hire,08/07/2019,3612048-2901,"2,020.80",JEFF ANDERSON COACHES LTD.
Children and Young Peoples Services,Head of Education and Skills,Transport,230007,Contract Hire,08/07/2019,3612052-69-5234,"1,800.00",JOHN CRAKE & SONS MINI BUSES LTD.
Regeneration and Local Services,Technical Services CM0300,Stock A926,926900,Stock in hand-Inventory system,08/07/2019,3612056-BII291001,997.12,JT DOVE LTD.
Regeneration and Local Services,Corporate Property and Land,Supplies and Services,304221,Equipment and Materials,08/07/2019,3612056-BII291101,"1,116.11",JT DOVE LTD.
Regeneration and Local Services,Technical Services CM0300,Stock A926,926900,Stock in hand-Inventory system,08/07/2019,3612056-GOI1686/D,990.00,JT DOVE LTD.
Children and Young Peoples Services,Head of Education and Skills,Transport,230008,Contract Hire,08/07/2019,3612058-10-JUNE,"2,260.00",KD TAXIS.
Children and Young Peoples Services,Head of Education and Skills,Transport,230008,Contract Hire,08/07/2019,3612059-S027-JUNE,"1,684.20",KEITH GIBSON T/A KEITH`S TAXIS.
Children and Young Peoples Services,Head of Education and Skills,Transport,230008,Contract Hire,08/07/2019,3612061-010619,"2,404.99",KEVIN EDMUNDSON.
Children and Young Peoples Services,Head of Education and Skills,Transport,230009,Contract Hire,08/07/2019,3612062-04,543.20,KEVIN HALL T/A KDH TAXIS.
Children and Young Peoples Services,Head of Education and Skills,Transport,230006,Contract Hire,08/07/2019,3612071-1778,720.00,LD TAXIS.
Children and Young Peoples Services,Head of Education and Skills,Transport,230008,Contract Hire,08/07/2019,3612071-1779,"1,600.00",LD TAXIS.
Adult and Health Services,Head of Adults,Transport,230005,Contract Hire,08/07/2019,3612071-1780,"1,400.00",LD TAXIS.
Children and Young Peoples Services,Head of Education and Skills,Transport,230007,Contract Hire,08/07/2019,3612071-1781,"1,010.00",LD TAXIS.
Children and Young Peoples Services,Head of Education and Skills,Transport,230007,Contract Hire,08/07/2019,3612071-1782,"1,852.00",LD TAXIS.
Children and Young Peoples Services,Head of Education and Skills,Transport,230008,Contract Hire,08/07/2019,3612071-1783,"2,480.00",LD TAXIS.
Regeneration and Local Services,Technical Services CM0300,Supplies and Services,304221,Equipment and Materials,08/07/2019,3612077-CINV-075527,"4,268.70",LIMELIGHT SIGNS LTD.
Resources BK0010,Corporate Finance & Commercial Services,Supplies and Services,338066,Services,08/07/2019,3612078-DFE80200580,"20,000.00",LINK ASSET SERVICES.
Regeneration and Local Services,Corporate Property and Land,Supplies and Services,304221,Equipment and Materials,08/07/2019,3612081-4554540,964.37,LONDON GENERAL SALES LTD.
Dedicated Schools Grant BG0015,DSG High Needs Block,Supplies and Services,304259,Equipment and Materials,08/07/2019,3612083-INV-4947,"1,254.00",LYNCH HEALTHCARE LTD.
Resources BK0010,Digital and Customer Services,Supplies and Services,342051,Computers and Communications,08/07/2019,3612085-12339726,"16,913.60",MAINTEL EUROPE LTD.
Resources BK0010,Digital and Customer Services,Supplies and Services,342225,Computers and Communications,08/07/2019,3612085-12352973,"29,224.75",MAINTEL EUROPE LTD.
Children and Young Peoples Services,Head of Education and Skills,Transport,230008,Contract Hire,08/07/2019,3612086-53,"1,641.60",MALCOLM CARR T/A CARLY CABS.
Children and Young Peoples Services,Head of Education and Skills,Transport,230006,Contract Hire,08/07/2019,3612091-260619,540.00,MARK MUSGROVE T/A MARKS TAXIS.
Children and Young Peoples Services,Head of Education and Skills,Transport,230009,Contract Hire,08/07/2019,3612091-280619,800.00,MARK MUSGROVE T/A MARKS TAXIS.
Regeneration and Local Services,Environmental Services,Cap Exp on Grants & Other Financial Assistance (REFCUS),918501,Exp assets not owned by authority,08/07/2019,3612093-1115,"3,958.45",MARSDEN AES LTD.
Regeneration and Local Services,Environmental Services,Cap Exp on Grants & Other Financial Assistance (REFCUS),918501,Exp assets not owned by authority,08/07/2019,3612093-1116,"4,659.50",MARSDEN AES LTD.
Children and Young Peoples Services,Head of Education and Skills,Transport,230008,Contract Hire,08/07/2019,3612098-9A-A138,960.00,MICHAEL A BODDY T/A MBS TAXIS.
Regeneration and Local Services,Culture Sport and Tourism,Supplies and Services,304252,Equipment and Materials,08/07/2019,3612101-421,540.00,MOUNTAIN ACTIVITY CO.
Children and Young Peoples Services,Head of Education and Skills,Transport,230008,Contract Hire,08/07/2019,3612102-162,"2,420.00",MR A MCKENNA T/A ANDY CABS.
Children and Young Peoples Services,Head of Education and Skills,Transport,230007,Contract Hire,08/07/2019,3612103-AT178,"1,200.00",MR AG WILSON T/A ALAN`S TAXIS (DURHAM CITY).
Children and Young Peoples Services,Head of Education and Skills,Transport,230006,Contract Hire,08/07/2019,3612104-210A-210B,"1,257.60",MR BRIAN JOHNSON T/A BRYS TAXIS.
Children and Young Peoples Services,Head of Education and Skills,Transport,230012,Contract Hire,08/07/2019,3612105-CHPK06-19,"1,869.60",MR CT WALKER T/A CW TAXIS.
Adult and Health Services,Head of Adults,Transport,230005,Contract Hire,08/07/2019,3612105-EDB106-19,"1,021.80",MR CT WALKER T/A CW TAXIS.
Children and Young Peoples Services,Head of Education and Skills,Transport,230008,Contract Hire,08/07/2019,3612105-EL206-19,"1,788.00",MR CT WALKER T/A CW TAXIS.
Children and Young Peoples Services,Head of Education and Skills,Transport,230008,Contract Hire,08/07/2019,3612105-OAK106-19,"1,877.20",MR CT WALKER T/A CW TAXIS.
Children and Young Peoples Services,Head of Education and Skills,Transport,230006,Contract Hire,08/07/2019,3612106-154,"1,211.00",MR DAVID CULLEN T/A JED`S TAXIS.
Children and Young Peoples Services,Head of Education and Skills,Transport,230007,Contract Hire,08/07/2019,3612106-155,800.00,MR DAVID CULLEN T/A JED`S TAXIS.
Children and Young Peoples Services,Head of Education and Skills,Transport,230008,Contract Hire,08/07/2019,3612107-179-2752,"1,490.00",MR GS ANDERSON.
Children and Young Peoples Services,Head of Education and Skills,Transport,230008,Contract Hire,08/07/2019,3612107-1802853,"1,487.80",MR GS ANDERSON.
Children and Young Peoples Services,Head of Education and Skills,Transport,230007,Contract Hire,08/07/2019,3612108-110,"1,046.60",MR JOHN ALLINSON T/A AALPHA TAXIS.
Adult and Health Services,Head of Adults,Transport,230005,Contract Hire,08/07/2019,3612109-201923,615.60,MR JR FORT T/A JRF TAXIS.
Adult and Health Services,Head of Adults,Transport,230005,Contract Hire,08/07/2019,3612109-201924,560.00,MR JR FORT T/A JRF TAXIS.
Children and Young Peoples Services,Head of Education and Skills,Transport,230012,Contract Hire,08/07/2019,3612111-084,"1,759.60",MR LJ TARRY T/A TARRY`S TAXI`S.
Children and Young Peoples Services,Head of Education and Skills,Transport,230008,Contract Hire,08/07/2019,3612112-0037-N071,"2,400.00",MR PM MULLEN T/A CATHEDRAL TAXIS.
Children and Young Peoples Services,Head of Education and Skills,Transport,230009,Contract Hire,08/07/2019,3612113-00043,551.00,MR RICHARD STANDLEY T/A RS TAXI SERVICES.
Children and Young Peoples Services,Head of Education and Skills,Transport,230006,Contract Hire,08/07/2019,3612117-10-F693,576.00,MRS LISA JANE NATTRASS T/A LISA`S TAXIS.
Regeneration and Local Services,Environmental Services,Transport,210057,Repair and Maintenance of Vehicles,08/07/2019,3612121-92618,921.60,MTS BOBCAT.
Children and Young Peoples Services,Head of Education and Skills,Supplies and Services,338035,Services,08/07/2019,3612128-SI00073396,664.00,NCFE.
Children and Young Peoples Services,Head of Education and Skills,Transport,230008,Contract Hire,08/07/2019,3612130-245,"1,600.00",NEVILLE FORBES T/A FORBES TAXIS.
Regeneration and Local Services,Technical Services CM0300,Construction work A908,908109,Capital - Resurfacing,08/07/2019,3612131-29765263,510.97,NEWSQUEST (YORKSHIRE & NORTH EAST) LTD.
Adult and Health Services,Public Health CC0450,Supplies and Services,384155,Miscellaneous Expenses,08/07/2019,3612133-1000060799,"80,892.68",NHS BUSINESS SERVICES AUTHORITY (NHSBSA).
Adult and Health Services,Public Health CC0450,Third Party Payments 4THIRD,460803,Contract Payments,08/07/2019,3612134-7010101303,"26,320.00",NHS DDES CCG.
Adult and Health Services,Public Health CC0450,Third Party Payments 4THIRD,460803,Contract Payments,08/07/2019,3612134-7010101304,"26,320.00",NHS DDES CCG.
Regeneration and Local Services,Environmental Services,Transport,210057,Repair and Maintenance of Vehicles,08/07/2019,3612138-74600,"2,481.84",NORPLAST LTD.
Adult and Health Services,Head of Adults,Third Party Payments 4THIRD,472101,Purchase of Care,08/07/2019,3612139-0000040375,511.50,NORTH EAST AUTISM SOCIETY.
Regeneration and Local Services,Technical Services CM0300,Supplies and Services,304221,Equipment and Materials,08/07/2019,3612140-176314,792.00,NORTH EAST CONCRETE LTD.
Resources BK0010,Legal & Democratic Services,Supplies and Services,384199,Miscellaneous Expenses,08/07/2019,3612146-22387923,"6,372.57",NORTH TYNESIDE COUNCIL.
Children and Young Peoples Services,Head of Childrens Social Care,Premises,120009,Energy Costs,08/07/2019,3612149-79305943270-29/06/18,"1,848.72",NPOWER.
Regeneration and Local Services,Technical Services CM0300,Premises,120009,Energy Costs,08/07/2019,3612149-NNO78DG2,532.38,NPOWER.
Regeneration and Local Services,Technical Services CM0300,Premises,120009,Energy Costs,08/07/2019,3612149-NNO78DGZ,594.07,NPOWER.
Regeneration and Local Services,Business Durham CL0850,Premises,120009,Energy Costs,08/07/2019,3612149-NNO78Q75,"1,831.72",NPOWER.
Regeneration and Local Services,Business Durham CL0850,Premises,120009,Energy Costs,08/07/2019,3612149-NNO78RJ6,"5,217.33",NPOWER.
Regeneration and Local Services,Business Durham CL0850,Premises,120009,Energy Costs,08/07/2019,3612149-NNO78RJ7,"10,429.39",NPOWER.
Regeneration and Local Services,Business Durham CL0850,Premises,120009,Energy Costs,08/07/2019,3612149-NNO78RJ8,"2,458.17",NPOWER.
Regeneration and Local Services,Business Durham CL0850,Premises,120009,Energy Costs,08/07/2019,3612149-NNO78RJ9,"2,244.38",NPOWER.
Regeneration and Local Services,Business Durham CL0850,Premises,120009,Energy Costs,08/07/2019,3612149-NNO78RKM,"2,132.67",NPOWER.
Regeneration and Local Services,Business Durham CL0850,Premises,120009,Energy Costs,08/07/2019,3612149-NNO78RKN,"1,529.87",NPOWER.
Regeneration and Local Services,Technical Services CM0300,Stock A926,926900,Stock in hand-Inventory system,08/07/2019,3612156-XL241346,"2,448.34",PARK ELECTRICAL DISTRIBUTORS LTD.
Regeneration and Local Services,Technical Services CM0300,Stock A926,926900,Stock in hand-Inventory system,08/07/2019,3612156-XL241383,"3,782.40",PARK ELECTRICAL DISTRIBUTORS LTD.
Regeneration and Local Services,Technical Services CM0300,Stock A926,926900,Stock in hand-Inventory system,08/07/2019,3612156-XL241395,"4,284.00",PARK ELECTRICAL DISTRIBUTORS LTD.
Regeneration and Local Services,Transport and Contracted Services,Construction work A908,908105,Construction work,08/07/2019,3612157-190613-219,"5,848.00",PARKTHATBIKE LTD.
Children and Young Peoples Services,Head of Education and Skills,Transport,230007,Contract Hire,08/07/2019,3612159-02-3394,"1,980.00",PAUL ROSE T/A PAUL`S TAXIS.
Children and Young Peoples Services,Head of Education and Skills,Transport,230007,Contract Hire,08/07/2019,3612159-03-5260,720.00,PAUL ROSE T/A PAUL`S TAXIS.
Children and Young Peoples Services,Head of Education and Skills,Transport,230007,Contract Hire,08/07/2019,3612160-1800,"2,257.20",PAUL WATSON TRAVEL.
Children and Young Peoples Services,Head of Education and Skills,Transport,230007,Contract Hire,08/07/2019,3612160-1801,"2,462.40",PAUL WATSON TRAVEL.
Children and Young Peoples Services,Head of Education and Skills,Transport,230008,Contract Hire,08/07/2019,3612165-0784,"1,760.00",PETER`S PRIVATE HIRE/PETER BEST.
Children and Young Peoples Services,Head of Education and Skills,Transport,230008,Contract Hire,08/07/2019,3612166-14A-14C,"1,650.00",PHILLIP BOYD T/A FILS TAXIS.
Transformation and Partnerships,Business Support,Supplies and Services,332029,Printing Stationery and Gen Off Exps,08/07/2019,3612172-673309,"2,185.00",POTTS PRINTERS LTD.
Regeneration and Local Services,Environmental Services,Third Party Payments 4THIRD,430100,Rendered by Private Contractors,08/07/2019,3612173-159451,"1,500.00",PREMIER TRAFFIC MANAGEMENT LTD.
Regeneration and Local Services,Environmental Services,Third Party Payments 4THIRD,430100,Rendered by Private Contractors,08/07/2019,3612173-159452,"2,100.00",PREMIER TRAFFIC MANAGEMENT LTD.
Regeneration and Local Services,Technical Services CM0300,Third Party Payments 4THIRD,430100,Rendered by Private Contractors,08/07/2019,3612179-11853,"1,547.48",QUANTUM POWER CONNECTIONS LTD.
Regeneration and Local Services,Technical Services CM0300,Third Party Payments 4THIRD,430100,Rendered by Private Contractors,08/07/2019,3612179-11856,"3,132.99",QUANTUM POWER CONNECTIONS LTD.
Regeneration and Local Services,Technical Services CM0300,Stock A926,926900,Stock in hand-Inventory system,08/07/2019,3612185-RSIN0304546,"1,035.00",RIGBY TAYLOR LTD.
Children and Young Peoples Services,Head of Education and Skills,Supplies and Services,372009,Subscriptions E372,08/07/2019,3612193-INV-0315,945.00,RSE INSIGHT LTD.
Dedicated Schools Grant BG0015,DSG High Needs Block,Transport,230010,Contract Hire,08/07/2019,3612201-8,"4,270.00",SEBASTIAN`S TAXI.
Dedicated Schools Grant BG0015,DSG High Needs Block,Transport,230010,Contract Hire,08/07/2019,3612203-75220,"2,367.00",SHOTTON PRIVATE HIRE.
Children and Young Peoples Services,Head of Education and Skills,Transport,230008,Contract Hire,08/07/2019,3612203-75221,"1,824.00",SHOTTON PRIVATE HIRE.
Children and Young Peoples Services,Head of Education and Skills,Transport,230007,Contract Hire,08/07/2019,3612203-75222,"1,764.00",SHOTTON PRIVATE HIRE.
Dedicated Schools Grant BG0015,DSG High Needs Block,Transport,230010,Contract Hire,08/07/2019,3612203-75223,"2,690.00",SHOTTON PRIVATE HIRE.
Children and Young Peoples Services,Head of Education and Skills,Transport,230008,Contract Hire,08/07/2019,3612203-75225,"2,376.00",SHOTTON PRIVATE HIRE.
Regeneration and Local Services,Transport and Contracted Services,Third Party Payments 4THIRD,430106,Rendered by Private Contractors,08/07/2019,3612219-34478,"1,472.62",STANLEY TRAVEL (NORTH EAST) LTD.
Children and Young Peoples Services,Head of Early Help Inclusion & Vulnerable Children.,Supplies and Services,384871,Miscellaneous Expenses,08/07/2019,3612223-19,"1,400.00",STEVEN SINCLAIR T/A SINCLAIR MECHANICAL SERVICES.
Children and Young Peoples Services,Head of Education and Skills,Transport,230006,Contract Hire,08/07/2019,3612224-00114,699.75,STEVES TAXIS.
Regeneration and Local Services,Corporate Property and Land,Third Party Payments 4THIRD,430100,Rendered by Private Contractors,08/07/2019,3612225-13605,"2,260.00",STONE TECHNICAL SERVICES LTD.
Regeneration and Local Services,Technical Services CM0300,Stock A926,926900,Stock in hand-Inventory system,08/07/2019,3612233-9040285393,713.60,TARMAC TRADING LTD.
Children and Young Peoples Services,Head of Education and Skills,Transport,230008,Contract Hire,08/07/2019,3612234-06/2019/004,"1,080.00",TARNS TAXIS LTD.
Children and Young Peoples Services,Head of Education and Skills,Transport,230008,Contract Hire,08/07/2019,3612234-06/2019/008,"1,181.96",TARNS TAXIS LTD.
Dedicated Schools Grant BG0015,DSG High Needs Block,Transport,230010,Contract Hire,08/07/2019,3612234-06/2019/011,"1,014.00",TARNS TAXIS LTD.
Adult and Health Services,Public Health CC0450,Supplies and Services,338094,Services,08/07/2019,3612238-5959,581.00,THE DURHAM CENTRE LTD.
Children and Young Peoples Services,Head of Education and Skills,Transport,230004,Contract Hire,08/07/2019,3612245-F735-JUNE,617.50,THOMAS GLEN.
Children and Young Peoples Services,Head of Education and Skills,Transport,230008,Contract Hire,08/07/2019,3612247-0002083,"2,300.00",TONY RIDLEY T/A COLORS TAXIS LTD.
Adult and Health Services,Head of Adults,Transport,230005,Contract Hire,08/07/2019,3612247-0002084,"1,900.00",TONY RIDLEY T/A COLORS TAXIS LTD.
Children and Young Peoples Services,Head of Education and Skills,Transport,230007,Contract Hire,08/07/2019,3612255-SC10010,"1,200.00",TRAVEL 6.
Regeneration and Local Services,Technical Services CM0300,Stock A926,926900,Stock in hand-Inventory system,08/07/2019,3612265-INV052786,"19,870.00",URBIS SCHREDER LTD.
Children and Young Peoples Services,Head of Education and Skills,Transport,230006,Contract Hire,08/07/2019,3612268-F007-JUNE,852.00,WAINE SANDERSON T/A 1A CAB.
Children and Young Peoples Services,Head of Education and Skills,Transport,230007,Contract Hire,08/07/2019,3612269-53-28/6/19,985.00,WALTONS TAXIS.
Children and Young Peoples Services,Head of Education and Skills,Transport,230007,Contract Hire,08/07/2019,3612269-54,985.00,WALTONS TAXIS.
Regeneration and Local Services,Corporate Property and Land,Third Party Payments 4THIRD,430100,Rendered by Private Contractors,08/07/2019,3612270-INV-1131,916.50,WATER SOLUTIONS (EUROPE) LTD.
Children and Young Peoples Services,Head of Education and Skills,Transfer Payments,510027,School Children,08/07/2019,3612271-WIKAYWALKERFORSALSABEELDAMAN01,793.20,WAYMAN DEVELOPMENTS LTD T/A CHILDSPLAY PRIVATE NURSERY.
Dedicated Schools Grant BG0015,DSG High Needs Block,Transport,230010,Contract Hire,08/07/2019,3612274-0619,"2,219.00",WEST AUCKLAND TOWN TRAVEL (WATT).
Resources BK0010,Digital and Customer Services,Vehicles Equipment Furniture and Fittings,912701,Computer equipment,08/07/2019,3612278-KS11092,"3,405.10",XMA LTD.
Resources BK0010,Digital and Customer Services,Vehicles Equipment Furniture and Fittings,912701,Computer equipment,08/07/2019,3612278-KS13615,"3,405.10",XMA LTD.
Regeneration and Local Services,Corporate Property and Land,Supplies and Services,304221,Equipment and Materials,08/07/2019,3612279-050013-001,"5,706.61",XTRALITE (ROOFLIGHTS) LTD.
Adult and Health Services,Head of Adults,Third Party Payments 4THIRD,470101,Purchase of Care,09/07/2019,3613414-2559179,"2,369.64",A CHARLES THOMAS (CARE) LTD.
Adult and Health Services,Head of Adults,Third Party Payments 4THIRD,470101,Purchase of Care,09/07/2019,3613414-2559180,"2,369.64",A CHARLES THOMAS (CARE) LTD.
Adult and Health Services,Head of Adults,Third Party Payments 4THIRD,470101,Purchase of Care,09/07/2019,3613414-2559181,"2,369.64",A CHARLES THOMAS (CARE) LTD.
Adult and Health Services,Head of Adults,Third Party Payments 4THIRD,470101,Purchase of Care,09/07/2019,3613414-2559182,592.41,A CHARLES THOMAS (CARE) LTD.
Adult and Health Services,Head of Adults,Third Party Payments 4THIRD,470101,Purchase of Care,09/07/2019,3613414-2559183,"2,369.64",A CHARLES THOMAS (CARE) LTD.
Adult and Health Services,Head of Adults,Third Party Payments 4THIRD,470101,Purchase of Care,09/07/2019,3613414-2559185,"2,369.64",A CHARLES THOMAS (CARE) LTD.
Adult and Health Services,Head of Adults,Third Party Payments 4THIRD,470101,Purchase of Care,09/07/2019,3613414-2559187,"2,369.64",A CHARLES THOMAS (CARE) LTD.
Adult and Health Services,Head of Adults,Third Party Payments 4THIRD,470101,Purchase of Care,09/07/2019,3613414-2559189,"2,369.64",A CHARLES THOMAS (CARE) LTD.
Adult and Health Services,Head of Adults,Third Party Payments 4THIRD,470101,Purchase of Care,09/07/2019,3613414-2559190,"2,369.64",A CHARLES THOMAS (CARE) LTD.
Adult and Health Services,Head of Adults,Third Party Payments 4THIRD,470101,Purchase of Care,09/07/2019,3613414-2559191,"2,369.64",A CHARLES THOMAS (CARE) LTD.
Adult and Health Services,Head of Adults,Third Party Payments 4THIRD,470101,Purchase of Care,09/07/2019,3613414-2559192,"2,369.64",A CHARLES THOMAS (CARE) LTD.
Adult and Health Services,Head of Adults,Third Party Payments 4THIRD,470101,Purchase of Care,09/07/2019,3613414-2559193,"2,369.64",A CHARLES THOMAS (CARE) LTD.
Adult and Health Services,Head of Adults,Third Party Payments 4THIRD,470101,Purchase of Care,09/07/2019,3613414-2559194,"2,369.64",A CHARLES THOMAS (CARE) LTD.
Adult and Health Services,Head of Adults,Third Party Payments 4THIRD,470101,Purchase of Care,09/07/2019,3613414-2559195,"2,657.20",A CHARLES THOMAS (CARE) LTD.
Adult and Health Services,Head of Adults,Third Party Payments 4THIRD,470101,Purchase of Care,09/07/2019,3613414-2559196,"2,369.64",A CHARLES THOMAS (CARE) LTD.
Adult and Health Services,Head of Adults,Third Party Payments 4THIRD,470101,Purchase of Care,09/07/2019,3613414-2559197,"2,369.64",A CHARLES THOMAS (CARE) LTD.
Adult and Health Services,Head of Adults,Third Party Payments 4THIRD,470101,Purchase of Care,09/07/2019,3613414-2559198,"2,369.64",A CHARLES THOMAS (CARE) LTD.
Adult and Health Services,Head of Adults,Third Party Payments 4THIRD,470101,Purchase of Care,09/07/2019,3613414-2559199,"2,369.64",A CHARLES THOMAS (CARE) LTD.
Adult and Health Services,Head of Adults,Third Party Payments 4THIRD,470101,Purchase of Care,09/07/2019,3613414-2559200,"2,369.64",A CHARLES THOMAS (CARE) LTD.
Adult and Health Services,Head of Adults,Third Party Payments 4THIRD,470101,Purchase of Care,09/07/2019,3613414-2559201,"2,369.64",A CHARLES THOMAS (CARE) LTD.
Adult and Health Services,Head of Adults,Third Party Payments 4THIRD,470101,Purchase of Care,09/07/2019,3613414-2559202,"2,369.64",A CHARLES THOMAS (CARE) LTD.
Adult and Health Services,Head of Adults,Third Party Payments 4THIRD,470101,Purchase of Care,09/07/2019,3613414-2559203,"2,369.64",A CHARLES THOMAS (CARE) LTD.
Adult and Health Services,Head of Adults,Third Party Payments 4THIRD,470101,Purchase of Care,09/07/2019,3613414-2562996,"5,839.47",A CHARLES THOMAS (CARE) LTD.
Adult and Health Services,Head of Adults,Third Party Payments 4THIRD,470101,Purchase of Care,09/07/2019,3613414-2562998,"1,946.49",A CHARLES THOMAS (CARE) LTD.
Children and Young Peoples Services,Head of Education and Skills,Transport,230008,Contract Hire,09/07/2019,3612287-A220810,"1,380.00",A MURRAY TRAVEL.
Children and Young Peoples Services,Head of Education and Skills,Transport,230008,Contract Hire,09/07/2019,3612287-GC020,"1,015.80",A MURRAY TRAVEL.
Children and Young Peoples Services,Head of Education and Skills,Transport,230006,Contract Hire,09/07/2019,3612287-HA220812,"1,015.80",A MURRAY TRAVEL.
Children and Young Peoples Services,Head of Childrens Social Care,Transport,230005,Contract Hire,09/07/2019,3612289-W45/ZA,"1,400.00",AABAT TAXIS.
Children and Young Peoples Services,Head of Early Help Inclusion & Vulnerable Children.,Transport,230005,Contract Hire,09/07/2019,3612289-W46/ZC,"1,240.00",AABAT TAXIS.
Children and Young Peoples Services,Head of Childrens Social Care,Transport,230005,Contract Hire,09/07/2019,3612289-W48/ZF,"1,170.00",AABAT TAXIS.
Children and Young Peoples Services,Head of Childrens Social Care,Transport,230005,Contract Hire,09/07/2019,3612289-W51/ZK,700.00,AABAT TAXIS.
Children and Young Peoples Services,Head of Childrens Social Care,Transport,230005,Contract Hire,09/07/2019,3612289-W52/ZL,560.00,AABAT TAXIS.
Children and Young Peoples Services,Head of Childrens Social Care,Transport,230005,Contract Hire,09/07/2019,3612289-W54/ZX,"1,400.00",AABAT TAXIS.
Children and Young Peoples Services,Head of Childrens Social Care,Transport,230005,Contract Hire,09/07/2019,3612289-W62/ZG,560.00,AABAT TAXIS.
Adult and Health Services,Head of Adults,Third Party Payments 4THIRD,478101,Purchase of Care,09/07/2019,3613855-1905826H,"3,444.00",ACCEPT CARE LTD.
Adult and Health Services,Head of Adults,Third Party Payments 4THIRD,478101,Purchase of Care,09/07/2019,3613855-1905886H,"4,620.00",ACCEPT CARE LTD.
Adult and Health Services,Head of Adults,Third Party Payments 4THIRD,478101,Purchase of Care,09/07/2019,3613855-1905985H,"3,234.00",ACCEPT CARE LTD.
Adult and Health Services,Head of Adults,Third Party Payments 4THIRD,478101,Purchase of Care,09/07/2019,3613855-1906203H,934.28,ACCEPT CARE LTD.
Adult and Health Services,Head of Adults,Third Party Payments 4THIRD,478101,Purchase of Care,09/07/2019,3613855-1906268H,"5,198.68",ACCEPT CARE LTD.
Adult and Health Services,Head of Adults,Third Party Payments 4THIRD,478101,Purchase of Care,09/07/2019,3613855-1906297H,934.28,ACCEPT CARE LTD.
Adult and Health Services,Head of Adults,Third Party Payments 4THIRD,478101,Purchase of Care,09/07/2019,3613855-1906307H,934.28,ACCEPT CARE LTD.
Adult and Health Services,Head of Adults,Third Party Payments 4THIRD,478101,Purchase of Care,09/07/2019,3613855-1906361H,934.28,ACCEPT CARE LTD.
Adult and Health Services,Head of Adults,Third Party Payments 4THIRD,478101,Purchase of Care,09/07/2019,3613855-1906394H,934.28,ACCEPT CARE LTD.
Adult and Health Services,Head of Adults,Third Party Payments 4THIRD,478101,Purchase of Care,09/07/2019,3613855-1906431H,"4,582.68",ACCEPT CARE LTD.
Adult and Health Services,Head of Adults,Third Party Payments 4THIRD,478101,Purchase of Care,09/07/2019,3613855-1906435H,"1,046.28",ACCEPT CARE LTD.
Adult and Health Services,Head of Adults,Third Party Payments 4THIRD,478101,Purchase of Care,09/07/2019,3613855-1906439H,"3,836.00",ACCEPT CARE LTD.
Adult and Health Services,Head of Adults,Third Party Payments 4THIRD,478101,Purchase of Care,09/07/2019,3613855-1906513H,934.28,ACCEPT CARE LTD.
Adult and Health Services,Head of Adults,Third Party Payments 4THIRD,478101,Purchase of Care,09/07/2019,3613855-1906519H,934.28,ACCEPT CARE LTD.
Adult and Health Services,Head of Adults,Third Party Payments 4THIRD,478101,Purchase of Care,09/07/2019,3613855-1906525H,"3,796.80",ACCEPT CARE LTD.
Adult and Health Services,Head of Adults,Third Party Payments 4THIRD,478101,Purchase of Care,09/07/2019,3613855-1906530H,934.28,ACCEPT CARE LTD.
Adult and Health Services,Head of Adults,Third Party Payments 4THIRD,478101,Purchase of Care,09/07/2019,3613855-1906738H,"6,468.00",ACCEPT CARE LTD.
Adult and Health Services,Head of Adults,Third Party Payments 4THIRD,478101,Purchase of Care,09/07/2019,3613855-1906949H,"4,940.16",ACCEPT CARE LTD.
Adult and Health Services,Head of Adults,Third Party Payments 4THIRD,478101,Purchase of Care,09/07/2019,3613855-1906970H,"2,548.00",ACCEPT CARE LTD.
Adult and Health Services,Head of Adults,Third Party Payments 4THIRD,478101,Purchase of Care,09/07/2019,3613855-1907031H,"8,472.80",ACCEPT CARE LTD.
Adult and Health Services,Head of Adults,Third Party Payments 4THIRD,478101,Purchase of Care,09/07/2019,3613855-1907048H,"6,468.00",ACCEPT CARE LTD.
Adult and Health Services,Head of Adults,Third Party Payments 4THIRD,478101,Purchase of Care,09/07/2019,3613855-1907157H,"2,789.72",ACCEPT CARE LTD.
Adult and Health Services,Head of Adults,Third Party Payments 4THIRD,478101,Purchase of Care,09/07/2019,3613855-1907178H,"5,180.00",ACCEPT CARE LTD.
Adult and Health Services,Head of Adults,Third Party Payments 4THIRD,478101,Purchase of Care,09/07/2019,3613855-1907211H,934.28,ACCEPT CARE LTD.
Adult and Health Services,Head of Adults,Third Party Payments 4THIRD,478101,Purchase of Care,09/07/2019,3613855-1907228H,"4,106.68",ACCEPT CARE LTD.
Adult and Health Services,Head of Adults,Third Party Payments 4THIRD,478101,Purchase of Care,09/07/2019,3613855-1907289H,"2,364.16",ACCEPT CARE LTD.
Adult and Health Services,Head of Adults,Third Party Payments 4THIRD,478101,Purchase of Care,09/07/2019,3613855-1907290H,"3,374.00",ACCEPT CARE LTD.
Adult and Health Services,Head of Adults,Third Party Payments 4THIRD,478101,Purchase of Care,09/07/2019,3613855-1907384H,"6,748.00",ACCEPT CARE LTD.
Adult and Health Services,Head of Adults,Third Party Payments 4THIRD,478101,Purchase of Care,09/07/2019,3613855-1907391H,"8,362.68",ACCEPT CARE LTD.
Adult and Health Services,Head of Adults,Third Party Payments 4THIRD,478101,Purchase of Care,09/07/2019,3613855-1907403H,"3,537.32",ACCEPT CARE LTD.
Adult and Health Services,Head of Adults,Third Party Payments 4THIRD,478101,Purchase of Care,09/07/2019,3613855-1907483H,"3,864.00",ACCEPT CARE LTD.
Adult and Health Services,Head of Adults,Third Party Payments 4THIRD,478101,Purchase of Care,09/07/2019,3613855-1907491H,"6,748.00",ACCEPT CARE LTD.
Adult and Health Services,Head of Adults,Third Party Payments 4THIRD,478101,Purchase of Care,09/07/2019,3613855-1907533H,"7,448.00",ACCEPT CARE LTD.
Adult and Health Services,Head of Adults,Third Party Payments 4THIRD,478101,Purchase of Care,09/07/2019,3613855-1907658H,"1,832.16",ACCEPT CARE LTD.
Adult and Health Services,Head of Adults,Third Party Payments 4THIRD,478101,Purchase of Care,09/07/2019,3613855-1908068H,"5,292.00",ACCEPT CARE LTD.
Adult and Health Services,Head of Adults,Third Party Payments 4THIRD,478101,Purchase of Care,09/07/2019,3613855-1908154H,"1,804.16",ACCEPT CARE LTD.
Adult and Health Services,Head of Adults,Third Party Payments 4THIRD,478101,Purchase of Care,09/07/2019,3613855-1908627H,934.28,ACCEPT CARE LTD.
Adult and Health Services,Head of Adults,Third Party Payments 4THIRD,478101,Purchase of Care,09/07/2019,3613855-1908692H,"5,310.68",ACCEPT CARE LTD.
Adult and Health Services,Head of Adults,Third Party Payments 4THIRD,478101,Purchase of Care,09/07/2019,3613855-1908762H,"1,466.28",ACCEPT CARE LTD.
Adult and Health Services,Head of Adults,Third Party Payments 4THIRD,478101,Purchase of Care,09/07/2019,3613855-1908792H,"6,664.00",ACCEPT CARE LTD.
Adult and Health Services,Head of Adults,Third Party Payments 4THIRD,478101,Purchase of Care,09/07/2019,3613855-1908977H,"5,684.00",ACCEPT CARE LTD.
Adult and Health Services,Head of Adults,Third Party Payments 4THIRD,478101,Purchase of Care,09/07/2019,3613855-1909071H,"1,206.76",ACCEPT CARE LTD.
Adult and Health Services,Head of Adults,Third Party Payments 4THIRD,478101,Purchase of Care,09/07/2019,3613855-1909133H,"3,360.00",ACCEPT CARE LTD.
Adult and Health Services,Head of Adults,Third Party Payments 4THIRD,478101,Purchase of Care,09/07/2019,3613855-1909295H,"2,109.12",ACCEPT CARE LTD.
Adult and Health Services,Head of Adults,Third Party Payments 4THIRD,478101,Purchase of Care,09/07/2019,3613855-1910035H,934.28,ACCEPT CARE LTD.
Adult and Health Services,Head of Adults,Third Party Payments 4THIRD,478101,Purchase of Care,09/07/2019,3613855-1910227H,"1,580.16",ACCEPT CARE LTD.
Adult and Health Services,Head of Adults,Third Party Payments 4THIRD,478101,Purchase of Care,09/07/2019,3613855-1910341H,934.28,ACCEPT CARE LTD.
Adult and Health Services,Head of Adults,Third Party Payments 4THIRD,478101,Purchase of Care,09/07/2019,3613855-1910513H,"1,092.00",ACCEPT CARE LTD.
Adult and Health Services,Head of Adults,Third Party Payments 4THIRD,478101,Purchase of Care,09/07/2019,3613855-1910616H,"3,248.00",ACCEPT CARE LTD.
Adult and Health Services,Head of Adults,Third Party Payments 4THIRD,478101,Purchase of Care,09/07/2019,3613855-1910667H,"1,234.76",ACCEPT CARE LTD.
Adult and Health Services,Head of Adults,Third Party Payments 4THIRD,478101,Purchase of Care,09/07/2019,3613855-1910685H,934.28,ACCEPT CARE LTD.
Adult and Health Services,Head of Adults,Third Party Payments 4THIRD,478101,Purchase of Care,09/07/2019,3613855-1911127H,931.48,ACCEPT CARE LTD.
Adult and Health Services,Head of Adults,Third Party Payments 4THIRD,478101,Purchase of Care,09/07/2019,3613855-1911324H,"1,804.16",ACCEPT CARE LTD.
Adult and Health Services,Head of Adults,Third Party Payments 4THIRD,473101,Purchase of Care,09/07/2019,3613855-1911459D,"1,562.40",ACCEPT CARE LTD.
Adult and Health Services,Head of Adults,Third Party Payments 4THIRD,478101,Purchase of Care,09/07/2019,3613855-1911605H,934.28,ACCEPT CARE LTD.
Adult and Health Services,Head of Adults,Third Party Payments 4THIRD,478101,Purchase of Care,09/07/2019,3613855-1911849H,"6,664.00",ACCEPT CARE LTD.
Adult and Health Services,Head of Adults,Third Party Payments 4THIRD,478101,Purchase of Care,09/07/2019,3613855-1912350H,"7,530.25",ACCEPT CARE LTD.
Adult and Health Services,Head of Adults,Third Party Payments 4THIRD,478101,Purchase of Care,09/07/2019,3613855-1912446H,834.65,ACCEPT CARE LTD.
Adult and Health Services,Head of Adults,Third Party Payments 4THIRD,473101,Purchase of Care,09/07/2019,3613855-1912493D,639.00,ACCEPT CARE LTD.
Children and Young Peoples Services,Head of Childrens Social Care,Third Party Payments 4THIRD,425040,Rendered by Voluntary Organisations,09/07/2019,3613450-PIG_20861,"16,019.92",ACORN CARE (NE) LTD.
Children and Young Peoples Services,Head of Childrens Social Care,Third Party Payments 4THIRD,425040,Rendered by Voluntary Organisations,09/07/2019,3613451-PIG_20859,"8,760.36",ACORN HOUSE (FOSTERING SERVICES) LTD.
Adult and Health Services,Head of Adults,Third Party Payments 4THIRD,473101,Purchase of Care,09/07/2019,3614097-1899332H,720.00,ACTION DEAFNESS LTD.
Children and Young Peoples Services,Head of Childrens Social Care,Third Party Payments 4THIRD,425041,Rendered by Voluntary Organisations,09/07/2019,3612290-200042,"31,620.00",ADOPTION MATTERS NORTHWEST.
Transformation and Partnerships,Partnerships & Community Engagement Div.,Cap Exp on Grants & Other Financial Assistance (REFCUS),918004,Contributions to other bodies 918004,09/07/2019,3612291-VOUCHER18NB-EDUR056,"1,000.00",AGE CONCERN (EASINGTON).
Regeneration and Local Services,Technical Services CM0300,Supplies and Services,304221,Equipment and Materials,09/07/2019,3612292-28408698,620.28,AGGREGATE INDUSTRIES UK LTD.
Regeneration and Local Services,Technical Services CM0300,Supplies and Services,304221,Equipment and Materials,09/07/2019,3612292-28408699,918.66,AGGREGATE INDUSTRIES UK LTD.
Adult and Health Services,Head of Adults,Third Party Payments 4THIRD,471101,Purchase of Care,09/07/2019,3613453-2561880,"2,457.00",AKARI CARE LTD.
Adult and Health Services,Head of Adults,Third Party Payments 4THIRD,470101,Purchase of Care,09/07/2019,3613453-2561881,"1,224.82",AKARI CARE LTD.
Adult and Health Services,Head of Adults,Third Party Payments 4THIRD,474101,Purchase of Care,09/07/2019,3613453-2561882,"2,466.24",AKARI CARE LTD.
Adult and Health Services,Head of Adults,Third Party Payments 4THIRD,470101,Purchase of Care,09/07/2019,3613453-2561885,677.04,AKARI CARE LTD.
Adult and Health Services,Head of Adults,Third Party Payments 4THIRD,471101,Purchase of Care,09/07/2019,3613453-2561886,996.67,AKARI CARE LTD.
Adult and Health Services,Head of Adults,Third Party Payments 4THIRD,470101,Purchase of Care,09/07/2019,3613453-2561887,"2,369.64",AKARI CARE LTD.
Adult and Health Services,Head of Adults,Third Party Payments 4THIRD,470101,Purchase of Care,09/07/2019,3613453-2561889,"2,369.64",AKARI CARE LTD.
Adult and Health Services,Head of Adults,Third Party Payments 4THIRD,470101,Purchase of Care,09/07/2019,3613453-2561890,"2,031.12",AKARI CARE LTD.
Adult and Health Services,Head of Adults,Third Party Payments 4THIRD,470101,Purchase of Care,09/07/2019,3613453-2561891,962.35,AKARI CARE LTD.
Adult and Health Services,Head of Adults,Third Party Payments 4THIRD,470101,Purchase of Care,09/07/2019,3613453-2561892,"2,369.64",AKARI CARE LTD.
Adult and Health Services,Head of Adults,Third Party Payments 4THIRD,474101,Purchase of Care,09/07/2019,3613453-2561893,"2,466.24",AKARI CARE LTD.
Adult and Health Services,Head of Adults,Third Party Payments 4THIRD,470101,Purchase of Care,09/07/2019,3613453-2561895,"2,449.64",AKARI CARE LTD.
Adult and Health Services,Head of Adults,Third Party Payments 4THIRD,474101,Purchase of Care,09/07/2019,3613453-2561896,"1,233.12",AKARI CARE LTD.
Adult and Health Services,Head of Adults,Third Party Payments 4THIRD,474101,Purchase of Care,09/07/2019,3613453-2561898,"2,466.24",AKARI CARE LTD.
Adult and Health Services,Head of Adults,Third Party Payments 4THIRD,470101,Purchase of Care,09/07/2019,3613453-2561900,"2,369.64",AKARI CARE LTD.
Adult and Health Services,Head of Adults,Third Party Payments 4THIRD,471101,Purchase of Care,09/07/2019,3613453-2561901,"2,457.00",AKARI CARE LTD.
Adult and Health Services,Head of Adults,Third Party Payments 4THIRD,471101,Purchase of Care,09/07/2019,3613453-2561902,"2,457.00",AKARI CARE LTD.
Adult and Health Services,Head of Adults,Third Party Payments 4THIRD,470101,Purchase of Care,09/07/2019,3613453-2561903,"2,369.64",AKARI CARE LTD.
Adult and Health Services,Head of Adults,Third Party Payments 4THIRD,470101,Purchase of Care,09/07/2019,3613453-2561904,"2,449.64",AKARI CARE LTD.
Adult and Health Services,Head of Adults,Third Party Payments 4THIRD,471101,Purchase of Care,09/07/2019,3613453-2561905,"2,457.00",AKARI CARE LTD.
Adult and Health Services,Head of Adults,Third Party Payments 4THIRD,474101,Purchase of Care,09/07/2019,3613453-2561906,"2,466.24",AKARI CARE LTD.
Adult and Health Services,Head of Adults,Third Party Payments 4THIRD,470101,Purchase of Care,09/07/2019,3613453-2561908,"2,369.64",AKARI CARE LTD.
Adult and Health Services,Head of Adults,Third Party Payments 4THIRD,471101,Purchase of Care,09/07/2019,3613453-2561909,"2,457.00",AKARI CARE LTD.
Adult and Health Services,Head of Adults,Third Party Payments 4THIRD,470101,Purchase of Care,09/07/2019,3613453-2561910,"2,449.64",AKARI CARE LTD.
Adult and Health Services,Head of Adults,Third Party Payments 4THIRD,474101,Purchase of Care,09/07/2019,3613453-2561911,"2,466.24",AKARI CARE LTD.
Adult and Health Services,Head of Adults,Third Party Payments 4THIRD,474101,Purchase of Care,09/07/2019,3613453-2561913,"2,466.24",AKARI CARE LTD.
Adult and Health Services,Head of Adults,Third Party Payments 4THIRD,470101,Purchase of Care,09/07/2019,3613453-2561915,"2,369.64",AKARI CARE LTD.
Adult and Health Services,Head of Adults,Third Party Payments 4THIRD,470101,Purchase of Care,09/07/2019,3613453-2561916,"2,369.64",AKARI CARE LTD.
Adult and Health Services,Head of Adults,Third Party Payments 4THIRD,474101,Purchase of Care,09/07/2019,3613453-2561917,"1,233.12",AKARI CARE LTD.
Adult and Health Services,Head of Adults,Third Party Payments 4THIRD,471101,Purchase of Care,09/07/2019,3613453-2561919,"2,457.00",AKARI CARE LTD.
Adult and Health Services,Head of Adults,Third Party Payments 4THIRD,474101,Purchase of Care,09/07/2019,3613453-2561920,"1,233.12",AKARI CARE LTD.
Adult and Health Services,Head of Adults,Third Party Payments 4THIRD,471101,Purchase of Care,09/07/2019,3613453-2561922,"2,457.00",AKARI CARE LTD.
Adult and Health Services,Head of Adults,Third Party Payments 4THIRD,471101,Purchase of Care,09/07/2019,3613453-2561923,"2,457.00",AKARI CARE LTD.
Adult and Health Services,Head of Adults,Third Party Payments 4THIRD,471101,Purchase of Care,09/07/2019,3613453-2561924,"2,457.00",AKARI CARE LTD.
Adult and Health Services,Head of Adults,Third Party Payments 4THIRD,471101,Purchase of Care,09/07/2019,3613453-2561925,"2,457.00",AKARI CARE LTD.
Adult and Health Services,Head of Adults,Third Party Payments 4THIRD,471101,Purchase of Care,09/07/2019,3613453-2561926,"2,457.00",AKARI CARE LTD.
Adult and Health Services,Head of Adults,Third Party Payments 4THIRD,471101,Purchase of Care,09/07/2019,3613453-2561927,"2,457.00",AKARI CARE LTD.
Adult and Health Services,Head of Adults,Third Party Payments 4THIRD,471101,Purchase of Care,09/07/2019,3613453-2561928,"2,457.00",AKARI CARE LTD.
Adult and Health Services,Head of Adults,Third Party Payments 4THIRD,471101,Purchase of Care,09/07/2019,3613453-2561929,"2,457.00",AKARI CARE LTD.
Adult and Health Services,Head of Adults,Third Party Payments 4THIRD,470101,Purchase of Care,09/07/2019,3613453-2561930,"2,369.64",AKARI CARE LTD.
Adult and Health Services,Head of Adults,Third Party Payments 4THIRD,470101,Purchase of Care,09/07/2019,3613453-2561931,"2,369.64",AKARI CARE LTD.
Adult and Health Services,Head of Adults,Third Party Payments 4THIRD,470101,Purchase of Care,09/07/2019,3613453-2561932,"2,369.64",AKARI CARE LTD.
Adult and Health Services,Head of Adults,Third Party Payments 4THIRD,471101,Purchase of Care,09/07/2019,3613453-2561933,"2,457.00",AKARI CARE LTD.
Adult and Health Services,Head of Adults,Third Party Payments 4THIRD,470101,Purchase of Care,09/07/2019,3613453-2562804,"1,100.00",AKARI CARE LTD.
Adult and Health Services,Head of Adults,Third Party Payments 4THIRD,470101,Purchase of Care,09/07/2019,3613454-2560737,"2,107.00",AKARI CARE LTD.
Adult and Health Services,Head of Adults,Third Party Payments 4THIRD,474101,Purchase of Care,09/07/2019,3613455-2562455,"2,527.92",AKARI CARE LTD.
Adult and Health Services,Head of Adults,Third Party Payments 4THIRD,474101,Purchase of Care,09/07/2019,3613456-2560748,"2,399.20",AKARI CARE LTD.
Adult and Health Services,Head of Adults,Third Party Payments 4THIRD,474101,Purchase of Care,09/07/2019,3613456-2560749,"2,399.20",AKARI CARE LTD.
Adult and Health Services,Head of Adults,Third Party Payments 4THIRD,474101,Purchase of Care,09/07/2019,3613457-2560714,794.00,AKARI CARE LTD.
Adult and Health Services,Head of Adults,Third Party Payments 4THIRD,474101,Purchase of Care,09/07/2019,3613457-2560715,840.00,AKARI CARE LTD.
Adult and Health Services,Head of Adults,Third Party Payments 4THIRD,474101,Purchase of Care,09/07/2019,3613457-2560717,958.57,AKARI CARE LTD.
Adult and Health Services,Head of Adults,Third Party Payments 4THIRD,474101,Purchase of Care,09/07/2019,3613457-2560718,"1,500.00",AKARI CARE LTD.
Adult and Health Services,Head of Adults,Third Party Payments 4THIRD,470101,Purchase of Care,09/07/2019,3613457-2560719,804.50,AKARI CARE LTD.
Adult and Health Services,Head of Adults,Third Party Payments 4THIRD,470101,Purchase of Care,09/07/2019,3613458-2560402,"2,369.64",AKARI CARE LTD.
Adult and Health Services,Head of Adults,Third Party Payments 4THIRD,470101,Purchase of Care,09/07/2019,3613458-2560403,"2,369.64",AKARI CARE LTD.
Adult and Health Services,Head of Adults,Third Party Payments 4THIRD,470101,Purchase of Care,09/07/2019,3613458-2560404,"2,369.64",AKARI CARE LTD.
Adult and Health Services,Head of Adults,Third Party Payments 4THIRD,470101,Purchase of Care,09/07/2019,3613458-2560405,"2,369.64",AKARI CARE LTD.
Adult and Health Services,Head of Adults,Third Party Payments 4THIRD,471101,Purchase of Care,09/07/2019,3613458-2560406,"2,457.00",AKARI CARE LTD.
Adult and Health Services,Head of Adults,Third Party Payments 4THIRD,471101,Purchase of Care,09/07/2019,3613458-2560407,"2,457.00",AKARI CARE LTD.
Adult and Health Services,Head of Adults,Third Party Payments 4THIRD,471101,Purchase of Care,09/07/2019,3613458-2560408,"1,228.50",AKARI CARE LTD.
Adult and Health Services,Head of Adults,Third Party Payments 4THIRD,471101,Purchase of Care,09/07/2019,3613458-2560409,"2,457.00",AKARI CARE LTD.
Adult and Health Services,Head of Adults,Third Party Payments 4THIRD,470101,Purchase of Care,09/07/2019,3613458-2560410,592.41,AKARI CARE LTD.
Adult and Health Services,Head of Adults,Third Party Payments 4THIRD,471101,Purchase of Care,09/07/2019,3613458-2560411,"2,457.00",AKARI CARE LTD.
Adult and Health Services,Head of Adults,Third Party Payments 4THIRD,471101,Purchase of Care,09/07/2019,3613458-2560412,"2,457.00",AKARI CARE LTD.
Adult and Health Services,Head of Adults,Third Party Payments 4THIRD,470101,Purchase of Care,09/07/2019,3613458-2560413,"1,692.60",AKARI CARE LTD.
Adult and Health Services,Head of Adults,Third Party Payments 4THIRD,471101,Purchase of Care,09/07/2019,3613458-2560414,"2,457.00",AKARI CARE LTD.
Adult and Health Services,Head of Adults,Third Party Payments 4THIRD,470101,Purchase of Care,09/07/2019,3613458-2560415,"2,369.64",AKARI CARE LTD.
Adult and Health Services,Head of Adults,Third Party Payments 4THIRD,470101,Purchase of Care,09/07/2019,3613458-2560416,"4,823.91",AKARI CARE LTD.
Adult and Health Services,Head of Adults,Third Party Payments 4THIRD,470101,Purchase of Care,09/07/2019,3613458-2560417,"2,369.64",AKARI CARE LTD.
Adult and Health Services,Head of Adults,Third Party Payments 4THIRD,471101,Purchase of Care,09/07/2019,3613458-2560418,"2,457.00",AKARI CARE LTD.
Adult and Health Services,Head of Adults,Third Party Payments 4THIRD,470101,Purchase of Care,09/07/2019,3613458-2560419,"2,369.64",AKARI CARE LTD.
Adult and Health Services,Head of Adults,Third Party Payments 4THIRD,471101,Purchase of Care,09/07/2019,3613458-2560420,"2,457.00",AKARI CARE LTD.
Adult and Health Services,Head of Adults,Third Party Payments 4THIRD,471101,Purchase of Care,09/07/2019,3613458-2560422,614.25,AKARI CARE LTD.
Adult and Health Services,Head of Adults,Third Party Payments 4THIRD,470101,Purchase of Care,09/07/2019,3613458-2560423,"2,369.64",AKARI CARE LTD.
Adult and Health Services,Head of Adults,Third Party Payments 4THIRD,471101,Purchase of Care,09/07/2019,3613458-2560424,"2,457.00",AKARI CARE LTD.
Adult and Health Services,Head of Adults,Third Party Payments 4THIRD,470101,Purchase of Care,09/07/2019,3613458-2560425,"1,777.23",AKARI CARE LTD.
Adult and Health Services,Head of Adults,Third Party Payments 4THIRD,470101,Purchase of Care,09/07/2019,3613458-2560426,"2,369.64",AKARI CARE LTD.
Adult and Health Services,Head of Adults,Third Party Payments 4THIRD,470101,Purchase of Care,09/07/2019,3613458-2560427,"2,369.64",AKARI CARE LTD.
Adult and Health Services,Head of Adults,Third Party Payments 4THIRD,470101,Purchase of Care,09/07/2019,3613458-2560428,"2,369.64",AKARI CARE LTD.
Adult and Health Services,Head of Adults,Third Party Payments 4THIRD,471101,Purchase of Care,09/07/2019,3613458-2560429,"2,457.00",AKARI CARE LTD.
Adult and Health Services,Head of Adults,Third Party Payments 4THIRD,470101,Purchase of Care,09/07/2019,3613458-2560430,"2,369.64",AKARI CARE LTD.
Adult and Health Services,Head of Adults,Third Party Payments 4THIRD,470101,Purchase of Care,09/07/2019,3613458-2560431,"2,369.64",AKARI CARE LTD.
Adult and Health Services,Head of Adults,Third Party Payments 4THIRD,470101,Purchase of Care,09/07/2019,3613458-2560433,"2,369.64",AKARI CARE LTD.
Adult and Health Services,Head of Adults,Third Party Payments 4THIRD,471101,Purchase of Care,09/07/2019,3613458-2560434,"2,457.00",AKARI CARE LTD.
Adult and Health Services,Head of Adults,Third Party Payments 4THIRD,470101,Purchase of Care,09/07/2019,3613458-2560435,"2,369.64",AKARI CARE LTD.
Adult and Health Services,Head of Adults,Third Party Payments 4THIRD,471101,Purchase of Care,09/07/2019,3613458-2560436,"2,457.00",AKARI CARE LTD.
Adult and Health Services,Head of Adults,Third Party Payments 4THIRD,471101,Purchase of Care,09/07/2019,3613458-2560437,"2,457.00",AKARI CARE LTD.
Adult and Health Services,Head of Adults,Third Party Payments 4THIRD,471101,Purchase of Care,09/07/2019,3613458-2560438,"2,457.00",AKARI CARE LTD.
Adult and Health Services,Head of Adults,Third Party Payments 4THIRD,471101,Purchase of Care,09/07/2019,3613458-2560439,"2,457.00",AKARI CARE LTD.
